{"text_format":"3","workbook":"xlsx","n_sheets":15,"sheets":["Hur du använder den här mallen","Elevlista","Augusti","September","Oktober","November","December","Januari","Februari","Mars","April","Maj","Juni","Juli","Närvarorapport för elev"],"not_rendered":{"defined_names":31},"read":"whole","date_system":"1900"}

{"sheet":"Hur du använder den här mallen","index":0,"n_rows":25,"n_cols":5,"rows_kept":25,"merged":[[3,2,3,12],[4,4,4,12],[5,4,5,12],[6,4,6,12],[7,4,7,12],[8,4,8,7],[11,2,11,12],[12,4,12,12],[13,4,13,12],[14,4,14,12],[17,2,17,12],[18,4,18,12],[19,4,19,12],[20,4,20,12],[21,4,21,12],[24,2,24,12]]}
["SÅ HÄR ANVÄNDER DU DEN HÄR MALLEN"]
[]
[null,"VAD SKA JAG BÖRJA MED?"]
[null,null,"Det finns ett antal åtgärder du behöver vidta innan du kan börja spåra elevnärvaro:"]
[{"$nulls":3},"1.","Lägg till dina elever: På bladet Elevlista anger du information för varje elev, t.ex. namn och kontaktuppgifter för elevens målsman. Elev-ID:t är en viktig post eftersom det ger varje elev ett unikt ID, och används i hela arbetsboken i de olika listrutorna med elev-ID:n som kan användas för att underlätta vid datainmatning. Informationen som anges i elevlistan används även på andra blad, t.ex. Närvarorapport för elev och de månatliga närvarorapporterna."]
[{"$nulls":3},"2.","Ändra kalenderår På närvarobladet för  Augusti klickar du på rotationsrutan längst upp till höger i rubriken så att kalenderåret ändras. Den här ändringen påverkar rubriken på alla närvarorapporter för månader i hela arbetsboken. (Observera att rotationsrutan inte skrivs ut.)"]
[{"$nulls":3},"3.","(Valfritt). Ändra färgerna i hela arbetsboken:  Bläddra först till det sista bladet, Närvarorapport för elev , fliken Betyg i gruppen Ändringar , och klicka på Ta bort bladets skydd. Sedan, på fliken Sidlayout i gruppen Teman, klickar du på Färger och väljer en annan temafärguppsättning i färggalleriet. När du har ändrat färgerna, och andra eventuella temaegenskaper, återgår du till bladet Närvarorapport för elev , fliken Betyg, i gruppen Ändringar , klickar på Skydda blad, och klickar sedan på OK."]
[{"$nulls":4},"Tips: Skapa ett anpassat färgtema så att det passar skolans egna färger! Gör det genom att gå till fliken Sidlayout , gruppen Teman , klicka på Färger och sedan, i den nedre delen av färggalleriet, klicka på Skapa nya temafärger. Det finns mer information om hur du skapar ett anpassat färgtema i följande hjälpavsnitt: "]
[{"$nulls":4},"Anpassa ett dokumenttema."]
[]
[null,"JAG HAR LAGT TILL MINA ELEVER, VAD GÖR JAG NU?"]
[null,null,"När dina elever har matats in på bladet Elevlista kan du börja spåra deras närvaro under skolåret med hjälp av följande åtgärder:"]
[{"$nulls":3},"1.","Du kan lägga till en elev i en närvarorapport genom att klicka i en cell nedanför kolumnen Elev-ID och välja ett ID i listan. Elevens namn visas automatiskt när du har valt ett ID. "]
[{"$nulls":4},"Tips: Effektivisera datainmatningen! När eleverna har lagts till i en månad kan du markera de angivna elev-ID:na, och sedan kopiera dem och klistra in dem i kolumnen Elev-ID för de återstående månaderna. "]
[{"$nulls":3},"2.","Ange sedan deras närvaro för varje dag i månaden, med hjälp av närvarotyperna i färgkodningen. Elevens närvaro beräknas automatiskt per närvarotyp och elev i kolumnerna för summor. Den totala frånvaron för varje dag beräknas automatiskt längst ned i tabellen i raden för summor."]
[]
[null,"HUR LÄGGER JAG TILL FLER ELEVER I NÄRVAROLISTAN FÖR EN VISS MÅNAD?"]
[null,null,"Närvarorapporterna för månader och elevlistan är Excel-tabeller. Om du vill lägga till nya rader i en Excel-tabell gör du något av följande:"]
[{"$nulls":3},"● ","Om raden Summa inte finns i tabellen kan du börja skriva nedanför tabellen, så expanderas den automatiskt när du trycker på någon av tangenterna RETUR eller TABB."]
[{"$nulls":3},"● ","Sätt cellpekaren i den sista cellen ovanför raden Summa, t.ex. cellen Frånvarodagar för den sista eleven, och tryck sedan på tangenten TABB."]
[{"$nulls":3},"● ","Högerklicka i tabellen så att snabbmenyn visas och välj Infoga, och klicka sedan på Tabellrader ovanför eller Tabellrader nedanför. "]
[{"$nulls":3},"● ","Sätt muspekaren över tabellens storlekshandtag längst ned till höger, och öka antalet tillgängliga tabellrader genom att dra nedåt."]
[]
[null,"GÅR DET ATT VISA EN ELEVS NÄRVARO UNDER HELA SKOLÅRET?"]
[null,null,"Det sista bladet i arbetsboken, Närvarorapport för elev, används för att spåra närvaro hittills under året. Du kan visa en rapport för en viss elev genom att klicka i cellen nedanför Elev-ID och sedan välja ett ID i listrutan. Informationen som du tidigare angett på bladet Elevlista för den valda eleven visas automatiskt. Observera att du måste ange Skola, Årskurs, Lärare och Rum den första gången som du använder Närvarorapport för elev. Den här informationen ändras inte om du väljer en annan elev. "]

{"sheet":"Elevlista","index":1,"n_rows":8,"n_cols":19,"rows_kept":8}
["ELEVLISTA"]
[]
[null,"Elev-ID","Elevens förnamn","Elevens efternamn","Kön","Födelsedatum","Målsman 1","Målsman 1, relation till eleven","Arbetstelefon för målsman 1","Hemtelefon för målsman 1","Målsman 2","Målsman 2, relation till eleven","Arbetstelefon för målsman 2","Hemtelefon för målsman 2","Kontaktperson vid nödsituationer","Kontaktpersonens relation till eleven","Arbetstelefon för kontaktpersonen","Hemtelefon för kontaktpersonen","Elevens fullständiga namn"]
[null,"S001","David","Alexander","M","1997-03-28","Michelle","Alexander",1235550134,2345550134,"Michael Alexander","Far",1235550134,2345550134,"Reed Koch","Farfar",7895550189,7895550134,{"$f":"Elevlista[[#This Row],[Elevens förnamn]]&\" \" &Elevlista[[#This Row],[Elevens efternamn]]","v":"David Alexander"}]
[null,"S002","Elev",2,{"$nulls":14},{"$f":"Elevlista[[#This Row],[Elevens förnamn]]&\" \" &Elevlista[[#This Row],[Elevens efternamn]]","v":"Elev 2"}]
[null,"S003","Elev",3,{"$nulls":14},{"$f":"Elevlista[[#This Row],[Elevens förnamn]]&\" \" &Elevlista[[#This Row],[Elevens efternamn]]","v":"Elev 3"}]
[null,"S004","Elev",4,{"$nulls":14},{"$f":"Elevlista[[#This Row],[Elevens förnamn]]&\" \" &Elevlista[[#This Row],[Elevens efternamn]]","v":"Elev 4"}]
[null,"S005","Elev",5,{"$nulls":14},{"$f":"Elevlista[[#This Row],[Elevens förnamn]]&\" \" &Elevlista[[#This Row],[Elevens efternamn]]","v":"Elev 5"}]

{"sheet":"Augusti","index":2,"n_rows":12,"n_cols":39,"rows_kept":12,"merged":[[4,34,4,38]]}
["NÄRVARORAPPORT FÖR ELEVER",{"$nulls":36},"Skolårets början",2012]
[]
[null,null,"FÄRGKODNING ","S","Sen ankomst",null,null,"L","Lovlig frånvaro",null,null,"O","Olovlig frånvaro",null,null,"N","Närvarande",null,null,"I","Ingen skola"]
[]
[null,{"$f":"DATE(Kalenderår,8,1)","v":"2012-08-01"},null,{"$f":"TEXT(WEEKDAY(DATE(Kalenderår,8,1),1),\"[$-41d]aaa\")","v":"on"},{"$f":"TEXT(WEEKDAY(DATE(Kalenderår,8,2),1),\"[$-41d]aaa\")","v":"to"},{"$f":"TEXT(WEEKDAY(DATE(Kalenderår,8,3),1),\"[$-41d]aaa\")","v":"fr"},{"$f":"TEXT(WEEKDAY(DATE(Kalenderår,8,4),1),\"[$-41d]aaa\")","v":"lö"},{"$f":"TEXT(WEEKDAY(DATE(Kalenderår,8,5),1),\"[$-41d]aaa\")","v":"sö"},{"$f":"TEXT(WEEKDAY(DATE(Kalenderår,8,6),1),\"[$-41d]aaa\")","v":"må"},{"$f":"TEXT(WEEKDAY(DATE(Kalenderår,8,7),1),\"[$-41d]aaa\")","v":"ti"},{"$f":"TEXT(WEEKDAY(DATE(Kalenderår,8,8),1),\"[$-41d]aaa\")","v":"on"},{"$f":"TEXT(WEEKDAY(DATE(Kalenderår,8,9),1),\"[$-41d]aaa\")","v":"to"},{"$f":"TEXT(WEEKDAY(DATE(Kalenderår,8,10),1),\"[$-41d]aaa\")","v":"fr"},{"$f":"TEXT(WEEKDAY(DATE(Kalenderår,8,11),1),\"[$-41d]aaa\")","v":"lö"},{"$f":"TEXT(WEEKDAY(DATE(Kalenderår,8,12),1),\"[$-41d]aaa\")","v":"sö"},{"$f":"TEXT(WEEKDAY(DATE(Kalenderår,8,13),1),\"[$-41d]aaa\")","v":"må"},{"$f":"TEXT(WEEKDAY(DATE(Kalenderår,8,14),1),\"[$-41d]aaa\")","v":"ti"},{"$f":"TEXT(WEEKDAY(DATE(Kalenderår,8,15),1),\"[$-41d]aaa\")","v":"on"},{"$f":"TEXT(WEEKDAY(DATE(Kalenderår,8,16),1),\"[$-41d]aaa\")","v":"to"},{"$f":"TEXT(WEEKDAY(DATE(Kalenderår,8,17),1),\"[$-41d]aaa\")","v":"fr"},{"$f":"TEXT(WEEKDAY(DATE(Kalenderår,8,18),1),\"[$-41d]aaa\")","v":"lö"},{"$f":"TEXT(WEEKDAY(DATE(Kalenderår,8,19),1),\"[$-41d]aaa\")","v":"sö"},{"$f":"TEXT(WEEKDAY(DATE(Kalenderår,8,20),1),\"[$-41d]aaa\")","v":"må"},{"$f":"TEXT(WEEKDAY(DATE(Kalenderår,8,21),1),\"[$-41d]aaa\")","v":"ti"},{"$f":"TEXT(WEEKDAY(DATE(Kalenderår,8,22),1),\"[$-41d]aaa\")","v":"on"},{"$f":"TEXT(WEEKDAY(DATE(Kalenderår,8,23),1),\"[$-41d]aaa\")","v":"to"},{"$f":"TEXT(WEEKDAY(DATE(Kalenderår,8,24),1),\"[$-41d]aaa\")","v":"fr"},{"$f":"TEXT(WEEKDAY(DATE(Kalenderår,8,25),1),\"[$-41d]aaa\")","v":"lö"},{"$f":"TEXT(WEEKDAY(DATE(Kalenderår,8,26),1),\"[$-41d]aaa\")","v":"sö"},{"$f":"TEXT(WEEKDAY(DATE(Kalenderår,8,27),1),\"[$-41d]aaa\")","v":"må"},{"$f":"TEXT(WEEKDAY(DATE(Kalenderår,8,28),1),\"[$-41d]aaa\")","v":"ti"},{"$f":"TEXT(WEEKDAY(DATE(Kalenderår,8,29),1),\"[$-41d]aaa\")","v":"on"},{"$f":"TEXT(WEEKDAY(DATE(Kalenderår,8,30),1),\"[$-41d]aaa\")","v":"to"},{"$f":"TEXT(WEEKDAY(DATE(Kalenderår,8,31),1),\"[$-41d]aaa\")","v":"fr"},"Summor"]
[null,"Elev-ID","Elevens namn","1","2","3","4","5","6","7","8","9","10","11","12","13","14","15","16","17","18","19","20","21","22","23","24","25","26","27","28","29","30","31","S","L","O","N","Frånvarodagar"]
[null,"S001",{"$f":"IFERROR(VLOOKUP(Närvaro_augusti[[#This Row],[Elev-ID]],Elevlista[],18,FALSE),\"\")","v":"David Alexander"},"N","N","S","S","N","I","I","N","N","L","N","N","I","I","N","N","N","N","N","I","I","N","N","N","N","N","I","I","N","N","N",{"$f":"COUNTIF(Närvaro_augusti[[#This Row],[1]:[31]],Kod_1)","v":2},{"$f":"COUNTIF(Närvaro_augusti[[#This Row],[1]:[31]],Kod_2)","v":1},{"$f":"COUNTIF(Närvaro_augusti[[#This Row],[1]:[31]],Kod_3)","v":0},{"$f":"COUNTIF(Närvaro_augusti[[#This Row],[1]:[31]],Kod_4)","v":20},{"$f":"SUM(Närvaro_augusti[[#This Row],[L]:[O]])","v":1}]
[null,"S002",{"$f":"IFERROR(VLOOKUP(Närvaro_augusti[[#This Row],[Elev-ID]],Elevlista[],18,FALSE),\"\")","v":"Elev 2"},"N","O","N","N","N","I","I","N","L","L","L","L","I","I","N","N","N","N","N","I","I","N","N","N","S","S","I","I","N","N","N",{"$f":"COUNTIF(Närvaro_augusti[[#This Row],[1]:[31]],Kod_1)","v":2},{"$f":"COUNTIF(Närvaro_augusti[[#This Row],[1]:[31]],Kod_2)","v":4},{"$f":"COUNTIF(Närvaro_augusti[[#This Row],[1]:[31]],Kod_3)","v":1},{"$f":"COUNTIF(Närvaro_augusti[[#This Row],[1]:[31]],Kod_4)","v":16},{"$f":"SUM(Närvaro_augusti[[#This Row],[L]:[O]])","v":5}]
[null,"S003",{"$f":"IFERROR(VLOOKUP(Närvaro_augusti[[#This Row],[Elev-ID]],Elevlista[],18,FALSE),\"\")","v":"Elev 3"},"N","L","N","N","N","I","I","N","N","O","N","N","I","I","N","N","N","N","N","I","I","N","N","L","L","N","I","I","N","N","N",{"$f":"COUNTIF(Närvaro_augusti[[#This Row],[1]:[31]],Kod_1)","v":0},{"$f":"COUNTIF(Närvaro_augusti[[#This Row],[1]:[31]],Kod_2)","v":3},{"$f":"COUNTIF(Närvaro_augusti[[#This Row],[1]:[31]],Kod_3)","v":1},{"$f":"COUNTIF(Närvaro_augusti[[#This Row],[1]:[31]],Kod_4)","v":19},{"$f":"SUM(Närvaro_augusti[[#This Row],[L]:[O]])","v":4}]
[null,"S004",{"$f":"IFERROR(VLOOKUP(Närvaro_augusti[[#This Row],[Elev-ID]],Elevlista[],18,FALSE),\"\")","v":"Elev 4"},"N","N","N","N","N","I","I","N","N","N","N","N","I","I","N","N","N","N","N","I","I","N","O","N","N","L","I","I","N","L","N",{"$f":"COUNTIF(Närvaro_augusti[[#This Row],[1]:[31]],Kod_1)","v":0},{"$f":"COUNTIF(Närvaro_augusti[[#This Row],[1]:[31]],Kod_2)","v":2},{"$f":"COUNTIF(Närvaro_augusti[[#This Row],[1]:[31]],Kod_3)","v":1},{"$f":"COUNTIF(Närvaro_augusti[[#This Row],[1]:[31]],Kod_4)","v":20},{"$f":"SUM(Närvaro_augusti[[#This Row],[L]:[O]])","v":3}]
[null,"S005",{"$f":"IFERROR(VLOOKUP(Närvaro_augusti[[#This Row],[Elev-ID]],Elevlista[],18,FALSE),\"\")","v":"Elev 5"},"N","N","N","N","N","I","I","N","N","N","N","N","I","I","N","N","N","N","N","I","I","N","N","N","N","N","I","I","N","N","N",{"$f":"COUNTIF(Närvaro_augusti[[#This Row],[1]:[31]],Kod_1)","v":0},{"$f":"COUNTIF(Närvaro_augusti[[#This Row],[1]:[31]],Kod_2)","v":0},{"$f":"COUNTIF(Närvaro_augusti[[#This Row],[1]:[31]],Kod_3)","v":0},{"$f":"COUNTIF(Närvaro_augusti[[#This Row],[1]:[31]],Kod_4)","v":23},{"$f":"SUM(Närvaro_augusti[[#This Row],[L]:[O]])","v":0}]
[null,null,"Sammanlagda frånvarodagar'",{"$f":"COUNTIF(Närvaro_augusti[1],\"O\")+COUNTIF(Närvaro_augusti[1],\"L\")","v":0},{"$f":"COUNTIF(Närvaro_augusti[2],\"O\")+COUNTIF(Närvaro_augusti[2],\"L\")","v":2},{"$f":"COUNTIF(Närvaro_augusti[3],\"O\")+COUNTIF(Närvaro_augusti[3],\"L\")","v":0},{"$f":"COUNTIF(Närvaro_augusti[4],\"O\")+COUNTIF(Närvaro_augusti[4],\"L\")","v":0},{"$f":"COUNTIF(Närvaro_augusti[5],\"O\")+COUNTIF(Närvaro_augusti[5],\"L\")","v":0},{"$f":"COUNTIF(Närvaro_augusti[6],\"O\")+COUNTIF(Närvaro_augusti[6],\"L\")","v":0},{"$f":"COUNTIF(Närvaro_augusti[7],\"O\")+COUNTIF(Närvaro_augusti[7],\"L\")","v":0},{"$f":"COUNTIF(Närvaro_augusti[8],\"O\")+COUNTIF(Närvaro_augusti[8],\"L\")","v":0},{"$f":"COUNTIF(Närvaro_augusti[9],\"O\")+COUNTIF(Närvaro_augusti[9],\"L\")","v":1},{"$f":"COUNTIF(Närvaro_augusti[10],\"O\")+COUNTIF(Närvaro_augusti[10],\"L\")","v":3},{"$f":"COUNTIF(Närvaro_augusti[11],\"O\")+COUNTIF(Närvaro_augusti[11],\"L\")","v":1},{"$f":"COUNTIF(Närvaro_augusti[12],\"O\")+COUNTIF(Närvaro_augusti[12],\"L\")","v":1},{"$f":"COUNTIF(Närvaro_augusti[13],\"O\")+COUNTIF(Närvaro_augusti[13],\"L\")","v":0},{"$f":"COUNTIF(Närvaro_augusti[14],\"O\")+COUNTIF(Närvaro_augusti[14],\"L\")","v":0},{"$f":"COUNTIF(Närvaro_augusti[15],\"O\")+COUNTIF(Närvaro_augusti[15],\"L\")","v":0},{"$f":"COUNTIF(Närvaro_augusti[16],\"O\")+COUNTIF(Närvaro_augusti[16],\"L\")","v":0},{"$f":"COUNTIF(Närvaro_augusti[17],\"O\")+COUNTIF(Närvaro_augusti[17],\"L\")","v":0},{"$f":"COUNTIF(Närvaro_augusti[18],\"O\")+COUNTIF(Närvaro_augusti[18],\"L\")","v":0},{"$f":"COUNTIF(Närvaro_augusti[19],\"O\")+COUNTIF(Närvaro_augusti[19],\"L\")","v":0},{"$f":"COUNTIF(Närvaro_augusti[20],\"O\")+COUNTIF(Närvaro_augusti[20],\"L\")","v":0},{"$f":"COUNTIF(Närvaro_augusti[21],\"O\")+COUNTIF(Närvaro_augusti[21],\"L\")","v":0},{"$f":"COUNTIF(Närvaro_augusti[22],\"O\")+COUNTIF(Närvaro_augusti[22],\"L\")","v":0},{"$f":"COUNTIF(Närvaro_augusti[23],\"O\")+COUNTIF(Närvaro_augusti[23],\"L\")","v":1},{"$f":"COUNTIF(Närvaro_augusti[24],\"O\")+COUNTIF(Närvaro_augusti[24],\"L\")","v":1},{"$f":"COUNTIF(Närvaro_augusti[25],\"O\")+COUNTIF(Närvaro_augusti[25],\"L\")","v":1},{"$f":"COUNTIF(Närvaro_augusti[26],\"O\")+COUNTIF(Närvaro_augusti[26],\"L\")","v":1},{"$f":"COUNTIF(Närvaro_augusti[27],\"O\")+COUNTIF(Närvaro_augusti[27],\"L\")","v":0},{"$f":"COUNTIF(Närvaro_augusti[28],\"O\")+COUNTIF(Närvaro_augusti[28],\"L\")","v":0},{"$f":"COUNTIF(Närvaro_augusti[29],\"O\")+COUNTIF(Närvaro_augusti[29],\"L\")","v":0},{"$f":"COUNTIF(Närvaro_augusti[30],\"O\")+COUNTIF(Närvaro_augusti[30],\"L\")","v":1},{"$f":"COUNTIF(Närvaro_augusti[31],\"O\")+COUNTIF(Närvaro_augusti[31],\"L\")","v":0},{"$f":"SUBTOTAL(109,Närvaro_augusti[S])","v":4},{"$f":"SUBTOTAL(109,Närvaro_augusti[L])","v":10},{"$f":"SUBTOTAL(109,Närvaro_augusti[O])","v":3},{"$f":"SUBTOTAL(109,Närvaro_augusti[N])","v":98},{"$f":"SUBTOTAL(109,Närvaro_augusti[Frånvarodagar])","v":13}]

{"sheet":"September","index":3,"n_rows":12,"n_cols":39,"rows_kept":12,"merged":[[4,34,4,38]]}
["NÄRVARORAPPORT FÖR ELEVER",{"$nulls":36},"Skolårets början",{"$f":"Kalenderår","v":2012}]
[]
[null,null,{"$f":"Färgkod_text","v":"FÄRGKODNING "},{"$f":"Kod_1","v":"S"},{"$f":"Kod1_text","v":"Sen ankomst"},null,null,{"$f":"Kod_2","v":"L"},{"$f":"Kod2_text","v":"Lovlig frånvaro"},null,null,{"$f":"Kod_3","v":"O"},{"$f":"Kod3_text","v":"Olovlig frånvaro"},null,null,{"$f":"Kod_4","v":"N"},{"$f":"Kod4_text","v":"Närvarande"},null,null,{"$f":"Kod_5","v":"I"},{"$f":"Kod5_text","v":"Ingen skola"}]
[]
[null,{"$f":"DATE(Kalenderår,9,1)","v":"2012-09-01"},null,{"$f":"TEXT(WEEKDAY(DATE(Kalenderår,9,1),1),\"[$-41d]aaa\")","v":"lö"},{"$f":"TEXT(WEEKDAY(DATE(Kalenderår,9,2),1),\"[$-41d]aaa\")","v":"sö"},{"$f":"TEXT(WEEKDAY(DATE(Kalenderår,9,3),1),\"[$-41d]aaa\")","v":"må"},{"$f":"TEXT(WEEKDAY(DATE(Kalenderår,9,4),1),\"[$-41d]aaa\")","v":"ti"},{"$f":"TEXT(WEEKDAY(DATE(Kalenderår,9,5),1),\"[$-41d]aaa\")","v":"on"},{"$f":"TEXT(WEEKDAY(DATE(Kalenderår,9,6),1),\"[$-41d]aaa\")","v":"to"},{"$f":"TEXT(WEEKDAY(DATE(Kalenderår,9,7),1),\"[$-41d]aaa\")","v":"fr"},{"$f":"TEXT(WEEKDAY(DATE(Kalenderår,9,8),1),\"[$-41d]aaa\")","v":"lö"},{"$f":"TEXT(WEEKDAY(DATE(Kalenderår,9,9),1),\"[$-41d]aaa\")","v":"sö"},{"$f":"TEXT(WEEKDAY(DATE(Kalenderår,9,10),1),\"[$-41d]aaa\")","v":"må"},{"$f":"TEXT(WEEKDAY(DATE(Kalenderår,9,11),1),\"[$-41d]aaa\")","v":"ti"},{"$f":"TEXT(WEEKDAY(DATE(Kalenderår,9,12),1),\"[$-41d]aaa\")","v":"on"},{"$f":"TEXT(WEEKDAY(DATE(Kalenderår,9,13),1),\"[$-41d]aaa\")","v":"to"},{"$f":"TEXT(WEEKDAY(DATE(Kalenderår,9,14),1),\"[$-41d]aaa\")","v":"fr"},{"$f":"TEXT(WEEKDAY(DATE(Kalenderår,9,15),1),\"[$-41d]aaa\")","v":"lö"},{"$f":"TEXT(WEEKDAY(DATE(Kalenderår,9,16),1),\"[$-41d]aaa\")","v":"sö"},{"$f":"TEXT(WEEKDAY(DATE(Kalenderår,9,17),1),\"[$-41d]aaa\")","v":"må"},{"$f":"TEXT(WEEKDAY(DATE(Kalenderår,9,18),1),\"[$-41d]aaa\")","v":"ti"},{"$f":"TEXT(WEEKDAY(DATE(Kalenderår,9,19),1),\"[$-41d]aaa\")","v":"on"},{"$f":"TEXT(WEEKDAY(DATE(Kalenderår,9,20),1),\"[$-41d]aaa\")","v":"to"},{"$f":"TEXT(WEEKDAY(DATE(Kalenderår,9,21),1),\"[$-41d]aaa\")","v":"fr"},{"$f":"TEXT(WEEKDAY(DATE(Kalenderår,9,22),1),\"[$-41d]aaa\")","v":"lö"},{"$f":"TEXT(WEEKDAY(DATE(Kalenderår,9,23),1),\"[$-41d]aaa\")","v":"sö"},{"$f":"TEXT(WEEKDAY(DATE(Kalenderår,9,24),1),\"[$-41d]aaa\")","v":"må"},{"$f":"TEXT(WEEKDAY(DATE(Kalenderår,9,25),1),\"[$-41d]aaa\")","v":"ti"},{"$f":"TEXT(WEEKDAY(DATE(Kalenderår,9,26),1),\"[$-41d]aaa\")","v":"on"},{"$f":"TEXT(WEEKDAY(DATE(Kalenderår,9,27),1),\"[$-41d]aaa\")","v":"to"},{"$f":"TEXT(WEEKDAY(DATE(Kalenderår,9,28),1),\"[$-41d]aaa\")","v":"fr"},{"$f":"TEXT(WEEKDAY(DATE(Kalenderår,9,29),1),\"[$-41d]aaa\")","v":"lö"},{"$f":"TEXT(WEEKDAY(DATE(Kalenderår,9,30),1),\"[$-41d]aaa\")","v":"sö"},null,"Summor"]
[null,"Elev-ID","Elevens namn","1","2","3","4","5","6","7","8","9","10","11","12","13","14","15","16","17","18","19","20","21","22","23","24","25","26","27","28","29","30"," ","S","L","O","N","Frånvarodagar"]
[null,null,{"$f":"IFERROR(VLOOKUP(Närvaro_september[[#This Row],[Elev-ID]],Elevlista[],18,FALSE),\"\")","v":""},{"$nulls":31},{"$f":"COUNTIF(Närvaro_september[[#This Row],[1]:[ ]],Kod_1)","v":0},{"$f":"COUNTIF(Närvaro_september[[#This Row],[1]:[ ]],Kod_2)","v":0},{"$f":"COUNTIF(Närvaro_september[[#This Row],[1]:[ ]],Kod_3)","v":0},{"$f":"COUNTIF(Närvaro_september[[#This Row],[1]:[ ]],Kod_4)","v":0},{"$f":"SUM(Närvaro_september[[#This Row],[L]:[O]])","v":0}]
[null,null,{"$f":"IFERROR(VLOOKUP(Närvaro_september[[#This Row],[Elev-ID]],Elevlista[],18,FALSE),\"\")","v":""},{"$nulls":31},{"$f":"COUNTIF(Närvaro_september[[#This Row],[1]:[ ]],Kod_1)","v":0},{"$f":"COUNTIF(Närvaro_september[[#This Row],[1]:[ ]],Kod_2)","v":0},{"$f":"COUNTIF(Närvaro_september[[#This Row],[1]:[ ]],Kod_3)","v":0},{"$f":"COUNTIF(Närvaro_september[[#This Row],[1]:[ ]],Kod_4)","v":0},{"$f":"SUM(Närvaro_september[[#This Row],[L]:[O]])","v":0}]
[null,null,{"$f":"IFERROR(VLOOKUP(Närvaro_september[[#This Row],[Elev-ID]],Elevlista[],18,FALSE),\"\")","v":""},{"$nulls":31},{"$f":"COUNTIF(Närvaro_september[[#This Row],[1]:[ ]],Kod_1)","v":0},{"$f":"COUNTIF(Närvaro_september[[#This Row],[1]:[ ]],Kod_2)","v":0},{"$f":"COUNTIF(Närvaro_september[[#This Row],[1]:[ ]],Kod_3)","v":0},{"$f":"COUNTIF(Närvaro_september[[#This Row],[1]:[ ]],Kod_4)","v":0},{"$f":"SUM(Närvaro_september[[#This Row],[L]:[O]])","v":0}]
[null,null,{"$f":"IFERROR(VLOOKUP(Närvaro_september[[#This Row],[Elev-ID]],Elevlista[],18,FALSE),\"\")","v":""},{"$nulls":31},{"$f":"COUNTIF(Närvaro_september[[#This Row],[1]:[ ]],Kod_1)","v":0},{"$f":"COUNTIF(Närvaro_september[[#This Row],[1]:[ ]],Kod_2)","v":0},{"$f":"COUNTIF(Närvaro_september[[#This Row],[1]:[ ]],Kod_3)","v":0},{"$f":"COUNTIF(Närvaro_september[[#This Row],[1]:[ ]],Kod_4)","v":0},{"$f":"SUM(Närvaro_september[[#This Row],[L]:[O]])","v":0}]
[null,null,{"$f":"IFERROR(VLOOKUP(Närvaro_september[[#This Row],[Elev-ID]],Elevlista[],18,FALSE),\"\")","v":""},{"$nulls":31},{"$f":"COUNTIF(Närvaro_september[[#This Row],[1]:[ ]],Kod_1)","v":0},{"$f":"COUNTIF(Närvaro_september[[#This Row],[1]:[ ]],Kod_2)","v":0},{"$f":"COUNTIF(Närvaro_september[[#This Row],[1]:[ ]],Kod_3)","v":0},{"$f":"COUNTIF(Närvaro_september[[#This Row],[1]:[ ]],Kod_4)","v":0},{"$f":"SUM(Närvaro_september[[#This Row],[L]:[O]])","v":0}]
[null,null,"Sammanlagda frånvarodagar'",{"$f":"COUNTIF(Närvaro_september[1],\"O\")+COUNTIF(Närvaro_september[1],\"L\")","v":0},{"$f":"COUNTIF(Närvaro_september[2],\"O\")+COUNTIF(Närvaro_september[2],\"L\")","v":0},{"$f":"COUNTIF(Närvaro_september[3],\"O\")+COUNTIF(Närvaro_september[3],\"L\")","v":0},{"$f":"COUNTIF(Närvaro_september[4],\"O\")+COUNTIF(Närvaro_september[4],\"L\")","v":0},{"$f":"COUNTIF(Närvaro_september[5],\"O\")+COUNTIF(Närvaro_september[5],\"L\")","v":0},{"$f":"COUNTIF(Närvaro_september[6],\"O\")+COUNTIF(Närvaro_september[6],\"L\")","v":0},{"$f":"COUNTIF(Närvaro_september[7],\"O\")+COUNTIF(Närvaro_september[7],\"L\")","v":0},{"$f":"COUNTIF(Närvaro_september[8],\"O\")+COUNTIF(Närvaro_september[8],\"L\")","v":0},{"$f":"COUNTIF(Närvaro_september[9],\"O\")+COUNTIF(Närvaro_september[9],\"L\")","v":0},{"$f":"COUNTIF(Närvaro_september[10],\"O\")+COUNTIF(Närvaro_september[10],\"L\")","v":0},{"$f":"COUNTIF(Närvaro_september[11],\"O\")+COUNTIF(Närvaro_september[11],\"L\")","v":0},{"$f":"COUNTIF(Närvaro_september[12],\"O\")+COUNTIF(Närvaro_september[12],\"L\")","v":0},{"$f":"COUNTIF(Närvaro_september[13],\"O\")+COUNTIF(Närvaro_september[13],\"L\")","v":0},{"$f":"COUNTIF(Närvaro_september[14],\"O\")+COUNTIF(Närvaro_september[14],\"L\")","v":0},{"$f":"COUNTIF(Närvaro_september[15],\"O\")+COUNTIF(Närvaro_september[15],\"L\")","v":0},{"$f":"COUNTIF(Närvaro_september[16],\"O\")+COUNTIF(Närvaro_september[16],\"L\")","v":0},{"$f":"COUNTIF(Närvaro_september[17],\"O\")+COUNTIF(Närvaro_september[17],\"L\")","v":0},{"$f":"COUNTIF(Närvaro_september[18],\"O\")+COUNTIF(Närvaro_september[18],\"L\")","v":0},{"$f":"COUNTIF(Närvaro_september[19],\"O\")+COUNTIF(Närvaro_september[19],\"L\")","v":0},{"$f":"COUNTIF(Närvaro_september[20],\"O\")+COUNTIF(Närvaro_september[20],\"L\")","v":0},{"$f":"COUNTIF(Närvaro_september[21],\"O\")+COUNTIF(Närvaro_september[21],\"L\")","v":0},{"$f":"COUNTIF(Närvaro_september[22],\"O\")+COUNTIF(Närvaro_september[22],\"L\")","v":0},{"$f":"COUNTIF(Närvaro_september[23],\"O\")+COUNTIF(Närvaro_september[23],\"L\")","v":0},{"$f":"COUNTIF(Närvaro_september[24],\"O\")+COUNTIF(Närvaro_september[24],\"L\")","v":0},{"$f":"COUNTIF(Närvaro_september[25],\"O\")+COUNTIF(Närvaro_september[25],\"L\")","v":0},{"$f":"COUNTIF(Närvaro_september[26],\"O\")+COUNTIF(Närvaro_september[26],\"L\")","v":0},{"$f":"COUNTIF(Närvaro_september[27],\"O\")+COUNTIF(Närvaro_september[27],\"L\")","v":0},{"$f":"COUNTIF(Närvaro_september[28],\"O\")+COUNTIF(Närvaro_september[28],\"L\")","v":0},{"$f":"COUNTIF(Närvaro_september[29],\"O\")+COUNTIF(Närvaro_september[29],\"L\")","v":0},{"$f":"COUNTIF(Närvaro_september[30],\"O\")+COUNTIF(Närvaro_september[30],\"L\")","v":0},{"$f":"COUNTIF(Närvaro_september[[ ]],\"O\")+COUNTIF(Närvaro_september[[ ]],\"L\")","v":0},{"$f":"SUBTOTAL(109,Närvaro_september[S])","v":0},{"$f":"SUBTOTAL(109,Närvaro_september[L])","v":0},{"$f":"SUBTOTAL(109,Närvaro_september[O])","v":0},{"$f":"SUBTOTAL(109,Närvaro_september[N])","v":0},{"$f":"SUBTOTAL(109,Närvaro_september[Frånvarodagar])","v":0}]

{"sheet":"Oktober","index":4,"n_rows":12,"n_cols":39,"rows_kept":12,"merged":[[4,34,4,38]]}
["NÄRVARORAPPORT FÖR ELEVER",{"$nulls":36},"Skolårets början",{"$f":"Kalenderår","v":2012}]
[]
[null,null,{"$f":"Färgkod_text","v":"FÄRGKODNING "},{"$f":"Kod_1","v":"S"},{"$f":"Kod1_text","v":"Sen ankomst"},null,null,{"$f":"Kod_2","v":"L"},{"$f":"Kod2_text","v":"Lovlig frånvaro"},null,null,{"$f":"Kod_3","v":"O"},{"$f":"Kod3_text","v":"Olovlig frånvaro"},null,null,{"$f":"Kod_4","v":"N"},{"$f":"Kod4_text","v":"Närvarande"},null,null,{"$f":"Kod_5","v":"I"},{"$f":"Kod5_text","v":"Ingen skola"}]
[]
[null,{"$f":"DATE(Kalenderår,10,1)","v":"2012-10-01"},null,{"$f":"TEXT(WEEKDAY(DATE(Kalenderår,10,1),1),\"[$-41d]aaa\")","v":"må"},{"$f":"TEXT(WEEKDAY(DATE(Kalenderår,10,2),1),\"[$-41d]aaa\")","v":"ti"},{"$f":"TEXT(WEEKDAY(DATE(Kalenderår,10,3),1),\"[$-41d]aaa\")","v":"on"},{"$f":"TEXT(WEEKDAY(DATE(Kalenderår,10,4),1),\"[$-41d]aaa\")","v":"to"},{"$f":"TEXT(WEEKDAY(DATE(Kalenderår,10,5),1),\"[$-41d]aaa\")","v":"fr"},{"$f":"TEXT(WEEKDAY(DATE(Kalenderår,10,6),1),\"[$-41d]aaa\")","v":"lö"},{"$f":"TEXT(WEEKDAY(DATE(Kalenderår,10,7),1),\"[$-41d]aaa\")","v":"sö"},{"$f":"TEXT(WEEKDAY(DATE(Kalenderår,10,8),1),\"[$-41d]aaa\")","v":"må"},{"$f":"TEXT(WEEKDAY(DATE(Kalenderår,10,9),1),\"[$-41d]aaa\")","v":"ti"},{"$f":"TEXT(WEEKDAY(DATE(Kalenderår,10,10),1),\"[$-41d]aaa\")","v":"on"},{"$f":"TEXT(WEEKDAY(DATE(Kalenderår,10,11),1),\"[$-41d]aaa\")","v":"to"},{"$f":"TEXT(WEEKDAY(DATE(Kalenderår,10,12),1),\"[$-41d]aaa\")","v":"fr"},{"$f":"TEXT(WEEKDAY(DATE(Kalenderår,10,13),1),\"[$-41d]aaa\")","v":"lö"},{"$f":"TEXT(WEEKDAY(DATE(Kalenderår,10,14),1),\"[$-41d]aaa\")","v":"sö"},{"$f":"TEXT(WEEKDAY(DATE(Kalenderår,10,15),1),\"[$-41d]aaa\")","v":"må"},{"$f":"TEXT(WEEKDAY(DATE(Kalenderår,10,16),1),\"[$-41d]aaa\")","v":"ti"},{"$f":"TEXT(WEEKDAY(DATE(Kalenderår,10,17),1),\"[$-41d]aaa\")","v":"on"},{"$f":"TEXT(WEEKDAY(DATE(Kalenderår,10,18),1),\"[$-41d]aaa\")","v":"to"},{"$f":"TEXT(WEEKDAY(DATE(Kalenderår,10,19),1),\"[$-41d]aaa\")","v":"fr"},{"$f":"TEXT(WEEKDAY(DATE(Kalenderår,10,20),1),\"[$-41d]aaa\")","v":"lö"},{"$f":"TEXT(WEEKDAY(DATE(Kalenderår,10,21),1),\"[$-41d]aaa\")","v":"sö"},{"$f":"TEXT(WEEKDAY(DATE(Kalenderår,10,22),1),\"[$-41d]aaa\")","v":"må"},{"$f":"TEXT(WEEKDAY(DATE(Kalenderår,10,23),1),\"[$-41d]aaa\")","v":"ti"},{"$f":"TEXT(WEEKDAY(DATE(Kalenderår,10,24),1),\"[$-41d]aaa\")","v":"on"},{"$f":"TEXT(WEEKDAY(DATE(Kalenderår,10,25),1),\"[$-41d]aaa\")","v":"to"},{"$f":"TEXT(WEEKDAY(DATE(Kalenderår,10,26),1),\"[$-41d]aaa\")","v":"fr"},{"$f":"TEXT(WEEKDAY(DATE(Kalenderår,10,27),1),\"[$-41d]aaa\")","v":"lö"},{"$f":"TEXT(WEEKDAY(DATE(Kalenderår,10,28),1),\"[$-41d]aaa\")","v":"sö"},{"$f":"TEXT(WEEKDAY(DATE(Kalenderår,10,29),1),\"[$-41d]aaa\")","v":"må"},{"$f":"TEXT(WEEKDAY(DATE(Kalenderår,10,30),1),\"[$-41d]aaa\")","v":"ti"},{"$f":"TEXT(WEEKDAY(DATE(Kalenderår,10,31),1),\"[$-41d]aaa\")","v":"on"},"Summor"]
[null,"Elev-ID","Elevens namn","1","2","3","4","5","6","7","8","9","10","11","12","13","14","15","16","17","18","19","20","21","22","23","24","25","26","27","28","29","30","31","S","L","O","N","Frånvarodagar"]
[null,null,{"$f":"IFERROR(VLOOKUP(Närvaro_oktober[[#This Row],[Elev-ID]],Elevlista[],18,FALSE),\"\")","v":""},{"$nulls":31},{"$f":"COUNTIF(Närvaro_oktober[[#This Row],[1]:[31]],Kod_1)","v":0},{"$f":"COUNTIF(Närvaro_oktober[[#This Row],[1]:[31]],Kod_2)","v":0},{"$f":"COUNTIF(Närvaro_oktober[[#This Row],[1]:[31]],Kod_3)","v":0},{"$f":"COUNTIF(Närvaro_oktober[[#This Row],[1]:[31]],Kod_4)","v":0},{"$f":"SUM(Närvaro_oktober[[#This Row],[L]:[O]])","v":0}]
[null,null,{"$f":"IFERROR(VLOOKUP(Närvaro_oktober[[#This Row],[Elev-ID]],Elevlista[],18,FALSE),\"\")","v":""},{"$nulls":31},{"$f":"COUNTIF(Närvaro_oktober[[#This Row],[1]:[31]],Kod_1)","v":0},{"$f":"COUNTIF(Närvaro_oktober[[#This Row],[1]:[31]],Kod_2)","v":0},{"$f":"COUNTIF(Närvaro_oktober[[#This Row],[1]:[31]],Kod_3)","v":0},{"$f":"COUNTIF(Närvaro_oktober[[#This Row],[1]:[31]],Kod_4)","v":0},{"$f":"SUM(Närvaro_oktober[[#This Row],[L]:[O]])","v":0}]
[null,null,{"$f":"IFERROR(VLOOKUP(Närvaro_oktober[[#This Row],[Elev-ID]],Elevlista[],18,FALSE),\"\")","v":""},{"$nulls":31},{"$f":"COUNTIF(Närvaro_oktober[[#This Row],[1]:[31]],Kod_1)","v":0},{"$f":"COUNTIF(Närvaro_oktober[[#This Row],[1]:[31]],Kod_2)","v":0},{"$f":"COUNTIF(Närvaro_oktober[[#This Row],[1]:[31]],Kod_3)","v":0},{"$f":"COUNTIF(Närvaro_oktober[[#This Row],[1]:[31]],Kod_4)","v":0},{"$f":"SUM(Närvaro_oktober[[#This Row],[L]:[O]])","v":0}]
[null,null,{"$f":"IFERROR(VLOOKUP(Närvaro_oktober[[#This Row],[Elev-ID]],Elevlista[],18,FALSE),\"\")","v":""},{"$nulls":31},{"$f":"COUNTIF(Närvaro_oktober[[#This Row],[1]:[31]],Kod_1)","v":0},{"$f":"COUNTIF(Närvaro_oktober[[#This Row],[1]:[31]],Kod_2)","v":0},{"$f":"COUNTIF(Närvaro_oktober[[#This Row],[1]:[31]],Kod_3)","v":0},{"$f":"COUNTIF(Närvaro_oktober[[#This Row],[1]:[31]],Kod_4)","v":0},{"$f":"SUM(Närvaro_oktober[[#This Row],[L]:[O]])","v":0}]
[null,null,{"$f":"IFERROR(VLOOKUP(Närvaro_oktober[[#This Row],[Elev-ID]],Elevlista[],18,FALSE),\"\")","v":""},{"$nulls":31},{"$f":"COUNTIF(Närvaro_oktober[[#This Row],[1]:[31]],Kod_1)","v":0},{"$f":"COUNTIF(Närvaro_oktober[[#This Row],[1]:[31]],Kod_2)","v":0},{"$f":"COUNTIF(Närvaro_oktober[[#This Row],[1]:[31]],Kod_3)","v":0},{"$f":"COUNTIF(Närvaro_oktober[[#This Row],[1]:[31]],Kod_4)","v":0},{"$f":"SUM(Närvaro_oktober[[#This Row],[L]:[O]])","v":0}]
[null,null,"Sammanlagda frånvarodagar'",{"$f":"COUNTIF(Närvaro_oktober[1],\"O\")+COUNTIF(Närvaro_oktober[1],\"L\")","v":0},{"$f":"COUNTIF(Närvaro_oktober[2],\"O\")+COUNTIF(Närvaro_oktober[2],\"L\")","v":0},{"$f":"COUNTIF(Närvaro_oktober[3],\"O\")+COUNTIF(Närvaro_oktober[3],\"L\")","v":0},{"$f":"COUNTIF(Närvaro_oktober[4],\"O\")+COUNTIF(Närvaro_oktober[4],\"L\")","v":0},{"$f":"COUNTIF(Närvaro_oktober[5],\"O\")+COUNTIF(Närvaro_oktober[5],\"L\")","v":0},{"$f":"COUNTIF(Närvaro_oktober[6],\"O\")+COUNTIF(Närvaro_oktober[6],\"L\")","v":0},{"$f":"COUNTIF(Närvaro_oktober[7],\"O\")+COUNTIF(Närvaro_oktober[7],\"L\")","v":0},{"$f":"COUNTIF(Närvaro_oktober[8],\"O\")+COUNTIF(Närvaro_oktober[8],\"L\")","v":0},{"$f":"COUNTIF(Närvaro_oktober[9],\"O\")+COUNTIF(Närvaro_oktober[9],\"L\")","v":0},{"$f":"COUNTIF(Närvaro_oktober[10],\"O\")+COUNTIF(Närvaro_oktober[10],\"L\")","v":0},{"$f":"COUNTIF(Närvaro_oktober[11],\"O\")+COUNTIF(Närvaro_oktober[11],\"L\")","v":0},{"$f":"COUNTIF(Närvaro_oktober[12],\"O\")+COUNTIF(Närvaro_oktober[12],\"L\")","v":0},{"$f":"COUNTIF(Närvaro_oktober[13],\"O\")+COUNTIF(Närvaro_oktober[13],\"L\")","v":0},{"$f":"COUNTIF(Närvaro_oktober[14],\"O\")+COUNTIF(Närvaro_oktober[14],\"L\")","v":0},{"$f":"COUNTIF(Närvaro_oktober[15],\"O\")+COUNTIF(Närvaro_oktober[15],\"L\")","v":0},{"$f":"COUNTIF(Närvaro_oktober[16],\"O\")+COUNTIF(Närvaro_oktober[16],\"L\")","v":0},{"$f":"COUNTIF(Närvaro_oktober[17],\"O\")+COUNTIF(Närvaro_oktober[17],\"L\")","v":0},{"$f":"COUNTIF(Närvaro_oktober[18],\"O\")+COUNTIF(Närvaro_oktober[18],\"L\")","v":0},{"$f":"COUNTIF(Närvaro_oktober[19],\"O\")+COUNTIF(Närvaro_oktober[19],\"L\")","v":0},{"$f":"COUNTIF(Närvaro_oktober[20],\"O\")+COUNTIF(Närvaro_oktober[20],\"L\")","v":0},{"$f":"COUNTIF(Närvaro_oktober[21],\"O\")+COUNTIF(Närvaro_oktober[21],\"L\")","v":0},{"$f":"COUNTIF(Närvaro_oktober[22],\"O\")+COUNTIF(Närvaro_oktober[22],\"L\")","v":0},{"$f":"COUNTIF(Närvaro_oktober[23],\"O\")+COUNTIF(Närvaro_oktober[23],\"L\")","v":0},{"$f":"COUNTIF(Närvaro_oktober[24],\"O\")+COUNTIF(Närvaro_oktober[24],\"L\")","v":0},{"$f":"COUNTIF(Närvaro_oktober[25],\"O\")+COUNTIF(Närvaro_oktober[25],\"L\")","v":0},{"$f":"COUNTIF(Närvaro_oktober[26],\"O\")+COUNTIF(Närvaro_oktober[26],\"L\")","v":0},{"$f":"COUNTIF(Närvaro_oktober[27],\"O\")+COUNTIF(Närvaro_oktober[27],\"L\")","v":0},{"$f":"COUNTIF(Närvaro_oktober[28],\"O\")+COUNTIF(Närvaro_oktober[28],\"L\")","v":0},{"$f":"COUNTIF(Närvaro_oktober[29],\"O\")+COUNTIF(Närvaro_oktober[29],\"L\")","v":0},{"$f":"COUNTIF(Närvaro_oktober[30],\"O\")+COUNTIF(Närvaro_oktober[30],\"L\")","v":0},{"$f":"COUNTIF(Närvaro_oktober[31],\"O\")+COUNTIF(Närvaro_oktober[31],\"L\")","v":0},{"$f":"SUBTOTAL(109,Närvaro_oktober[S])","v":0},{"$f":"SUBTOTAL(109,Närvaro_oktober[L])","v":0},{"$f":"SUBTOTAL(109,Närvaro_oktober[O])","v":0},{"$f":"SUBTOTAL(109,Närvaro_oktober[N])","v":0},{"$f":"SUBTOTAL(109,Närvaro_oktober[Frånvarodagar])","v":0}]

{"sheet":"November","index":5,"n_rows":12,"n_cols":39,"rows_kept":12,"merged":[[4,34,4,38]]}
["NÄRVARORAPPORT FÖR ELEVER",{"$nulls":36},"Skolårets början",{"$f":"Kalenderår","v":2012}]
[]
[null,null,{"$f":"Färgkod_text","v":"FÄRGKODNING "},{"$f":"Kod_1","v":"S"},{"$f":"Kod1_text","v":"Sen ankomst"},null,null,{"$f":"Kod_2","v":"L"},{"$f":"Kod2_text","v":"Lovlig frånvaro"},null,null,{"$f":"Kod_3","v":"O"},{"$f":"Kod3_text","v":"Olovlig frånvaro"},null,null,{"$f":"Kod_4","v":"N"},{"$f":"Kod4_text","v":"Närvarande"},null,null,{"$f":"Kod_5","v":"I"},{"$f":"Kod5_text","v":"Ingen skola"}]
[]
[null,{"$f":"DATE(Kalenderår,11,1)","v":"2012-11-01"},null,{"$f":"TEXT(WEEKDAY(DATE(Kalenderår,11,1),1),\"[$-41d]aaa\")","v":"to"},{"$f":"TEXT(WEEKDAY(DATE(Kalenderår,11,2),1),\"[$-41d]aaa\")","v":"fr"},{"$f":"TEXT(WEEKDAY(DATE(Kalenderår,11,3),1),\"[$-41d]aaa\")","v":"lö"},{"$f":"TEXT(WEEKDAY(DATE(Kalenderår,11,4),1),\"[$-41d]aaa\")","v":"sö"},{"$f":"TEXT(WEEKDAY(DATE(Kalenderår,11,5),1),\"[$-41d]aaa\")","v":"må"},{"$f":"TEXT(WEEKDAY(DATE(Kalenderår,11,6),1),\"[$-41d]aaa\")","v":"ti"},{"$f":"TEXT(WEEKDAY(DATE(Kalenderår,11,7),1),\"[$-41d]aaa\")","v":"on"},{"$f":"TEXT(WEEKDAY(DATE(Kalenderår,11,8),1),\"[$-41d]aaa\")","v":"to"},{"$f":"TEXT(WEEKDAY(DATE(Kalenderår,11,9),1),\"[$-41d]aaa\")","v":"fr"},{"$f":"TEXT(WEEKDAY(DATE(Kalenderår,11,10),1),\"[$-41d]aaa\")","v":"lö"},{"$f":"TEXT(WEEKDAY(DATE(Kalenderår,11,11),1),\"[$-41d]aaa\")","v":"sö"},{"$f":"TEXT(WEEKDAY(DATE(Kalenderår,11,12),1),\"[$-41d]aaa\")","v":"må"},{"$f":"TEXT(WEEKDAY(DATE(Kalenderår,11,13),1),\"[$-41d]aaa\")","v":"ti"},{"$f":"TEXT(WEEKDAY(DATE(Kalenderår,11,14),1),\"[$-41d]aaa\")","v":"on"},{"$f":"TEXT(WEEKDAY(DATE(Kalenderår,11,15),1),\"[$-41d]aaa\")","v":"to"},{"$f":"TEXT(WEEKDAY(DATE(Kalenderår,11,16),1),\"[$-41d]aaa\")","v":"fr"},{"$f":"TEXT(WEEKDAY(DATE(Kalenderår,11,17),1),\"[$-41d]aaa\")","v":"lö"},{"$f":"TEXT(WEEKDAY(DATE(Kalenderår,11,18),1),\"[$-41d]aaa\")","v":"sö"},{"$f":"TEXT(WEEKDAY(DATE(Kalenderår,11,19),1),\"[$-41d]aaa\")","v":"må"},{"$f":"TEXT(WEEKDAY(DATE(Kalenderår,11,20),1),\"[$-41d]aaa\")","v":"ti"},{"$f":"TEXT(WEEKDAY(DATE(Kalenderår,11,21),1),\"[$-41d]aaa\")","v":"on"},{"$f":"TEXT(WEEKDAY(DATE(Kalenderår,11,22),1),\"[$-41d]aaa\")","v":"to"},{"$f":"TEXT(WEEKDAY(DATE(Kalenderår,11,23),1),\"[$-41d]aaa\")","v":"fr"},{"$f":"TEXT(WEEKDAY(DATE(Kalenderår,11,24),1),\"[$-41d]aaa\")","v":"lö"},{"$f":"TEXT(WEEKDAY(DATE(Kalenderår,11,25),1),\"[$-41d]aaa\")","v":"sö"},{"$f":"TEXT(WEEKDAY(DATE(Kalenderår,11,26),1),\"[$-41d]aaa\")","v":"må"},{"$f":"TEXT(WEEKDAY(DATE(Kalenderår,11,27),1),\"[$-41d]aaa\")","v":"ti"},{"$f":"TEXT(WEEKDAY(DATE(Kalenderår,11,28),1),\"[$-41d]aaa\")","v":"on"},{"$f":"TEXT(WEEKDAY(DATE(Kalenderår,11,29),1),\"[$-41d]aaa\")","v":"to"},{"$f":"TEXT(WEEKDAY(DATE(Kalenderår,11,30),1),\"[$-41d]aaa\")","v":"fr"},null,"Summor"]
[null,"Elev-ID","Elevens namn","1","2","3","4","5","6","7","8","9","10","11","12","13","14","15","16","17","18","19","20","21","22","23","24","25","26","27","28","29","30"," ","S","L","O","N","Frånvarodagar"]
[null,null,{"$f":"IFERROR(VLOOKUP(Närvaro_november[[#This Row],[Elev-ID]],Elevlista[],18,FALSE),\"\")","v":""},{"$nulls":31},{"$f":"COUNTIF(Närvaro_november[[#This Row],[1]:[ ]],Kod_1)","v":0},{"$f":"COUNTIF(Närvaro_november[[#This Row],[1]:[ ]],Kod_2)","v":0},{"$f":"COUNTIF(Närvaro_november[[#This Row],[1]:[ ]],Kod_3)","v":0},{"$f":"COUNTIF(Närvaro_november[[#This Row],[1]:[ ]],Kod_4)","v":0},{"$f":"SUM(Närvaro_november[[#This Row],[L]:[O]])","v":0}]
[null,null,{"$f":"IFERROR(VLOOKUP(Närvaro_november[[#This Row],[Elev-ID]],Elevlista[],18,FALSE),\"\")","v":""},{"$nulls":31},{"$f":"COUNTIF(Närvaro_november[[#This Row],[1]:[ ]],Kod_1)","v":0},{"$f":"COUNTIF(Närvaro_november[[#This Row],[1]:[ ]],Kod_2)","v":0},{"$f":"COUNTIF(Närvaro_november[[#This Row],[1]:[ ]],Kod_3)","v":0},{"$f":"COUNTIF(Närvaro_november[[#This Row],[1]:[ ]],Kod_4)","v":0},{"$f":"SUM(Närvaro_november[[#This Row],[L]:[O]])","v":0}]
[null,null,{"$f":"IFERROR(VLOOKUP(Närvaro_november[[#This Row],[Elev-ID]],Elevlista[],18,FALSE),\"\")","v":""},{"$nulls":31},{"$f":"COUNTIF(Närvaro_november[[#This Row],[1]:[ ]],Kod_1)","v":0},{"$f":"COUNTIF(Närvaro_november[[#This Row],[1]:[ ]],Kod_2)","v":0},{"$f":"COUNTIF(Närvaro_november[[#This Row],[1]:[ ]],Kod_3)","v":0},{"$f":"COUNTIF(Närvaro_november[[#This Row],[1]:[ ]],Kod_4)","v":0},{"$f":"SUM(Närvaro_november[[#This Row],[L]:[O]])","v":0}]
[null,null,{"$f":"IFERROR(VLOOKUP(Närvaro_november[[#This Row],[Elev-ID]],Elevlista[],18,FALSE),\"\")","v":""},{"$nulls":31},{"$f":"COUNTIF(Närvaro_november[[#This Row],[1]:[ ]],Kod_1)","v":0},{"$f":"COUNTIF(Närvaro_november[[#This Row],[1]:[ ]],Kod_2)","v":0},{"$f":"COUNTIF(Närvaro_november[[#This Row],[1]:[ ]],Kod_3)","v":0},{"$f":"COUNTIF(Närvaro_november[[#This Row],[1]:[ ]],Kod_4)","v":0},{"$f":"SUM(Närvaro_november[[#This Row],[L]:[O]])","v":0}]
[null,null,{"$f":"IFERROR(VLOOKUP(Närvaro_november[[#This Row],[Elev-ID]],Elevlista[],18,FALSE),\"\")","v":""},{"$nulls":31},{"$f":"COUNTIF(Närvaro_november[[#This Row],[1]:[ ]],Kod_1)","v":0},{"$f":"COUNTIF(Närvaro_november[[#This Row],[1]:[ ]],Kod_2)","v":0},{"$f":"COUNTIF(Närvaro_november[[#This Row],[1]:[ ]],Kod_3)","v":0},{"$f":"COUNTIF(Närvaro_november[[#This Row],[1]:[ ]],Kod_4)","v":0},{"$f":"SUM(Närvaro_november[[#This Row],[L]:[O]])","v":0}]
[null,null,"Sammanlagda frånvarodagar'",{"$f":"COUNTIF(Närvaro_november[1],\"O\")+COUNTIF(Närvaro_november[1],\"L\")","v":0},{"$f":"COUNTIF(Närvaro_november[2],\"O\")+COUNTIF(Närvaro_november[2],\"L\")","v":0},{"$f":"COUNTIF(Närvaro_november[3],\"O\")+COUNTIF(Närvaro_november[3],\"L\")","v":0},{"$f":"COUNTIF(Närvaro_november[4],\"O\")+COUNTIF(Närvaro_november[4],\"L\")","v":0},{"$f":"COUNTIF(Närvaro_november[5],\"O\")+COUNTIF(Närvaro_november[5],\"L\")","v":0},{"$f":"COUNTIF(Närvaro_november[6],\"O\")+COUNTIF(Närvaro_november[6],\"L\")","v":0},{"$f":"COUNTIF(Närvaro_november[7],\"O\")+COUNTIF(Närvaro_november[7],\"L\")","v":0},{"$f":"COUNTIF(Närvaro_november[8],\"O\")+COUNTIF(Närvaro_november[8],\"L\")","v":0},{"$f":"COUNTIF(Närvaro_november[9],\"O\")+COUNTIF(Närvaro_november[9],\"L\")","v":0},{"$f":"COUNTIF(Närvaro_november[10],\"O\")+COUNTIF(Närvaro_november[10],\"L\")","v":0},{"$f":"COUNTIF(Närvaro_november[11],\"O\")+COUNTIF(Närvaro_november[11],\"L\")","v":0},{"$f":"COUNTIF(Närvaro_november[12],\"O\")+COUNTIF(Närvaro_november[12],\"L\")","v":0},{"$f":"COUNTIF(Närvaro_november[13],\"O\")+COUNTIF(Närvaro_november[13],\"L\")","v":0},{"$f":"COUNTIF(Närvaro_november[14],\"O\")+COUNTIF(Närvaro_november[14],\"L\")","v":0},{"$f":"COUNTIF(Närvaro_november[15],\"O\")+COUNTIF(Närvaro_november[15],\"L\")","v":0},{"$f":"COUNTIF(Närvaro_november[16],\"O\")+COUNTIF(Närvaro_november[16],\"L\")","v":0},{"$f":"COUNTIF(Närvaro_november[17],\"O\")+COUNTIF(Närvaro_november[17],\"L\")","v":0},{"$f":"COUNTIF(Närvaro_november[18],\"O\")+COUNTIF(Närvaro_november[18],\"L\")","v":0},{"$f":"COUNTIF(Närvaro_november[19],\"O\")+COUNTIF(Närvaro_november[19],\"L\")","v":0},{"$f":"COUNTIF(Närvaro_november[20],\"O\")+COUNTIF(Närvaro_november[20],\"L\")","v":0},{"$f":"COUNTIF(Närvaro_november[21],\"O\")+COUNTIF(Närvaro_november[21],\"L\")","v":0},{"$f":"COUNTIF(Närvaro_november[22],\"O\")+COUNTIF(Närvaro_november[22],\"L\")","v":0},{"$f":"COUNTIF(Närvaro_november[23],\"O\")+COUNTIF(Närvaro_november[23],\"L\")","v":0},{"$f":"COUNTIF(Närvaro_november[24],\"O\")+COUNTIF(Närvaro_november[24],\"L\")","v":0},{"$f":"COUNTIF(Närvaro_november[25],\"O\")+COUNTIF(Närvaro_november[25],\"L\")","v":0},{"$f":"COUNTIF(Närvaro_november[26],\"O\")+COUNTIF(Närvaro_november[26],\"L\")","v":0},{"$f":"COUNTIF(Närvaro_november[27],\"O\")+COUNTIF(Närvaro_november[27],\"L\")","v":0},{"$f":"COUNTIF(Närvaro_november[28],\"O\")+COUNTIF(Närvaro_november[28],\"L\")","v":0},{"$f":"COUNTIF(Närvaro_november[29],\"O\")+COUNTIF(Närvaro_november[29],\"L\")","v":0},{"$f":"COUNTIF(Närvaro_november[30],\"O\")+COUNTIF(Närvaro_november[30],\"L\")","v":0},{"$f":"COUNTIF(Närvaro_november[[ ]],\"O\")+COUNTIF(Närvaro_november[[ ]],\"L\")","v":0},{"$f":"SUBTOTAL(109,Närvaro_november[S])","v":0},{"$f":"SUBTOTAL(109,Närvaro_november[L])","v":0},{"$f":"SUBTOTAL(109,Närvaro_november[O])","v":0},{"$f":"SUBTOTAL(109,Närvaro_november[N])","v":0},{"$f":"SUBTOTAL(109,Närvaro_november[Frånvarodagar])","v":0}]

{"sheet":"December","index":6,"n_rows":12,"n_cols":39,"rows_kept":12,"merged":[[4,34,4,38]]}
["NÄRVARORAPPORT FÖR ELEVER",{"$nulls":36},"Skolårets början",{"$f":"Kalenderår","v":2012}]
[]
[null,null,{"$f":"Färgkod_text","v":"FÄRGKODNING "},{"$f":"Kod_1","v":"S"},{"$f":"Kod1_text","v":"Sen ankomst"},null,null,{"$f":"Kod_2","v":"L"},{"$f":"Kod2_text","v":"Lovlig frånvaro"},null,null,{"$f":"Kod_3","v":"O"},{"$f":"Kod3_text","v":"Olovlig frånvaro"},null,null,{"$f":"Kod_4","v":"N"},{"$f":"Kod4_text","v":"Närvarande"},null,null,{"$f":"Kod_5","v":"I"},{"$f":"Kod5_text","v":"Ingen skola"}]
[]
[null,{"$f":"DATE(Kalenderår,12,1)","v":"2012-12-01"},null,{"$f":"TEXT(WEEKDAY(DATE(Kalenderår,12,1),1),\"[$-41d]aaa\")","v":"lö"},{"$f":"TEXT(WEEKDAY(DATE(Kalenderår,12,2),1),\"[$-41d]aaa\")","v":"sö"},{"$f":"TEXT(WEEKDAY(DATE(Kalenderår,12,3),1),\"[$-41d]aaa\")","v":"må"},{"$f":"TEXT(WEEKDAY(DATE(Kalenderår,12,4),1),\"[$-41d]aaa\")","v":"ti"},{"$f":"TEXT(WEEKDAY(DATE(Kalenderår,12,5),1),\"[$-41d]aaa\")","v":"on"},{"$f":"TEXT(WEEKDAY(DATE(Kalenderår,12,6),1),\"[$-41d]aaa\")","v":"to"},{"$f":"TEXT(WEEKDAY(DATE(Kalenderår,12,7),1),\"[$-41d]aaa\")","v":"fr"},{"$f":"TEXT(WEEKDAY(DATE(Kalenderår,12,8),1),\"[$-41d]aaa\")","v":"lö"},{"$f":"TEXT(WEEKDAY(DATE(Kalenderår,12,9),1),\"[$-41d]aaa\")","v":"sö"},{"$f":"TEXT(WEEKDAY(DATE(Kalenderår,12,10),1),\"[$-41d]aaa\")","v":"må"},{"$f":"TEXT(WEEKDAY(DATE(Kalenderår,12,11),1),\"[$-41d]aaa\")","v":"ti"},{"$f":"TEXT(WEEKDAY(DATE(Kalenderår,12,12),1),\"[$-41d]aaa\")","v":"on"},{"$f":"TEXT(WEEKDAY(DATE(Kalenderår,12,13),1),\"[$-41d]aaa\")","v":"to"},{"$f":"TEXT(WEEKDAY(DATE(Kalenderår,12,14),1),\"[$-41d]aaa\")","v":"fr"},{"$f":"TEXT(WEEKDAY(DATE(Kalenderår,12,15),1),\"[$-41d]aaa\")","v":"lö"},{"$f":"TEXT(WEEKDAY(DATE(Kalenderår,12,16),1),\"[$-41d]aaa\")","v":"sö"},{"$f":"TEXT(WEEKDAY(DATE(Kalenderår,12,17),1),\"[$-41d]aaa\")","v":"må"},{"$f":"TEXT(WEEKDAY(DATE(Kalenderår,12,18),1),\"[$-41d]aaa\")","v":"ti"},{"$f":"TEXT(WEEKDAY(DATE(Kalenderår,12,19),1),\"[$-41d]aaa\")","v":"on"},{"$f":"TEXT(WEEKDAY(DATE(Kalenderår,12,20),1),\"[$-41d]aaa\")","v":"to"},{"$f":"TEXT(WEEKDAY(DATE(Kalenderår,12,21),1),\"[$-41d]aaa\")","v":"fr"},{"$f":"TEXT(WEEKDAY(DATE(Kalenderår,12,22),1),\"[$-41d]aaa\")","v":"lö"},{"$f":"TEXT(WEEKDAY(DATE(Kalenderår,12,23),1),\"[$-41d]aaa\")","v":"sö"},{"$f":"TEXT(WEEKDAY(DATE(Kalenderår,12,24),1),\"[$-41d]aaa\")","v":"må"},{"$f":"TEXT(WEEKDAY(DATE(Kalenderår,12,25),1),\"[$-41d]aaa\")","v":"ti"},{"$f":"TEXT(WEEKDAY(DATE(Kalenderår,12,26),1),\"[$-41d]aaa\")","v":"on"},{"$f":"TEXT(WEEKDAY(DATE(Kalenderår,12,27),1),\"[$-41d]aaa\")","v":"to"},{"$f":"TEXT(WEEKDAY(DATE(Kalenderår,12,28),1),\"[$-41d]aaa\")","v":"fr"},{"$f":"TEXT(WEEKDAY(DATE(Kalenderår,12,29),1),\"[$-41d]aaa\")","v":"lö"},{"$f":"TEXT(WEEKDAY(DATE(Kalenderår,12,30),1),\"[$-41d]aaa\")","v":"sö"},{"$f":"TEXT(WEEKDAY(DATE(Kalenderår,12,31),1),\"[$-41d]aaa\")","v":"må"},"Summor"]
[null,"Elev-ID","Elevens namn","1","2","3","4","5","6","7","8","9","10","11","12","13","14","15","16","17","18","19","20","21","22","23","24","25","26","27","28","29","30","31","S","L","O","N","Frånvarodagar"]
[null,null,{"$f":"IFERROR(VLOOKUP(Närvaro_december[[#This Row],[Elev-ID]],Elevlista[],18,FALSE),\"\")","v":""},{"$nulls":31},{"$f":"COUNTIF(Närvaro_december[[#This Row],[1]:[31]],Kod_1)","v":0},{"$f":"COUNTIF(Närvaro_december[[#This Row],[1]:[31]],Kod_2)","v":0},{"$f":"COUNTIF(Närvaro_december[[#This Row],[1]:[31]],Kod_3)","v":0},{"$f":"COUNTIF(Närvaro_december[[#This Row],[1]:[31]],Kod_4)","v":0},{"$f":"SUM(Närvaro_december[[#This Row],[L]:[O]])","v":0}]
[null,null,{"$f":"IFERROR(VLOOKUP(Närvaro_december[[#This Row],[Elev-ID]],Elevlista[],18,FALSE),\"\")","v":""},{"$nulls":31},{"$f":"COUNTIF(Närvaro_december[[#This Row],[1]:[31]],Kod_1)","v":0},{"$f":"COUNTIF(Närvaro_december[[#This Row],[1]:[31]],Kod_2)","v":0},{"$f":"COUNTIF(Närvaro_december[[#This Row],[1]:[31]],Kod_3)","v":0},{"$f":"COUNTIF(Närvaro_december[[#This Row],[1]:[31]],Kod_4)","v":0},{"$f":"SUM(Närvaro_december[[#This Row],[L]:[O]])","v":0}]
[null,null,{"$f":"IFERROR(VLOOKUP(Närvaro_december[[#This Row],[Elev-ID]],Elevlista[],18,FALSE),\"\")","v":""},{"$nulls":31},{"$f":"COUNTIF(Närvaro_december[[#This Row],[1]:[31]],Kod_1)","v":0},{"$f":"COUNTIF(Närvaro_december[[#This Row],[1]:[31]],Kod_2)","v":0},{"$f":"COUNTIF(Närvaro_december[[#This Row],[1]:[31]],Kod_3)","v":0},{"$f":"COUNTIF(Närvaro_december[[#This Row],[1]:[31]],Kod_4)","v":0},{"$f":"SUM(Närvaro_december[[#This Row],[L]:[O]])","v":0}]
[null,null,{"$f":"IFERROR(VLOOKUP(Närvaro_december[[#This Row],[Elev-ID]],Elevlista[],18,FALSE),\"\")","v":""},{"$nulls":31},{"$f":"COUNTIF(Närvaro_december[[#This Row],[1]:[31]],Kod_1)","v":0},{"$f":"COUNTIF(Närvaro_december[[#This Row],[1]:[31]],Kod_2)","v":0},{"$f":"COUNTIF(Närvaro_december[[#This Row],[1]:[31]],Kod_3)","v":0},{"$f":"COUNTIF(Närvaro_december[[#This Row],[1]:[31]],Kod_4)","v":0},{"$f":"SUM(Närvaro_december[[#This Row],[L]:[O]])","v":0}]
[null,null,{"$f":"IFERROR(VLOOKUP(Närvaro_december[[#This Row],[Elev-ID]],Elevlista[],18,FALSE),\"\")","v":""},{"$nulls":31},{"$f":"COUNTIF(Närvaro_december[[#This Row],[1]:[31]],Kod_1)","v":0},{"$f":"COUNTIF(Närvaro_december[[#This Row],[1]:[31]],Kod_2)","v":0},{"$f":"COUNTIF(Närvaro_december[[#This Row],[1]:[31]],Kod_3)","v":0},{"$f":"COUNTIF(Närvaro_december[[#This Row],[1]:[31]],Kod_4)","v":0},{"$f":"SUM(Närvaro_december[[#This Row],[L]:[O]])","v":0}]
[null,null,"Sammanlagda frånvarodagar'",{"$f":"COUNTIF(Närvaro_december[1],\"O\")+COUNTIF(Närvaro_december[1],\"L\")","v":0},{"$f":"COUNTIF(Närvaro_december[2],\"O\")+COUNTIF(Närvaro_december[2],\"L\")","v":0},{"$f":"COUNTIF(Närvaro_december[3],\"O\")+COUNTIF(Närvaro_december[3],\"L\")","v":0},{"$f":"COUNTIF(Närvaro_december[4],\"O\")+COUNTIF(Närvaro_december[4],\"L\")","v":0},{"$f":"COUNTIF(Närvaro_december[5],\"O\")+COUNTIF(Närvaro_december[5],\"L\")","v":0},{"$f":"COUNTIF(Närvaro_december[6],\"O\")+COUNTIF(Närvaro_december[6],\"L\")","v":0},{"$f":"COUNTIF(Närvaro_december[7],\"O\")+COUNTIF(Närvaro_december[7],\"L\")","v":0},{"$f":"COUNTIF(Närvaro_december[8],\"O\")+COUNTIF(Närvaro_december[8],\"L\")","v":0},{"$f":"COUNTIF(Närvaro_december[9],\"O\")+COUNTIF(Närvaro_december[9],\"L\")","v":0},{"$f":"COUNTIF(Närvaro_december[10],\"O\")+COUNTIF(Närvaro_december[10],\"L\")","v":0},{"$f":"COUNTIF(Närvaro_december[11],\"O\")+COUNTIF(Närvaro_december[11],\"L\")","v":0},{"$f":"COUNTIF(Närvaro_december[12],\"O\")+COUNTIF(Närvaro_december[12],\"L\")","v":0},{"$f":"COUNTIF(Närvaro_december[13],\"O\")+COUNTIF(Närvaro_december[13],\"L\")","v":0},{"$f":"COUNTIF(Närvaro_december[14],\"O\")+COUNTIF(Närvaro_december[14],\"L\")","v":0},{"$f":"COUNTIF(Närvaro_december[15],\"O\")+COUNTIF(Närvaro_december[15],\"L\")","v":0},{"$f":"COUNTIF(Närvaro_december[16],\"O\")+COUNTIF(Närvaro_december[16],\"L\")","v":0},{"$f":"COUNTIF(Närvaro_december[17],\"O\")+COUNTIF(Närvaro_december[17],\"L\")","v":0},{"$f":"COUNTIF(Närvaro_december[18],\"O\")+COUNTIF(Närvaro_december[18],\"L\")","v":0},{"$f":"COUNTIF(Närvaro_december[19],\"O\")+COUNTIF(Närvaro_december[19],\"L\")","v":0},{"$f":"COUNTIF(Närvaro_december[20],\"O\")+COUNTIF(Närvaro_december[20],\"L\")","v":0},{"$f":"COUNTIF(Närvaro_december[21],\"O\")+COUNTIF(Närvaro_december[21],\"L\")","v":0},{"$f":"COUNTIF(Närvaro_december[22],\"O\")+COUNTIF(Närvaro_december[22],\"L\")","v":0},{"$f":"COUNTIF(Närvaro_december[23],\"O\")+COUNTIF(Närvaro_december[23],\"L\")","v":0},{"$f":"COUNTIF(Närvaro_december[24],\"O\")+COUNTIF(Närvaro_december[24],\"L\")","v":0},{"$f":"COUNTIF(Närvaro_december[25],\"O\")+COUNTIF(Närvaro_december[25],\"L\")","v":0},{"$f":"COUNTIF(Närvaro_december[26],\"O\")+COUNTIF(Närvaro_december[26],\"L\")","v":0},{"$f":"COUNTIF(Närvaro_december[27],\"O\")+COUNTIF(Närvaro_december[27],\"L\")","v":0},{"$f":"COUNTIF(Närvaro_december[28],\"O\")+COUNTIF(Närvaro_december[28],\"L\")","v":0},{"$f":"COUNTIF(Närvaro_december[29],\"O\")+COUNTIF(Närvaro_december[29],\"L\")","v":0},{"$f":"COUNTIF(Närvaro_december[30],\"O\")+COUNTIF(Närvaro_december[30],\"L\")","v":0},{"$f":"COUNTIF(Närvaro_december[31],\"O\")+COUNTIF(Närvaro_december[31],\"L\")","v":0},{"$f":"SUBTOTAL(109,Närvaro_december[S])","v":0},{"$f":"SUBTOTAL(109,Närvaro_december[L])","v":0},{"$f":"SUBTOTAL(109,Närvaro_december[O])","v":0},{"$f":"SUBTOTAL(109,Närvaro_december[N])","v":0},{"$f":"SUBTOTAL(109,Närvaro_december[Frånvarodagar])","v":0}]

{"sheet":"Januari","index":7,"n_rows":12,"n_cols":39,"rows_kept":12,"merged":[[4,34,4,38]]}
["NÄRVARORAPPORT FÖR ELEVER",{"$nulls":36},"Skolårets början",{"$f":"Kalenderår","v":2012}]
[]
[null,null,{"$f":"Färgkod_text","v":"FÄRGKODNING "},{"$f":"Kod_1","v":"S"},{"$f":"Kod1_text","v":"Sen ankomst"},null,null,{"$f":"Kod_2","v":"L"},{"$f":"Kod2_text","v":"Lovlig frånvaro"},null,null,{"$f":"Kod_3","v":"O"},{"$f":"Kod3_text","v":"Olovlig frånvaro"},null,null,{"$f":"Kod_4","v":"N"},{"$f":"Kod4_text","v":"Närvarande"},null,null,{"$f":"Kod_5","v":"I"},{"$f":"Kod5_text","v":"Ingen skola"}]
[]
[null,{"$f":"DATE(Kalenderår+1,1,1)","v":"2013-01-01"},null,{"$f":"TEXT(WEEKDAY(DATE(Kalenderår+1,1,1),1),\"[$-41d]aaa\")","v":"ti"},{"$f":"TEXT(WEEKDAY(DATE(Kalenderår+1,1,2),1),\"[$-41d]aaa\")","v":"on"},{"$f":"TEXT(WEEKDAY(DATE(Kalenderår+1,1,3),1),\"[$-41d]aaa\")","v":"to"},{"$f":"TEXT(WEEKDAY(DATE(Kalenderår+1,1,4),1),\"[$-41d]aaa\")","v":"fr"},{"$f":"TEXT(WEEKDAY(DATE(Kalenderår+1,1,5),1),\"[$-41d]aaa\")","v":"lö"},{"$f":"TEXT(WEEKDAY(DATE(Kalenderår+1,1,6),1),\"[$-41d]aaa\")","v":"sö"},{"$f":"TEXT(WEEKDAY(DATE(Kalenderår+1,1,7),1),\"[$-41d]aaa\")","v":"må"},{"$f":"TEXT(WEEKDAY(DATE(Kalenderår+1,1,8),1),\"[$-41d]aaa\")","v":"ti"},{"$f":"TEXT(WEEKDAY(DATE(Kalenderår+1,1,9),1),\"[$-41d]aaa\")","v":"on"},{"$f":"TEXT(WEEKDAY(DATE(Kalenderår+1,1,10),1),\"[$-41d]aaa\")","v":"to"},{"$f":"TEXT(WEEKDAY(DATE(Kalenderår+1,1,11),1),\"[$-41d]aaa\")","v":"fr"},{"$f":"TEXT(WEEKDAY(DATE(Kalenderår+1,1,12),1),\"[$-41d]aaa\")","v":"lö"},{"$f":"TEXT(WEEKDAY(DATE(Kalenderår+1,1,13),1),\"[$-41d]aaa\")","v":"sö"},{"$f":"TEXT(WEEKDAY(DATE(Kalenderår+1,1,14),1),\"[$-41d]aaa\")","v":"må"},{"$f":"TEXT(WEEKDAY(DATE(Kalenderår+1,1,15),1),\"[$-41d]aaa\")","v":"ti"},{"$f":"TEXT(WEEKDAY(DATE(Kalenderår+1,1,16),1),\"[$-41d]aaa\")","v":"on"},{"$f":"TEXT(WEEKDAY(DATE(Kalenderår+1,1,17),1),\"[$-41d]aaa\")","v":"to"},{"$f":"TEXT(WEEKDAY(DATE(Kalenderår+1,1,18),1),\"[$-41d]aaa\")","v":"fr"},{"$f":"TEXT(WEEKDAY(DATE(Kalenderår+1,1,19),1),\"[$-41d]aaa\")","v":"lö"},{"$f":"TEXT(WEEKDAY(DATE(Kalenderår+1,1,20),1),\"[$-41d]aaa\")","v":"sö"},{"$f":"TEXT(WEEKDAY(DATE(Kalenderår+1,1,21),1),\"[$-41d]aaa\")","v":"må"},{"$f":"TEXT(WEEKDAY(DATE(Kalenderår+1,1,22),1),\"[$-41d]aaa\")","v":"ti"},{"$f":"TEXT(WEEKDAY(DATE(Kalenderår+1,1,23),1),\"[$-41d]aaa\")","v":"on"},{"$f":"TEXT(WEEKDAY(DATE(Kalenderår+1,1,24),1),\"[$-41d]aaa\")","v":"to"},{"$f":"TEXT(WEEKDAY(DATE(Kalenderår+1,1,25),1),\"[$-41d]aaa\")","v":"fr"},{"$f":"TEXT(WEEKDAY(DATE(Kalenderår+1,1,26),1),\"[$-41d]aaa\")","v":"lö"},{"$f":"TEXT(WEEKDAY(DATE(Kalenderår+1,1,27),1),\"[$-41d]aaa\")","v":"sö"},{"$f":"TEXT(WEEKDAY(DATE(Kalenderår+1,1,28),1),\"[$-41d]aaa\")","v":"må"},{"$f":"TEXT(WEEKDAY(DATE(Kalenderår+1,1,29),1),\"[$-41d]aaa\")","v":"ti"},{"$f":"TEXT(WEEKDAY(DATE(Kalenderår+1,1,30),1),\"[$-41d]aaa\")","v":"on"},{"$f":"TEXT(WEEKDAY(DATE(Kalenderår+1,1,31),1),\"[$-41d]aaa\")","v":"to"},"Summor"]
[null,"Elev-ID","Elevens namn","1","2","3","4","5","6","7","8","9","10","11","12","13","14","15","16","17","18","19","20","21","22","23","24","25","26","27","28","29","30","31","S","L","O","N","Frånvarodagar"]
[null,null,{"$f":"IFERROR(VLOOKUP(Närvaro_januari[[#This Row],[Elev-ID]],Elevlista[],18,FALSE),\"\")","v":""},{"$nulls":31},{"$f":"COUNTIF(Närvaro_januari[[#This Row],[1]:[31]],Kod_1)","v":0},{"$f":"COUNTIF(Närvaro_januari[[#This Row],[1]:[31]],Kod_2)","v":0},{"$f":"COUNTIF(Närvaro_januari[[#This Row],[1]:[31]],Kod_3)","v":0},{"$f":"COUNTIF(Närvaro_januari[[#This Row],[1]:[31]],Kod_4)","v":0},{"$f":"SUM(Närvaro_januari[[#This Row],[L]:[O]])","v":0}]
[null,null,{"$f":"IFERROR(VLOOKUP(Närvaro_januari[[#This Row],[Elev-ID]],Elevlista[],18,FALSE),\"\")","v":""},{"$nulls":31},{"$f":"COUNTIF(Närvaro_januari[[#This Row],[1]:[31]],Kod_1)","v":0},{"$f":"COUNTIF(Närvaro_januari[[#This Row],[1]:[31]],Kod_2)","v":0},{"$f":"COUNTIF(Närvaro_januari[[#This Row],[1]:[31]],Kod_3)","v":0},{"$f":"COUNTIF(Närvaro_januari[[#This Row],[1]:[31]],Kod_4)","v":0},{"$f":"SUM(Närvaro_januari[[#This Row],[L]:[O]])","v":0}]
[null,null,{"$f":"IFERROR(VLOOKUP(Närvaro_januari[[#This Row],[Elev-ID]],Elevlista[],18,FALSE),\"\")","v":""},{"$nulls":31},{"$f":"COUNTIF(Närvaro_januari[[#This Row],[1]:[31]],Kod_1)","v":0},{"$f":"COUNTIF(Närvaro_januari[[#This Row],[1]:[31]],Kod_2)","v":0},{"$f":"COUNTIF(Närvaro_januari[[#This Row],[1]:[31]],Kod_3)","v":0},{"$f":"COUNTIF(Närvaro_januari[[#This Row],[1]:[31]],Kod_4)","v":0},{"$f":"SUM(Närvaro_januari[[#This Row],[L]:[O]])","v":0}]
[null,null,{"$f":"IFERROR(VLOOKUP(Närvaro_januari[[#This Row],[Elev-ID]],Elevlista[],18,FALSE),\"\")","v":""},{"$nulls":31},{"$f":"COUNTIF(Närvaro_januari[[#This Row],[1]:[31]],Kod_1)","v":0},{"$f":"COUNTIF(Närvaro_januari[[#This Row],[1]:[31]],Kod_2)","v":0},{"$f":"COUNTIF(Närvaro_januari[[#This Row],[1]:[31]],Kod_3)","v":0},{"$f":"COUNTIF(Närvaro_januari[[#This Row],[1]:[31]],Kod_4)","v":0},{"$f":"SUM(Närvaro_januari[[#This Row],[L]:[O]])","v":0}]
[null,null,{"$f":"IFERROR(VLOOKUP(Närvaro_januari[[#This Row],[Elev-ID]],Elevlista[],18,FALSE),\"\")","v":""},{"$nulls":31},{"$f":"COUNTIF(Närvaro_januari[[#This Row],[1]:[31]],Kod_1)","v":0},{"$f":"COUNTIF(Närvaro_januari[[#This Row],[1]:[31]],Kod_2)","v":0},{"$f":"COUNTIF(Närvaro_januari[[#This Row],[1]:[31]],Kod_3)","v":0},{"$f":"COUNTIF(Närvaro_januari[[#This Row],[1]:[31]],Kod_4)","v":0},{"$f":"SUM(Närvaro_januari[[#This Row],[L]:[O]])","v":0}]
[null,null,"Sammanlagda frånvarodagar'",{"$f":"COUNTIF(Närvaro_januari[1],\"O\")+COUNTIF(Närvaro_januari[1],\"L\")","v":0},{"$f":"COUNTIF(Närvaro_januari[2],\"O\")+COUNTIF(Närvaro_januari[2],\"L\")","v":0},{"$f":"COUNTIF(Närvaro_januari[3],\"O\")+COUNTIF(Närvaro_januari[3],\"L\")","v":0},{"$f":"COUNTIF(Närvaro_januari[4],\"O\")+COUNTIF(Närvaro_januari[4],\"L\")","v":0},{"$f":"COUNTIF(Närvaro_januari[5],\"O\")+COUNTIF(Närvaro_januari[5],\"L\")","v":0},{"$f":"COUNTIF(Närvaro_januari[6],\"O\")+COUNTIF(Närvaro_januari[6],\"L\")","v":0},{"$f":"COUNTIF(Närvaro_januari[7],\"O\")+COUNTIF(Närvaro_januari[7],\"L\")","v":0},{"$f":"COUNTIF(Närvaro_januari[8],\"O\")+COUNTIF(Närvaro_januari[8],\"L\")","v":0},{"$f":"COUNTIF(Närvaro_januari[9],\"O\")+COUNTIF(Närvaro_januari[9],\"L\")","v":0},{"$f":"COUNTIF(Närvaro_januari[10],\"O\")+COUNTIF(Närvaro_januari[10],\"L\")","v":0},{"$f":"COUNTIF(Närvaro_januari[11],\"O\")+COUNTIF(Närvaro_januari[11],\"L\")","v":0},{"$f":"COUNTIF(Närvaro_januari[12],\"O\")+COUNTIF(Närvaro_januari[12],\"L\")","v":0},{"$f":"COUNTIF(Närvaro_januari[13],\"O\")+COUNTIF(Närvaro_januari[13],\"L\")","v":0},{"$f":"COUNTIF(Närvaro_januari[14],\"O\")+COUNTIF(Närvaro_januari[14],\"L\")","v":0},{"$f":"COUNTIF(Närvaro_januari[15],\"O\")+COUNTIF(Närvaro_januari[15],\"L\")","v":0},{"$f":"COUNTIF(Närvaro_januari[16],\"O\")+COUNTIF(Närvaro_januari[16],\"L\")","v":0},{"$f":"COUNTIF(Närvaro_januari[17],\"O\")+COUNTIF(Närvaro_januari[17],\"L\")","v":0},{"$f":"COUNTIF(Närvaro_januari[18],\"O\")+COUNTIF(Närvaro_januari[18],\"L\")","v":0},{"$f":"COUNTIF(Närvaro_januari[19],\"O\")+COUNTIF(Närvaro_januari[19],\"L\")","v":0},{"$f":"COUNTIF(Närvaro_januari[20],\"O\")+COUNTIF(Närvaro_januari[20],\"L\")","v":0},{"$f":"COUNTIF(Närvaro_januari[21],\"O\")+COUNTIF(Närvaro_januari[21],\"L\")","v":0},{"$f":"COUNTIF(Närvaro_januari[22],\"O\")+COUNTIF(Närvaro_januari[22],\"L\")","v":0},{"$f":"COUNTIF(Närvaro_januari[23],\"O\")+COUNTIF(Närvaro_januari[23],\"L\")","v":0},{"$f":"COUNTIF(Närvaro_januari[24],\"O\")+COUNTIF(Närvaro_januari[24],\"L\")","v":0},{"$f":"COUNTIF(Närvaro_januari[25],\"O\")+COUNTIF(Närvaro_januari[25],\"L\")","v":0},{"$f":"COUNTIF(Närvaro_januari[26],\"O\")+COUNTIF(Närvaro_januari[26],\"L\")","v":0},{"$f":"COUNTIF(Närvaro_januari[27],\"O\")+COUNTIF(Närvaro_januari[27],\"L\")","v":0},{"$f":"COUNTIF(Närvaro_januari[28],\"O\")+COUNTIF(Närvaro_januari[28],\"L\")","v":0},{"$f":"COUNTIF(Närvaro_januari[29],\"O\")+COUNTIF(Närvaro_januari[29],\"L\")","v":0},{"$f":"COUNTIF(Närvaro_januari[30],\"O\")+COUNTIF(Närvaro_januari[30],\"L\")","v":0},{"$f":"COUNTIF(Närvaro_januari[31],\"O\")+COUNTIF(Närvaro_januari[31],\"L\")","v":0},{"$f":"SUBTOTAL(109,Närvaro_januari[S])","v":0},{"$f":"SUBTOTAL(109,Närvaro_januari[L])","v":0},{"$f":"SUBTOTAL(109,Närvaro_januari[O])","v":0},{"$f":"SUBTOTAL(109,Närvaro_januari[N])","v":0},{"$f":"SUBTOTAL(109,Närvaro_januari[Frånvarodagar])","v":0}]

{"sheet":"Februari","index":8,"n_rows":12,"n_cols":39,"rows_kept":12,"merged":[[4,34,4,38]]}
["NÄRVARORAPPORT FÖR ELEVER",{"$nulls":36},"Skolårets början",{"$f":"Kalenderår","v":2012}]
[]
[null,null,{"$f":"Färgkod_text","v":"FÄRGKODNING "},{"$f":"Kod_1","v":"S"},{"$f":"Kod1_text","v":"Sen ankomst"},null,null,{"$f":"Kod_2","v":"L"},{"$f":"Kod2_text","v":"Lovlig frånvaro"},null,null,{"$f":"Kod_3","v":"O"},{"$f":"Kod3_text","v":"Olovlig frånvaro"},null,null,{"$f":"Kod_4","v":"N"},{"$f":"Kod4_text","v":"Närvarande"},null,null,{"$f":"Kod_5","v":"I"},{"$f":"Kod5_text","v":"Ingen skola"}]
[]
[null,{"$f":"DATE(Kalenderår+1,2,1)","v":"2013-02-01"},null,{"$f":"TEXT(WEEKDAY(DATE(Kalenderår+1,2,1),1),\"[$-41d]aaa\")","v":"fr"},{"$f":"TEXT(WEEKDAY(DATE(Kalenderår+1,2,2),1),\"[$-41d]aaa\")","v":"lö"},{"$f":"TEXT(WEEKDAY(DATE(Kalenderår+1,2,3),1),\"[$-41d]aaa\")","v":"sö"},{"$f":"TEXT(WEEKDAY(DATE(Kalenderår+1,2,4),1),\"[$-41d]aaa\")","v":"må"},{"$f":"TEXT(WEEKDAY(DATE(Kalenderår+1,2,5),1),\"[$-41d]aaa\")","v":"ti"},{"$f":"TEXT(WEEKDAY(DATE(Kalenderår+1,2,6),1),\"[$-41d]aaa\")","v":"on"},{"$f":"TEXT(WEEKDAY(DATE(Kalenderår+1,2,7),1),\"[$-41d]aaa\")","v":"to"},{"$f":"TEXT(WEEKDAY(DATE(Kalenderår+1,2,8),1),\"[$-41d]aaa\")","v":"fr"},{"$f":"TEXT(WEEKDAY(DATE(Kalenderår+1,2,9),1),\"[$-41d]aaa\")","v":"lö"},{"$f":"TEXT(WEEKDAY(DATE(Kalenderår+1,2,10),1),\"[$-41d]aaa\")","v":"sö"},{"$f":"TEXT(WEEKDAY(DATE(Kalenderår+1,2,11),1),\"[$-41d]aaa\")","v":"må"},{"$f":"TEXT(WEEKDAY(DATE(Kalenderår+1,2,12),1),\"[$-41d]aaa\")","v":"ti"},{"$f":"TEXT(WEEKDAY(DATE(Kalenderår+1,2,13),1),\"[$-41d]aaa\")","v":"on"},{"$f":"TEXT(WEEKDAY(DATE(Kalenderår+1,2,14),1),\"[$-41d]aaa\")","v":"to"},{"$f":"TEXT(WEEKDAY(DATE(Kalenderår+1,2,15),1),\"[$-41d]aaa\")","v":"fr"},{"$f":"TEXT(WEEKDAY(DATE(Kalenderår+1,2,16),1),\"[$-41d]aaa\")","v":"lö"},{"$f":"TEXT(WEEKDAY(DATE(Kalenderår+1,2,17),1),\"[$-41d]aaa\")","v":"sö"},{"$f":"TEXT(WEEKDAY(DATE(Kalenderår+1,2,18),1),\"[$-41d]aaa\")","v":"må"},{"$f":"TEXT(WEEKDAY(DATE(Kalenderår+1,2,19),1),\"[$-41d]aaa\")","v":"ti"},{"$f":"TEXT(WEEKDAY(DATE(Kalenderår+1,2,20),1),\"[$-41d]aaa\")","v":"on"},{"$f":"TEXT(WEEKDAY(DATE(Kalenderår+1,2,21),1),\"[$-41d]aaa\")","v":"to"},{"$f":"TEXT(WEEKDAY(DATE(Kalenderår+1,2,22),1),\"[$-41d]aaa\")","v":"fr"},{"$f":"TEXT(WEEKDAY(DATE(Kalenderår+1,2,23),1),\"[$-41d]aaa\")","v":"lö"},{"$f":"TEXT(WEEKDAY(DATE(Kalenderår+1,2,24),1),\"[$-41d]aaa\")","v":"sö"},{"$f":"TEXT(WEEKDAY(DATE(Kalenderår+1,2,25),1),\"[$-41d]aaa\")","v":"må"},{"$f":"TEXT(WEEKDAY(DATE(Kalenderår+1,2,26),1),\"[$-41d]aaa\")","v":"ti"},{"$f":"TEXT(WEEKDAY(DATE(Kalenderår+1,2,27),1),\"[$-41d]aaa\")","v":"on"},{"$f":"TEXT(WEEKDAY(DATE(Kalenderår+1,2,28),1),\"[$-41d]aaa\")","v":"to"},{"$f":"TEXT(WEEKDAY(DATE(Kalenderår+1,2,29),1),\"aaa\")","v":"Fri"},null,null,"Summor"]
[null,"Elev-ID","Elevens namn","1","2","3","4","5","6","7","8","9","10","11","12","13","14","15","16","17","18","19","20","21","22","23","24","25","26","27","28","29","30","31","S","L","O","N","Frånvarodagar"]
[null,null,{"$f":"IFERROR(VLOOKUP(Närvaro_februari[[#This Row],[Elev-ID]],Elevlista[],18,FALSE),\"\")","v":""},{"$nulls":31},{"$f":"COUNTIF(Närvaro_februari[[#This Row],[1]:[31]],Kod_1)","v":0},{"$f":"COUNTIF(Närvaro_februari[[#This Row],[1]:[31]],Kod_2)","v":0},{"$f":"COUNTIF(Närvaro_februari[[#This Row],[1]:[31]],Kod_3)","v":0},{"$f":"COUNTIF(Närvaro_februari[[#This Row],[1]:[31]],Kod_4)","v":0},{"$f":"SUM(Närvaro_februari[[#This Row],[L]:[O]])","v":0}]
[null,null,{"$f":"IFERROR(VLOOKUP(Närvaro_februari[[#This Row],[Elev-ID]],Elevlista[],18,FALSE),\"\")","v":""},{"$nulls":31},{"$f":"COUNTIF(Närvaro_februari[[#This Row],[1]:[31]],Kod_1)","v":0},{"$f":"COUNTIF(Närvaro_februari[[#This Row],[1]:[31]],Kod_2)","v":0},{"$f":"COUNTIF(Närvaro_februari[[#This Row],[1]:[31]],Kod_3)","v":0},{"$f":"COUNTIF(Närvaro_februari[[#This Row],[1]:[31]],Kod_4)","v":0},{"$f":"SUM(Närvaro_februari[[#This Row],[L]:[O]])","v":0}]
[null,null,{"$f":"IFERROR(VLOOKUP(Närvaro_februari[[#This Row],[Elev-ID]],Elevlista[],18,FALSE),\"\")","v":""},{"$nulls":31},{"$f":"COUNTIF(Närvaro_februari[[#This Row],[1]:[31]],Kod_1)","v":0},{"$f":"COUNTIF(Närvaro_februari[[#This Row],[1]:[31]],Kod_2)","v":0},{"$f":"COUNTIF(Närvaro_februari[[#This Row],[1]:[31]],Kod_3)","v":0},{"$f":"COUNTIF(Närvaro_februari[[#This Row],[1]:[31]],Kod_4)","v":0},{"$f":"SUM(Närvaro_februari[[#This Row],[L]:[O]])","v":0}]
[null,null,{"$f":"IFERROR(VLOOKUP(Närvaro_februari[[#This Row],[Elev-ID]],Elevlista[],18,FALSE),\"\")","v":""},{"$nulls":31},{"$f":"COUNTIF(Närvaro_februari[[#This Row],[1]:[31]],Kod_1)","v":0},{"$f":"COUNTIF(Närvaro_februari[[#This Row],[1]:[31]],Kod_2)","v":0},{"$f":"COUNTIF(Närvaro_februari[[#This Row],[1]:[31]],Kod_3)","v":0},{"$f":"COUNTIF(Närvaro_februari[[#This Row],[1]:[31]],Kod_4)","v":0},{"$f":"SUM(Närvaro_februari[[#This Row],[L]:[O]])","v":0}]
[null,null,{"$f":"IFERROR(VLOOKUP(Närvaro_februari[[#This Row],[Elev-ID]],Elevlista[],18,FALSE),\"\")","v":""},{"$nulls":31},{"$f":"COUNTIF(Närvaro_februari[[#This Row],[1]:[31]],Kod_1)","v":0},{"$f":"COUNTIF(Närvaro_februari[[#This Row],[1]:[31]],Kod_2)","v":0},{"$f":"COUNTIF(Närvaro_februari[[#This Row],[1]:[31]],Kod_3)","v":0},{"$f":"COUNTIF(Närvaro_februari[[#This Row],[1]:[31]],Kod_4)","v":0},{"$f":"SUM(Närvaro_februari[[#This Row],[L]:[O]])","v":0}]
[null,null,"Sammanlagda frånvarodagar'",{"$f":"COUNTIF(Närvaro_februari[1],\"O\")+COUNTIF(Närvaro_februari[1],\"L\")","v":0},{"$f":"COUNTIF(Närvaro_februari[2],\"O\")+COUNTIF(Närvaro_februari[2],\"L\")","v":0},{"$f":"COUNTIF(Närvaro_februari[3],\"O\")+COUNTIF(Närvaro_februari[3],\"L\")","v":0},{"$f":"COUNTIF(Närvaro_februari[4],\"O\")+COUNTIF(Närvaro_februari[4],\"L\")","v":0},{"$f":"COUNTIF(Närvaro_februari[5],\"O\")+COUNTIF(Närvaro_februari[5],\"L\")","v":0},{"$f":"COUNTIF(Närvaro_februari[6],\"O\")+COUNTIF(Närvaro_februari[6],\"L\")","v":0},{"$f":"COUNTIF(Närvaro_februari[7],\"O\")+COUNTIF(Närvaro_februari[7],\"L\")","v":0},{"$f":"COUNTIF(Närvaro_februari[8],\"O\")+COUNTIF(Närvaro_februari[8],\"L\")","v":0},{"$f":"COUNTIF(Närvaro_februari[9],\"O\")+COUNTIF(Närvaro_februari[9],\"L\")","v":0},{"$f":"COUNTIF(Närvaro_februari[10],\"O\")+COUNTIF(Närvaro_februari[10],\"L\")","v":0},{"$f":"COUNTIF(Närvaro_februari[11],\"O\")+COUNTIF(Närvaro_februari[11],\"L\")","v":0},{"$f":"COUNTIF(Närvaro_februari[12],\"O\")+COUNTIF(Närvaro_februari[12],\"L\")","v":0},{"$f":"COUNTIF(Närvaro_februari[13],\"O\")+COUNTIF(Närvaro_februari[13],\"L\")","v":0},{"$f":"COUNTIF(Närvaro_februari[14],\"O\")+COUNTIF(Närvaro_februari[14],\"L\")","v":0},{"$f":"COUNTIF(Närvaro_februari[15],\"O\")+COUNTIF(Närvaro_februari[15],\"L\")","v":0},{"$f":"COUNTIF(Närvaro_februari[16],\"O\")+COUNTIF(Närvaro_februari[16],\"L\")","v":0},{"$f":"COUNTIF(Närvaro_februari[17],\"O\")+COUNTIF(Närvaro_februari[17],\"L\")","v":0},{"$f":"COUNTIF(Närvaro_februari[18],\"O\")+COUNTIF(Närvaro_februari[18],\"L\")","v":0},{"$f":"COUNTIF(Närvaro_februari[19],\"O\")+COUNTIF(Närvaro_februari[19],\"L\")","v":0},{"$f":"COUNTIF(Närvaro_februari[20],\"O\")+COUNTIF(Närvaro_februari[20],\"L\")","v":0},{"$f":"COUNTIF(Närvaro_februari[21],\"O\")+COUNTIF(Närvaro_februari[21],\"L\")","v":0},{"$f":"COUNTIF(Närvaro_februari[22],\"O\")+COUNTIF(Närvaro_februari[22],\"L\")","v":0},{"$f":"COUNTIF(Närvaro_februari[23],\"O\")+COUNTIF(Närvaro_februari[23],\"L\")","v":0},{"$f":"COUNTIF(Närvaro_februari[24],\"O\")+COUNTIF(Närvaro_februari[24],\"L\")","v":0},{"$f":"COUNTIF(Närvaro_februari[25],\"O\")+COUNTIF(Närvaro_februari[25],\"L\")","v":0},{"$f":"COUNTIF(Närvaro_februari[26],\"O\")+COUNTIF(Närvaro_februari[26],\"L\")","v":0},{"$f":"COUNTIF(Närvaro_februari[27],\"O\")+COUNTIF(Närvaro_februari[27],\"L\")","v":0},{"$f":"COUNTIF(Närvaro_februari[28],\"O\")+COUNTIF(Närvaro_februari[28],\"L\")","v":0},{"$f":"COUNTIF(Närvaro_februari[29],\"O\")+COUNTIF(Närvaro_februari[29],\"L\")","v":0},{"$f":"COUNTIF(Närvaro_februari[30],\"O\")+COUNTIF(Närvaro_februari[30],\"L\")","v":0},{"$f":"COUNTIF(Närvaro_februari[31],\"O\")+COUNTIF(Närvaro_februari[31],\"L\")","v":0},{"$f":"SUBTOTAL(109,Närvaro_februari[S])","v":0},{"$f":"SUBTOTAL(109,Närvaro_februari[L])","v":0},{"$f":"SUBTOTAL(109,Närvaro_februari[O])","v":0},{"$f":"SUBTOTAL(109,Närvaro_februari[N])","v":0},{"$f":"SUBTOTAL(109,Närvaro_februari[Frånvarodagar])","v":0}]

{"sheet":"Mars","index":9,"n_rows":12,"n_cols":39,"rows_kept":12,"merged":[[4,34,4,38]]}
["NÄRVARORAPPORT FÖR ELEVER",{"$nulls":36},"Skolårets början",{"$f":"Kalenderår","v":2012}]
[]
[null,null,{"$f":"Färgkod_text","v":"FÄRGKODNING "},{"$f":"Kod_1","v":"S"},{"$f":"Kod1_text","v":"Sen ankomst"},null,null,{"$f":"Kod_2","v":"L"},{"$f":"Kod2_text","v":"Lovlig frånvaro"},null,null,{"$f":"Kod_3","v":"O"},{"$f":"Kod3_text","v":"Olovlig frånvaro"},null,null,{"$f":"Kod_4","v":"N"},{"$f":"Kod4_text","v":"Närvarande"},null,null,{"$f":"Kod_5","v":"I"},{"$f":"Kod5_text","v":"Ingen skola"}]
[]
[null,{"$f":"DATE(Kalenderår+1,3,1)","v":"2013-03-01"},null,{"$f":"TEXT(WEEKDAY(DATE(Kalenderår+1,3,1),1),\"[$-41d]aaa\")","v":"fr"},{"$f":"TEXT(WEEKDAY(DATE(Kalenderår+1,3,2),1),\"[$-41d]aaa\")","v":"lö"},{"$f":"TEXT(WEEKDAY(DATE(Kalenderår+1,3,3),1),\"[$-41d]aaa\")","v":"sö"},{"$f":"TEXT(WEEKDAY(DATE(Kalenderår+1,3,4),1),\"[$-41d]aaa\")","v":"må"},{"$f":"TEXT(WEEKDAY(DATE(Kalenderår+1,3,5),1),\"[$-41d]aaa\")","v":"ti"},{"$f":"TEXT(WEEKDAY(DATE(Kalenderår+1,3,6),1),\"[$-41d]aaa\")","v":"on"},{"$f":"TEXT(WEEKDAY(DATE(Kalenderår+1,3,7),1),\"[$-41d]aaa\")","v":"to"},{"$f":"TEXT(WEEKDAY(DATE(Kalenderår+1,3,8),1),\"[$-41d]aaa\")","v":"fr"},{"$f":"TEXT(WEEKDAY(DATE(Kalenderår+1,3,9),1),\"[$-41d]aaa\")","v":"lö"},{"$f":"TEXT(WEEKDAY(DATE(Kalenderår+1,3,10),1),\"[$-41d]aaa\")","v":"sö"},{"$f":"TEXT(WEEKDAY(DATE(Kalenderår+1,3,11),1),\"[$-41d]aaa\")","v":"må"},{"$f":"TEXT(WEEKDAY(DATE(Kalenderår+1,3,12),1),\"[$-41d]aaa\")","v":"ti"},{"$f":"TEXT(WEEKDAY(DATE(Kalenderår+1,3,13),1),\"[$-41d]aaa\")","v":"on"},{"$f":"TEXT(WEEKDAY(DATE(Kalenderår+1,3,14),1),\"[$-41d]aaa\")","v":"to"},{"$f":"TEXT(WEEKDAY(DATE(Kalenderår+1,3,15),1),\"[$-41d]aaa\")","v":"fr"},{"$f":"TEXT(WEEKDAY(DATE(Kalenderår+1,3,16),1),\"[$-41d]aaa\")","v":"lö"},{"$f":"TEXT(WEEKDAY(DATE(Kalenderår+1,3,17),1),\"[$-41d]aaa\")","v":"sö"},{"$f":"TEXT(WEEKDAY(DATE(Kalenderår+1,3,18),1),\"[$-41d]aaa\")","v":"må"},{"$f":"TEXT(WEEKDAY(DATE(Kalenderår+1,3,19),1),\"[$-41d]aaa\")","v":"ti"},{"$f":"TEXT(WEEKDAY(DATE(Kalenderår+1,3,20),1),\"[$-41d]aaa\")","v":"on"},{"$f":"TEXT(WEEKDAY(DATE(Kalenderår+1,3,21),1),\"[$-41d]aaa\")","v":"to"},{"$f":"TEXT(WEEKDAY(DATE(Kalenderår+1,3,22),1),\"[$-41d]aaa\")","v":"fr"},{"$f":"TEXT(WEEKDAY(DATE(Kalenderår+1,3,23),1),\"[$-41d]aaa\")","v":"lö"},{"$f":"TEXT(WEEKDAY(DATE(Kalenderår+1,3,24),1),\"[$-41d]aaa\")","v":"sö"},{"$f":"TEXT(WEEKDAY(DATE(Kalenderår+1,3,25),1),\"[$-41d]aaa\")","v":"må"},{"$f":"TEXT(WEEKDAY(DATE(Kalenderår+1,3,26),1),\"[$-41d]aaa\")","v":"ti"},{"$f":"TEXT(WEEKDAY(DATE(Kalenderår+1,3,27),1),\"[$-41d]aaa\")","v":"on"},{"$f":"TEXT(WEEKDAY(DATE(Kalenderår+1,3,28),1),\"[$-41d]aaa\")","v":"to"},{"$f":"TEXT(WEEKDAY(DATE(Kalenderår+1,3,29),1),\"[$-41d]aaa\")","v":"fr"},{"$f":"TEXT(WEEKDAY(DATE(Kalenderår+1,3,30),1),\"[$-41d]aaa\")","v":"lö"},{"$f":"TEXT(WEEKDAY(DATE(Kalenderår+1,3,31),1),\"[$-41d]aaa\")","v":"sö"},"Summor"]
[null,"Elev-ID","Elevens namn","1","2","3","4","5","6","7","8","9","10","11","12","13","14","15","16","17","18","19","20","21","22","23","24","25","26","27","28","29","30","31","S","L","O","N","Frånvarodagar"]
[null,null,{"$f":"IFERROR(VLOOKUP(Närvaro_mars[[#This Row],[Elev-ID]],Elevlista[],18,FALSE),\"\")","v":""},{"$nulls":31},{"$f":"COUNTIF(Närvaro_mars[[#This Row],[1]:[31]],Kod_1)","v":0},{"$f":"COUNTIF(Närvaro_mars[[#This Row],[1]:[31]],Kod_2)","v":0},{"$f":"COUNTIF(Närvaro_mars[[#This Row],[1]:[31]],Kod_3)","v":0},{"$f":"COUNTIF(Närvaro_mars[[#This Row],[1]:[31]],Kod_4)","v":0},{"$f":"SUM(Närvaro_mars[[#This Row],[L]:[O]])","v":0}]
[null,null,{"$f":"IFERROR(VLOOKUP(Närvaro_mars[[#This Row],[Elev-ID]],Elevlista[],18,FALSE),\"\")","v":""},{"$nulls":31},{"$f":"COUNTIF(Närvaro_mars[[#This Row],[1]:[31]],Kod_1)","v":0},{"$f":"COUNTIF(Närvaro_mars[[#This Row],[1]:[31]],Kod_2)","v":0},{"$f":"COUNTIF(Närvaro_mars[[#This Row],[1]:[31]],Kod_3)","v":0},{"$f":"COUNTIF(Närvaro_mars[[#This Row],[1]:[31]],Kod_4)","v":0},{"$f":"SUM(Närvaro_mars[[#This Row],[L]:[O]])","v":0}]
[null,null,{"$f":"IFERROR(VLOOKUP(Närvaro_mars[[#This Row],[Elev-ID]],Elevlista[],18,FALSE),\"\")","v":""},{"$nulls":31},{"$f":"COUNTIF(Närvaro_mars[[#This Row],[1]:[31]],Kod_1)","v":0},{"$f":"COUNTIF(Närvaro_mars[[#This Row],[1]:[31]],Kod_2)","v":0},{"$f":"COUNTIF(Närvaro_mars[[#This Row],[1]:[31]],Kod_3)","v":0},{"$f":"COUNTIF(Närvaro_mars[[#This Row],[1]:[31]],Kod_4)","v":0},{"$f":"SUM(Närvaro_mars[[#This Row],[L]:[O]])","v":0}]
[null,null,{"$f":"IFERROR(VLOOKUP(Närvaro_mars[[#This Row],[Elev-ID]],Elevlista[],18,FALSE),\"\")","v":""},{"$nulls":31},{"$f":"COUNTIF(Närvaro_mars[[#This Row],[1]:[31]],Kod_1)","v":0},{"$f":"COUNTIF(Närvaro_mars[[#This Row],[1]:[31]],Kod_2)","v":0},{"$f":"COUNTIF(Närvaro_mars[[#This Row],[1]:[31]],Kod_3)","v":0},{"$f":"COUNTIF(Närvaro_mars[[#This Row],[1]:[31]],Kod_4)","v":0},{"$f":"SUM(Närvaro_mars[[#This Row],[L]:[O]])","v":0}]
[null,null,{"$f":"IFERROR(VLOOKUP(Närvaro_mars[[#This Row],[Elev-ID]],Elevlista[],18,FALSE),\"\")","v":""},{"$nulls":31},{"$f":"COUNTIF(Närvaro_mars[[#This Row],[1]:[31]],Kod_1)","v":0},{"$f":"COUNTIF(Närvaro_mars[[#This Row],[1]:[31]],Kod_2)","v":0},{"$f":"COUNTIF(Närvaro_mars[[#This Row],[1]:[31]],Kod_3)","v":0},{"$f":"COUNTIF(Närvaro_mars[[#This Row],[1]:[31]],Kod_4)","v":0},{"$f":"SUM(Närvaro_mars[[#This Row],[L]:[O]])","v":0}]
[null,null,"Sammanlagda frånvarodagar'",{"$f":"COUNTIF(Närvaro_mars[1],\"O\")+COUNTIF(Närvaro_mars[1],\"L\")","v":0},{"$f":"COUNTIF(Närvaro_mars[2],\"O\")+COUNTIF(Närvaro_mars[2],\"L\")","v":0},{"$f":"COUNTIF(Närvaro_mars[3],\"O\")+COUNTIF(Närvaro_mars[3],\"L\")","v":0},{"$f":"COUNTIF(Närvaro_mars[4],\"O\")+COUNTIF(Närvaro_mars[4],\"L\")","v":0},{"$f":"COUNTIF(Närvaro_mars[5],\"O\")+COUNTIF(Närvaro_mars[5],\"L\")","v":0},{"$f":"COUNTIF(Närvaro_mars[6],\"O\")+COUNTIF(Närvaro_mars[6],\"L\")","v":0},{"$f":"COUNTIF(Närvaro_mars[7],\"O\")+COUNTIF(Närvaro_mars[7],\"L\")","v":0},{"$f":"COUNTIF(Närvaro_mars[8],\"O\")+COUNTIF(Närvaro_mars[8],\"L\")","v":0},{"$f":"COUNTIF(Närvaro_mars[9],\"O\")+COUNTIF(Närvaro_mars[9],\"L\")","v":0},{"$f":"COUNTIF(Närvaro_mars[10],\"O\")+COUNTIF(Närvaro_mars[10],\"L\")","v":0},{"$f":"COUNTIF(Närvaro_mars[11],\"O\")+COUNTIF(Närvaro_mars[11],\"L\")","v":0},{"$f":"COUNTIF(Närvaro_mars[12],\"O\")+COUNTIF(Närvaro_mars[12],\"L\")","v":0},{"$f":"COUNTIF(Närvaro_mars[13],\"O\")+COUNTIF(Närvaro_mars[13],\"L\")","v":0},{"$f":"COUNTIF(Närvaro_mars[14],\"O\")+COUNTIF(Närvaro_mars[14],\"L\")","v":0},{"$f":"COUNTIF(Närvaro_mars[15],\"O\")+COUNTIF(Närvaro_mars[15],\"L\")","v":0},{"$f":"COUNTIF(Närvaro_mars[16],\"O\")+COUNTIF(Närvaro_mars[16],\"L\")","v":0},{"$f":"COUNTIF(Närvaro_mars[17],\"O\")+COUNTIF(Närvaro_mars[17],\"L\")","v":0},{"$f":"COUNTIF(Närvaro_mars[18],\"O\")+COUNTIF(Närvaro_mars[18],\"L\")","v":0},{"$f":"COUNTIF(Närvaro_mars[19],\"O\")+COUNTIF(Närvaro_mars[19],\"L\")","v":0},{"$f":"COUNTIF(Närvaro_mars[20],\"O\")+COUNTIF(Närvaro_mars[20],\"L\")","v":0},{"$f":"COUNTIF(Närvaro_mars[21],\"O\")+COUNTIF(Närvaro_mars[21],\"L\")","v":0},{"$f":"COUNTIF(Närvaro_mars[22],\"O\")+COUNTIF(Närvaro_mars[22],\"L\")","v":0},{"$f":"COUNTIF(Närvaro_mars[23],\"O\")+COUNTIF(Närvaro_mars[23],\"L\")","v":0},{"$f":"COUNTIF(Närvaro_mars[24],\"O\")+COUNTIF(Närvaro_mars[24],\"L\")","v":0},{"$f":"COUNTIF(Närvaro_mars[25],\"O\")+COUNTIF(Närvaro_mars[25],\"L\")","v":0},{"$f":"COUNTIF(Närvaro_mars[26],\"O\")+COUNTIF(Närvaro_mars[26],\"L\")","v":0},{"$f":"COUNTIF(Närvaro_mars[27],\"O\")+COUNTIF(Närvaro_mars[27],\"L\")","v":0},{"$f":"COUNTIF(Närvaro_mars[28],\"O\")+COUNTIF(Närvaro_mars[28],\"L\")","v":0},{"$f":"COUNTIF(Närvaro_mars[29],\"O\")+COUNTIF(Närvaro_mars[29],\"L\")","v":0},{"$f":"COUNTIF(Närvaro_mars[30],\"O\")+COUNTIF(Närvaro_mars[30],\"L\")","v":0},{"$f":"COUNTIF(Närvaro_mars[31],\"O\")+COUNTIF(Närvaro_mars[31],\"L\")","v":0},{"$f":"SUBTOTAL(109,Närvaro_mars[S])","v":0},{"$f":"SUBTOTAL(109,Närvaro_mars[L])","v":0},{"$f":"SUBTOTAL(109,Närvaro_mars[O])","v":0},{"$f":"SUBTOTAL(109,Närvaro_mars[N])","v":0},{"$f":"SUBTOTAL(109,Närvaro_mars[Frånvarodagar])","v":0}]

{"sheet":"April","index":10,"n_rows":12,"n_cols":39,"rows_kept":12,"merged":[[4,34,4,38]]}
["NÄRVARORAPPORT FÖR ELEVER",{"$nulls":36},"Skolårets början",{"$f":"Kalenderår","v":2012}]
[]
[null,null,{"$f":"Färgkod_text","v":"FÄRGKODNING "},{"$f":"Kod_1","v":"S"},{"$f":"Kod1_text","v":"Sen ankomst"},null,null,{"$f":"Kod_2","v":"L"},{"$f":"Kod2_text","v":"Lovlig frånvaro"},null,null,{"$f":"Kod_3","v":"O"},{"$f":"Kod3_text","v":"Olovlig frånvaro"},null,null,{"$f":"Kod_4","v":"N"},{"$f":"Kod4_text","v":"Närvarande"},null,null,{"$f":"Kod_5","v":"I"},{"$f":"Kod5_text","v":"Ingen skola"}]
[]
[null,{"$f":"DATE(Kalenderår+1,4,1)","v":"2013-04-01"},null,{"$f":"TEXT(WEEKDAY(DATE(Kalenderår+1,4,1),1),\"[$-41d]aaa\")","v":"må"},{"$f":"TEXT(WEEKDAY(DATE(Kalenderår+1,4,2),1),\"[$-41d]aaa\")","v":"ti"},{"$f":"TEXT(WEEKDAY(DATE(Kalenderår+1,4,3),1),\"[$-41d]aaa\")","v":"on"},{"$f":"TEXT(WEEKDAY(DATE(Kalenderår+1,4,4),1),\"[$-41d]aaa\")","v":"to"},{"$f":"TEXT(WEEKDAY(DATE(Kalenderår+1,4,5),1),\"[$-41d]aaa\")","v":"fr"},{"$f":"TEXT(WEEKDAY(DATE(Kalenderår+1,4,6),1),\"[$-41d]aaa\")","v":"lö"},{"$f":"TEXT(WEEKDAY(DATE(Kalenderår+1,4,7),1),\"[$-41d]aaa\")","v":"sö"},{"$f":"TEXT(WEEKDAY(DATE(Kalenderår+1,4,8),1),\"[$-41d]aaa\")","v":"må"},{"$f":"TEXT(WEEKDAY(DATE(Kalenderår+1,4,9),1),\"[$-41d]aaa\")","v":"ti"},{"$f":"TEXT(WEEKDAY(DATE(Kalenderår+1,4,10),1),\"[$-41d]aaa\")","v":"on"},{"$f":"TEXT(WEEKDAY(DATE(Kalenderår+1,4,11),1),\"[$-41d]aaa\")","v":"to"},{"$f":"TEXT(WEEKDAY(DATE(Kalenderår+1,4,12),1),\"[$-41d]aaa\")","v":"fr"},{"$f":"TEXT(WEEKDAY(DATE(Kalenderår+1,4,13),1),\"[$-41d]aaa\")","v":"lö"},{"$f":"TEXT(WEEKDAY(DATE(Kalenderår+1,4,14),1),\"[$-41d]aaa\")","v":"sö"},{"$f":"TEXT(WEEKDAY(DATE(Kalenderår+1,4,15),1),\"[$-41d]aaa\")","v":"må"},{"$f":"TEXT(WEEKDAY(DATE(Kalenderår+1,4,16),1),\"[$-41d]aaa\")","v":"ti"},{"$f":"TEXT(WEEKDAY(DATE(Kalenderår+1,4,17),1),\"[$-41d]aaa\")","v":"on"},{"$f":"TEXT(WEEKDAY(DATE(Kalenderår+1,4,18),1),\"[$-41d]aaa\")","v":"to"},{"$f":"TEXT(WEEKDAY(DATE(Kalenderår+1,4,19),1),\"[$-41d]aaa\")","v":"fr"},{"$f":"TEXT(WEEKDAY(DATE(Kalenderår+1,4,20),1),\"[$-41d]aaa\")","v":"lö"},{"$f":"TEXT(WEEKDAY(DATE(Kalenderår+1,4,21),1),\"[$-41d]aaa\")","v":"sö"},{"$f":"TEXT(WEEKDAY(DATE(Kalenderår+1,4,22),1),\"[$-41d]aaa\")","v":"må"},{"$f":"TEXT(WEEKDAY(DATE(Kalenderår+1,4,23),1),\"[$-41d]aaa\")","v":"ti"},{"$f":"TEXT(WEEKDAY(DATE(Kalenderår+1,4,24),1),\"[$-41d]aaa\")","v":"on"},{"$f":"TEXT(WEEKDAY(DATE(Kalenderår+1,4,25),1),\"[$-41d]aaa\")","v":"to"},{"$f":"TEXT(WEEKDAY(DATE(Kalenderår+1,4,26),1),\"[$-41d]aaa\")","v":"fr"},{"$f":"TEXT(WEEKDAY(DATE(Kalenderår+1,4,27),1),\"[$-41d]aaa\")","v":"lö"},{"$f":"TEXT(WEEKDAY(DATE(Kalenderår+1,4,28),1),\"[$-41d]aaa\")","v":"sö"},{"$f":"TEXT(WEEKDAY(DATE(Kalenderår+1,4,29),1),\"[$-41d]aaa\")","v":"må"},{"$f":"TEXT(WEEKDAY(DATE(Kalenderår+1,4,30),1),\"[$-41d]aaa\")","v":"ti"},null,"Summor"]
[null,"Elev-ID","Elevens namn","1","2","3","4","5","6","7","8","9","10","11","12","13","14","15","16","17","18","19","20","21","22","23","24","25","26","27","28","29","30"," ","S","L","O","N","Frånvarodagar"]
[null,null,{"$f":"IFERROR(VLOOKUP(Närvaro_april[[#This Row],[Elev-ID]],Elevlista[],18,FALSE),\"\")","v":""},{"$nulls":31},{"$f":"COUNTIF(Närvaro_april[[#This Row],[1]:[ ]],Kod_1)","v":0},{"$f":"COUNTIF(Närvaro_april[[#This Row],[1]:[ ]],Kod_2)","v":0},{"$f":"COUNTIF(Närvaro_april[[#This Row],[1]:[ ]],Kod_3)","v":0},{"$f":"COUNTIF(Närvaro_april[[#This Row],[1]:[ ]],Kod_4)","v":0},{"$f":"SUM(Närvaro_april[[#This Row],[L]:[O]])","v":0}]
[null,null,{"$f":"IFERROR(VLOOKUP(Närvaro_april[[#This Row],[Elev-ID]],Elevlista[],18,FALSE),\"\")","v":""},{"$nulls":31},{"$f":"COUNTIF(Närvaro_april[[#This Row],[1]:[ ]],Kod_1)","v":0},{"$f":"COUNTIF(Närvaro_april[[#This Row],[1]:[ ]],Kod_2)","v":0},{"$f":"COUNTIF(Närvaro_april[[#This Row],[1]:[ ]],Kod_3)","v":0},{"$f":"COUNTIF(Närvaro_april[[#This Row],[1]:[ ]],Kod_4)","v":0},{"$f":"SUM(Närvaro_april[[#This Row],[L]:[O]])","v":0}]
[null,null,{"$f":"IFERROR(VLOOKUP(Närvaro_april[[#This Row],[Elev-ID]],Elevlista[],18,FALSE),\"\")","v":""},{"$nulls":31},{"$f":"COUNTIF(Närvaro_april[[#This Row],[1]:[ ]],Kod_1)","v":0},{"$f":"COUNTIF(Närvaro_april[[#This Row],[1]:[ ]],Kod_2)","v":0},{"$f":"COUNTIF(Närvaro_april[[#This Row],[1]:[ ]],Kod_3)","v":0},{"$f":"COUNTIF(Närvaro_april[[#This Row],[1]:[ ]],Kod_4)","v":0},{"$f":"SUM(Närvaro_april[[#This Row],[L]:[O]])","v":0}]
[null,null,{"$f":"IFERROR(VLOOKUP(Närvaro_april[[#This Row],[Elev-ID]],Elevlista[],18,FALSE),\"\")","v":""},{"$nulls":31},{"$f":"COUNTIF(Närvaro_april[[#This Row],[1]:[ ]],Kod_1)","v":0},{"$f":"COUNTIF(Närvaro_april[[#This Row],[1]:[ ]],Kod_2)","v":0},{"$f":"COUNTIF(Närvaro_april[[#This Row],[1]:[ ]],Kod_3)","v":0},{"$f":"COUNTIF(Närvaro_april[[#This Row],[1]:[ ]],Kod_4)","v":0},{"$f":"SUM(Närvaro_april[[#This Row],[L]:[O]])","v":0}]
[null,null,{"$f":"IFERROR(VLOOKUP(Närvaro_april[[#This Row],[Elev-ID]],Elevlista[],18,FALSE),\"\")","v":""},{"$nulls":31},{"$f":"COUNTIF(Närvaro_april[[#This Row],[1]:[ ]],Kod_1)","v":0},{"$f":"COUNTIF(Närvaro_april[[#This Row],[1]:[ ]],Kod_2)","v":0},{"$f":"COUNTIF(Närvaro_april[[#This Row],[1]:[ ]],Kod_3)","v":0},{"$f":"COUNTIF(Närvaro_april[[#This Row],[1]:[ ]],Kod_4)","v":0},{"$f":"SUM(Närvaro_april[[#This Row],[L]:[O]])","v":0}]
[null,null,"Sammanlagda frånvarodagar'",{"$f":"COUNTIF(Närvaro_april[1],\"O\")+COUNTIF(Närvaro_april[1],\"L\")","v":0},{"$f":"COUNTIF(Närvaro_april[2],\"O\")+COUNTIF(Närvaro_april[2],\"L\")","v":0},{"$f":"COUNTIF(Närvaro_april[3],\"O\")+COUNTIF(Närvaro_april[3],\"L\")","v":0},{"$f":"COUNTIF(Närvaro_april[4],\"O\")+COUNTIF(Närvaro_april[4],\"L\")","v":0},{"$f":"COUNTIF(Närvaro_april[5],\"O\")+COUNTIF(Närvaro_april[5],\"L\")","v":0},{"$f":"COUNTIF(Närvaro_april[6],\"O\")+COUNTIF(Närvaro_april[6],\"L\")","v":0},{"$f":"COUNTIF(Närvaro_april[7],\"O\")+COUNTIF(Närvaro_april[7],\"L\")","v":0},{"$f":"COUNTIF(Närvaro_april[8],\"O\")+COUNTIF(Närvaro_april[8],\"L\")","v":0},{"$f":"COUNTIF(Närvaro_april[9],\"O\")+COUNTIF(Närvaro_april[9],\"L\")","v":0},{"$f":"COUNTIF(Närvaro_april[10],\"O\")+COUNTIF(Närvaro_april[10],\"L\")","v":0},{"$f":"COUNTIF(Närvaro_april[11],\"O\")+COUNTIF(Närvaro_april[11],\"L\")","v":0},{"$f":"COUNTIF(Närvaro_april[12],\"O\")+COUNTIF(Närvaro_april[12],\"L\")","v":0},{"$f":"COUNTIF(Närvaro_april[13],\"O\")+COUNTIF(Närvaro_april[13],\"L\")","v":0},{"$f":"COUNTIF(Närvaro_april[14],\"O\")+COUNTIF(Närvaro_april[14],\"L\")","v":0},{"$f":"COUNTIF(Närvaro_april[15],\"O\")+COUNTIF(Närvaro_april[15],\"L\")","v":0},{"$f":"COUNTIF(Närvaro_april[16],\"O\")+COUNTIF(Närvaro_april[16],\"L\")","v":0},{"$f":"COUNTIF(Närvaro_april[17],\"O\")+COUNTIF(Närvaro_april[17],\"L\")","v":0},{"$f":"COUNTIF(Närvaro_april[18],\"O\")+COUNTIF(Närvaro_april[18],\"L\")","v":0},{"$f":"COUNTIF(Närvaro_april[19],\"O\")+COUNTIF(Närvaro_april[19],\"L\")","v":0},{"$f":"COUNTIF(Närvaro_april[20],\"O\")+COUNTIF(Närvaro_april[20],\"L\")","v":0},{"$f":"COUNTIF(Närvaro_april[21],\"O\")+COUNTIF(Närvaro_april[21],\"L\")","v":0},{"$f":"COUNTIF(Närvaro_april[22],\"O\")+COUNTIF(Närvaro_april[22],\"L\")","v":0},{"$f":"COUNTIF(Närvaro_april[23],\"O\")+COUNTIF(Närvaro_april[23],\"L\")","v":0},{"$f":"COUNTIF(Närvaro_april[24],\"O\")+COUNTIF(Närvaro_april[24],\"L\")","v":0},{"$f":"COUNTIF(Närvaro_april[25],\"O\")+COUNTIF(Närvaro_april[25],\"L\")","v":0},{"$f":"COUNTIF(Närvaro_april[26],\"O\")+COUNTIF(Närvaro_april[26],\"L\")","v":0},{"$f":"COUNTIF(Närvaro_april[27],\"O\")+COUNTIF(Närvaro_april[27],\"L\")","v":0},{"$f":"COUNTIF(Närvaro_april[28],\"O\")+COUNTIF(Närvaro_april[28],\"L\")","v":0},{"$f":"COUNTIF(Närvaro_april[29],\"O\")+COUNTIF(Närvaro_april[29],\"L\")","v":0},{"$f":"COUNTIF(Närvaro_april[30],\"O\")+COUNTIF(Närvaro_april[30],\"L\")","v":0},{"$f":"COUNTIF(Närvaro_april[[ ]],\"O\")+COUNTIF(Närvaro_april[[ ]],\"L\")","v":0},{"$f":"SUBTOTAL(109,Närvaro_april[S])","v":0},{"$f":"SUBTOTAL(109,Närvaro_april[L])","v":0},{"$f":"SUBTOTAL(109,Närvaro_april[O])","v":0},{"$f":"SUBTOTAL(109,Närvaro_april[N])","v":0},{"$f":"SUBTOTAL(109,Närvaro_april[Frånvarodagar])","v":0}]

{"sheet":"Maj","index":11,"n_rows":12,"n_cols":39,"rows_kept":12,"merged":[[4,34,4,38]]}
["NÄRVARORAPPORT FÖR ELEVER",{"$nulls":36},"Skolårets början",{"$f":"Kalenderår","v":2012}]
[]
[null,null,{"$f":"Färgkod_text","v":"FÄRGKODNING "},{"$f":"Kod_1","v":"S"},{"$f":"Kod1_text","v":"Sen ankomst"},null,null,{"$f":"Kod_2","v":"L"},{"$f":"Kod2_text","v":"Lovlig frånvaro"},null,null,{"$f":"Kod_3","v":"O"},{"$f":"Kod3_text","v":"Olovlig frånvaro"},null,null,{"$f":"Kod_4","v":"N"},{"$f":"Kod4_text","v":"Närvarande"},null,null,{"$f":"Kod_5","v":"I"},{"$f":"Kod5_text","v":"Ingen skola"}]
[]
[null,{"$f":"DATE(Kalenderår+1,5,1)","v":"2013-05-01"},null,{"$f":"TEXT(WEEKDAY(DATE(Kalenderår+1,5,1),1),\"[$-41d]aaa\")","v":"on"},{"$f":"TEXT(WEEKDAY(DATE(Kalenderår+1,5,2),1),\"[$-41d]aaa\")","v":"to"},{"$f":"TEXT(WEEKDAY(DATE(Kalenderår+1,5,3),1),\"[$-41d]aaa\")","v":"fr"},{"$f":"TEXT(WEEKDAY(DATE(Kalenderår+1,5,4),1),\"[$-41d]aaa\")","v":"lö"},{"$f":"TEXT(WEEKDAY(DATE(Kalenderår+1,5,5),1),\"[$-41d]aaa\")","v":"sö"},{"$f":"TEXT(WEEKDAY(DATE(Kalenderår+1,5,6),1),\"[$-41d]aaa\")","v":"må"},{"$f":"TEXT(WEEKDAY(DATE(Kalenderår+1,5,7),1),\"[$-41d]aaa\")","v":"ti"},{"$f":"TEXT(WEEKDAY(DATE(Kalenderår+1,5,8),1),\"[$-41d]aaa\")","v":"on"},{"$f":"TEXT(WEEKDAY(DATE(Kalenderår+1,5,9),1),\"[$-41d]aaa\")","v":"to"},{"$f":"TEXT(WEEKDAY(DATE(Kalenderår+1,5,10),1),\"[$-41d]aaa\")","v":"fr"},{"$f":"TEXT(WEEKDAY(DATE(Kalenderår+1,5,11),1),\"[$-41d]aaa\")","v":"lö"},{"$f":"TEXT(WEEKDAY(DATE(Kalenderår+1,5,12),1),\"[$-41d]aaa\")","v":"sö"},{"$f":"TEXT(WEEKDAY(DATE(Kalenderår+1,5,13),1),\"[$-41d]aaa\")","v":"må"},{"$f":"TEXT(WEEKDAY(DATE(Kalenderår+1,5,14),1),\"[$-41d]aaa\")","v":"ti"},{"$f":"TEXT(WEEKDAY(DATE(Kalenderår+1,5,15),1),\"[$-41d]aaa\")","v":"on"},{"$f":"TEXT(WEEKDAY(DATE(Kalenderår+1,5,16),1),\"[$-41d]aaa\")","v":"to"},{"$f":"TEXT(WEEKDAY(DATE(Kalenderår+1,5,17),1),\"[$-41d]aaa\")","v":"fr"},{"$f":"TEXT(WEEKDAY(DATE(Kalenderår+1,5,18),1),\"[$-41d]aaa\")","v":"lö"},{"$f":"TEXT(WEEKDAY(DATE(Kalenderår+1,5,19),1),\"[$-41d]aaa\")","v":"sö"},{"$f":"TEXT(WEEKDAY(DATE(Kalenderår+1,5,20),1),\"[$-41d]aaa\")","v":"må"},{"$f":"TEXT(WEEKDAY(DATE(Kalenderår+1,5,21),1),\"[$-41d]aaa\")","v":"ti"},{"$f":"TEXT(WEEKDAY(DATE(Kalenderår+1,5,22),1),\"[$-41d]aaa\")","v":"on"},{"$f":"TEXT(WEEKDAY(DATE(Kalenderår+1,5,23),1),\"[$-41d]aaa\")","v":"to"},{"$f":"TEXT(WEEKDAY(DATE(Kalenderår+1,5,24),1),\"[$-41d]aaa\")","v":"fr"},{"$f":"TEXT(WEEKDAY(DATE(Kalenderår+1,5,25),1),\"[$-41d]aaa\")","v":"lö"},{"$f":"TEXT(WEEKDAY(DATE(Kalenderår+1,5,26),1),\"[$-41d]aaa\")","v":"sö"},{"$f":"TEXT(WEEKDAY(DATE(Kalenderår+1,5,27),1),\"[$-41d]aaa\")","v":"må"},{"$f":"TEXT(WEEKDAY(DATE(Kalenderår+1,5,28),1),\"[$-41d]aaa\")","v":"ti"},{"$f":"TEXT(WEEKDAY(DATE(Kalenderår+1,5,29),1),\"[$-41d]aaa\")","v":"on"},{"$f":"TEXT(WEEKDAY(DATE(Kalenderår+1,5,30),1),\"[$-41d]aaa\")","v":"to"},{"$f":"TEXT(WEEKDAY(DATE(Kalenderår+1,5,31),1),\"[$-41d]aaa\")","v":"fr"},"Summor"]
[null,"Elev-ID","Elevens namn","1","2","3","4","5","6","7","8","9","10","11","12","13","14","15","16","17","18","19","20","21","22","23","24","25","26","27","28","29","30","31","S","L","O","N","Frånvarodagar"]
[null,null,{"$f":"IFERROR(VLOOKUP(Närvaro_maj[[#This Row],[Elev-ID]],Elevlista[],18,FALSE),\"\")","v":""},{"$nulls":31},{"$f":"COUNTIF(Närvaro_maj[[#This Row],[1]:[31]],Kod_1)","v":0},{"$f":"COUNTIF(Närvaro_maj[[#This Row],[1]:[31]],Kod_2)","v":0},{"$f":"COUNTIF(Närvaro_maj[[#This Row],[1]:[31]],Kod_3)","v":0},{"$f":"COUNTIF(Närvaro_maj[[#This Row],[1]:[31]],Kod_4)","v":0},{"$f":"SUM(Närvaro_maj[[#This Row],[L]:[O]])","v":0}]
[null,null,{"$f":"IFERROR(VLOOKUP(Närvaro_maj[[#This Row],[Elev-ID]],Elevlista[],18,FALSE),\"\")","v":""},{"$nulls":31},{"$f":"COUNTIF(Närvaro_maj[[#This Row],[1]:[31]],Kod_1)","v":0},{"$f":"COUNTIF(Närvaro_maj[[#This Row],[1]:[31]],Kod_2)","v":0},{"$f":"COUNTIF(Närvaro_maj[[#This Row],[1]:[31]],Kod_3)","v":0},{"$f":"COUNTIF(Närvaro_maj[[#This Row],[1]:[31]],Kod_4)","v":0},{"$f":"SUM(Närvaro_maj[[#This Row],[L]:[O]])","v":0}]
[null,null,{"$f":"IFERROR(VLOOKUP(Närvaro_maj[[#This Row],[Elev-ID]],Elevlista[],18,FALSE),\"\")","v":""},{"$nulls":31},{"$f":"COUNTIF(Närvaro_maj[[#This Row],[1]:[31]],Kod_1)","v":0},{"$f":"COUNTIF(Närvaro_maj[[#This Row],[1]:[31]],Kod_2)","v":0},{"$f":"COUNTIF(Närvaro_maj[[#This Row],[1]:[31]],Kod_3)","v":0},{"$f":"COUNTIF(Närvaro_maj[[#This Row],[1]:[31]],Kod_4)","v":0},{"$f":"SUM(Närvaro_maj[[#This Row],[L]:[O]])","v":0}]
[null,null,{"$f":"IFERROR(VLOOKUP(Närvaro_maj[[#This Row],[Elev-ID]],Elevlista[],18,FALSE),\"\")","v":""},{"$nulls":31},{"$f":"COUNTIF(Närvaro_maj[[#This Row],[1]:[31]],Kod_1)","v":0},{"$f":"COUNTIF(Närvaro_maj[[#This Row],[1]:[31]],Kod_2)","v":0},{"$f":"COUNTIF(Närvaro_maj[[#This Row],[1]:[31]],Kod_3)","v":0},{"$f":"COUNTIF(Närvaro_maj[[#This Row],[1]:[31]],Kod_4)","v":0},{"$f":"SUM(Närvaro_maj[[#This Row],[L]:[O]])","v":0}]
[null,null,{"$f":"IFERROR(VLOOKUP(Närvaro_maj[[#This Row],[Elev-ID]],Elevlista[],18,FALSE),\"\")","v":""},{"$nulls":31},{"$f":"COUNTIF(Närvaro_maj[[#This Row],[1]:[31]],Kod_1)","v":0},{"$f":"COUNTIF(Närvaro_maj[[#This Row],[1]:[31]],Kod_2)","v":0},{"$f":"COUNTIF(Närvaro_maj[[#This Row],[1]:[31]],Kod_3)","v":0},{"$f":"COUNTIF(Närvaro_maj[[#This Row],[1]:[31]],Kod_4)","v":0},{"$f":"SUM(Närvaro_maj[[#This Row],[L]:[O]])","v":0}]
[null,null,"Sammanlagda frånvarodagar'",{"$f":"COUNTIF(Närvaro_maj[1],\"O\")+COUNTIF(Närvaro_maj[1],\"L\")","v":0},{"$f":"COUNTIF(Närvaro_maj[2],\"O\")+COUNTIF(Närvaro_maj[2],\"L\")","v":0},{"$f":"COUNTIF(Närvaro_maj[3],\"O\")+COUNTIF(Närvaro_maj[3],\"L\")","v":0},{"$f":"COUNTIF(Närvaro_maj[4],\"O\")+COUNTIF(Närvaro_maj[4],\"L\")","v":0},{"$f":"COUNTIF(Närvaro_maj[5],\"O\")+COUNTIF(Närvaro_maj[5],\"L\")","v":0},{"$f":"COUNTIF(Närvaro_maj[6],\"O\")+COUNTIF(Närvaro_maj[6],\"L\")","v":0},{"$f":"COUNTIF(Närvaro_maj[7],\"O\")+COUNTIF(Närvaro_maj[7],\"L\")","v":0},{"$f":"COUNTIF(Närvaro_maj[8],\"O\")+COUNTIF(Närvaro_maj[8],\"L\")","v":0},{"$f":"COUNTIF(Närvaro_maj[9],\"O\")+COUNTIF(Närvaro_maj[9],\"L\")","v":0},{"$f":"COUNTIF(Närvaro_maj[10],\"O\")+COUNTIF(Närvaro_maj[10],\"L\")","v":0},{"$f":"COUNTIF(Närvaro_maj[11],\"O\")+COUNTIF(Närvaro_maj[11],\"L\")","v":0},{"$f":"COUNTIF(Närvaro_maj[12],\"O\")+COUNTIF(Närvaro_maj[12],\"L\")","v":0},{"$f":"COUNTIF(Närvaro_maj[13],\"O\")+COUNTIF(Närvaro_maj[13],\"L\")","v":0},{"$f":"COUNTIF(Närvaro_maj[14],\"O\")+COUNTIF(Närvaro_maj[14],\"L\")","v":0},{"$f":"COUNTIF(Närvaro_maj[15],\"O\")+COUNTIF(Närvaro_maj[15],\"L\")","v":0},{"$f":"COUNTIF(Närvaro_maj[16],\"O\")+COUNTIF(Närvaro_maj[16],\"L\")","v":0},{"$f":"COUNTIF(Närvaro_maj[17],\"O\")+COUNTIF(Närvaro_maj[17],\"L\")","v":0},{"$f":"COUNTIF(Närvaro_maj[18],\"O\")+COUNTIF(Närvaro_maj[18],\"L\")","v":0},{"$f":"COUNTIF(Närvaro_maj[19],\"O\")+COUNTIF(Närvaro_maj[19],\"L\")","v":0},{"$f":"COUNTIF(Närvaro_maj[20],\"O\")+COUNTIF(Närvaro_maj[20],\"L\")","v":0},{"$f":"COUNTIF(Närvaro_maj[21],\"O\")+COUNTIF(Närvaro_maj[21],\"L\")","v":0},{"$f":"COUNTIF(Närvaro_maj[22],\"O\")+COUNTIF(Närvaro_maj[22],\"L\")","v":0},{"$f":"COUNTIF(Närvaro_maj[23],\"O\")+COUNTIF(Närvaro_maj[23],\"L\")","v":0},{"$f":"COUNTIF(Närvaro_maj[24],\"O\")+COUNTIF(Närvaro_maj[24],\"L\")","v":0},{"$f":"COUNTIF(Närvaro_maj[25],\"O\")+COUNTIF(Närvaro_maj[25],\"L\")","v":0},{"$f":"COUNTIF(Närvaro_maj[26],\"O\")+COUNTIF(Närvaro_maj[26],\"L\")","v":0},{"$f":"COUNTIF(Närvaro_maj[27],\"O\")+COUNTIF(Närvaro_maj[27],\"L\")","v":0},{"$f":"COUNTIF(Närvaro_maj[28],\"O\")+COUNTIF(Närvaro_maj[28],\"L\")","v":0},{"$f":"COUNTIF(Närvaro_maj[29],\"O\")+COUNTIF(Närvaro_maj[29],\"L\")","v":0},{"$f":"COUNTIF(Närvaro_maj[30],\"O\")+COUNTIF(Närvaro_maj[30],\"L\")","v":0},{"$f":"COUNTIF(Närvaro_maj[31],\"O\")+COUNTIF(Närvaro_maj[31],\"L\")","v":0},{"$f":"SUBTOTAL(109,Närvaro_maj[S])","v":0},{"$f":"SUBTOTAL(109,Närvaro_maj[L])","v":0},{"$f":"SUBTOTAL(109,Närvaro_maj[O])","v":0},{"$f":"SUBTOTAL(109,Närvaro_maj[N])","v":0},{"$f":"SUBTOTAL(109,Närvaro_maj[Frånvarodagar])","v":0}]

{"sheet":"Juni","index":12,"n_rows":12,"n_cols":39,"rows_kept":12,"merged":[[4,34,4,38]]}
["NÄRVARORAPPORT FÖR ELEVER",{"$nulls":36},"Skolårets början",{"$f":"Kalenderår","v":2012}]
[]
[null,null,{"$f":"Färgkod_text","v":"FÄRGKODNING "},{"$f":"Kod_1","v":"S"},{"$f":"Kod1_text","v":"Sen ankomst"},null,null,{"$f":"Kod_2","v":"L"},{"$f":"Kod2_text","v":"Lovlig frånvaro"},null,null,{"$f":"Kod_3","v":"O"},{"$f":"Kod3_text","v":"Olovlig frånvaro"},null,null,{"$f":"Kod_4","v":"N"},{"$f":"Kod4_text","v":"Närvarande"},null,null,{"$f":"Kod_5","v":"I"},{"$f":"Kod5_text","v":"Ingen skola"}]
[]
[null,{"$f":"DATE(Kalenderår+1,6,1)","v":"2013-06-01"},null,{"$f":"TEXT(WEEKDAY(DATE(Kalenderår+1,6,1),1),\"[$-41d]aaa\")","v":"lö"},{"$f":"TEXT(WEEKDAY(DATE(Kalenderår+1,6,2),1),\"[$-41d]aaa\")","v":"sö"},{"$f":"TEXT(WEEKDAY(DATE(Kalenderår+1,6,3),1),\"[$-41d]aaa\")","v":"må"},{"$f":"TEXT(WEEKDAY(DATE(Kalenderår+1,6,4),1),\"[$-41d]aaa\")","v":"ti"},{"$f":"TEXT(WEEKDAY(DATE(Kalenderår+1,6,5),1),\"[$-41d]aaa\")","v":"on"},{"$f":"TEXT(WEEKDAY(DATE(Kalenderår+1,6,6),1),\"[$-41d]aaa\")","v":"to"},{"$f":"TEXT(WEEKDAY(DATE(Kalenderår+1,6,7),1),\"[$-41d]aaa\")","v":"fr"},{"$f":"TEXT(WEEKDAY(DATE(Kalenderår+1,6,8),1),\"[$-41d]aaa\")","v":"lö"},{"$f":"TEXT(WEEKDAY(DATE(Kalenderår+1,6,9),1),\"[$-41d]aaa\")","v":"sö"},{"$f":"TEXT(WEEKDAY(DATE(Kalenderår+1,6,10),1),\"[$-41d]aaa\")","v":"må"},{"$f":"TEXT(WEEKDAY(DATE(Kalenderår+1,6,11),1),\"[$-41d]aaa\")","v":"ti"},{"$f":"TEXT(WEEKDAY(DATE(Kalenderår+1,6,12),1),\"[$-41d]aaa\")","v":"on"},{"$f":"TEXT(WEEKDAY(DATE(Kalenderår+1,6,13),1),\"[$-41d]aaa\")","v":"to"},{"$f":"TEXT(WEEKDAY(DATE(Kalenderår+1,6,14),1),\"[$-41d]aaa\")","v":"fr"},{"$f":"TEXT(WEEKDAY(DATE(Kalenderår+1,6,15),1),\"[$-41d]aaa\")","v":"lö"},{"$f":"TEXT(WEEKDAY(DATE(Kalenderår+1,6,16),1),\"[$-41d]aaa\")","v":"sö"},{"$f":"TEXT(WEEKDAY(DATE(Kalenderår+1,6,17),1),\"[$-41d]aaa\")","v":"må"},{"$f":"TEXT(WEEKDAY(DATE(Kalenderår+1,6,18),1),\"[$-41d]aaa\")","v":"ti"},{"$f":"TEXT(WEEKDAY(DATE(Kalenderår+1,6,19),1),\"[$-41d]aaa\")","v":"on"},{"$f":"TEXT(WEEKDAY(DATE(Kalenderår+1,6,20),1),\"[$-41d]aaa\")","v":"to"},{"$f":"TEXT(WEEKDAY(DATE(Kalenderår+1,6,21),1),\"[$-41d]aaa\")","v":"fr"},{"$f":"TEXT(WEEKDAY(DATE(Kalenderår+1,6,22),1),\"[$-41d]aaa\")","v":"lö"},{"$f":"TEXT(WEEKDAY(DATE(Kalenderår+1,6,23),1),\"[$-41d]aaa\")","v":"sö"},{"$f":"TEXT(WEEKDAY(DATE(Kalenderår+1,6,24),1),\"[$-41d]aaa\")","v":"må"},{"$f":"TEXT(WEEKDAY(DATE(Kalenderår+1,6,25),1),\"[$-41d]aaa\")","v":"ti"},{"$f":"TEXT(WEEKDAY(DATE(Kalenderår+1,6,26),1),\"[$-41d]aaa\")","v":"on"},{"$f":"TEXT(WEEKDAY(DATE(Kalenderår+1,6,27),1),\"[$-41d]aaa\")","v":"to"},{"$f":"TEXT(WEEKDAY(DATE(Kalenderår+1,6,28),1),\"[$-41d]aaa\")","v":"fr"},{"$f":"TEXT(WEEKDAY(DATE(Kalenderår+1,6,29),1),\"[$-41d]aaa\")","v":"lö"},{"$f":"TEXT(WEEKDAY(DATE(Kalenderår+1,6,30),1),\"[$-41d]aaa\")","v":"sö"},null,"Summor"]
[null,"Elev-ID","Elevens namn","1","2","3","4","5","6","7","8","9","10","11","12","13","14","15","16","17","18","19","20","21","22","23","24","25","26","27","28","29","30"," ","S","L","O","N","Frånvarodagar"]
[null,null,{"$f":"IFERROR(VLOOKUP(Närvaro_juni[[#This Row],[Elev-ID]],Elevlista[],18,FALSE),\"\")","v":""},{"$nulls":31},{"$f":"COUNTIF(Närvaro_juni[[#This Row],[1]:[ ]],Kod_1)","v":0},{"$f":"COUNTIF(Närvaro_juni[[#This Row],[1]:[ ]],Kod_2)","v":0},{"$f":"COUNTIF(Närvaro_juni[[#This Row],[1]:[ ]],Kod_3)","v":0},{"$f":"COUNTIF(Närvaro_juni[[#This Row],[1]:[ ]],Kod_4)","v":0},{"$f":"SUM(Närvaro_juni[[#This Row],[L]:[O]])","v":0}]
[null,null,{"$f":"IFERROR(VLOOKUP(Närvaro_juni[[#This Row],[Elev-ID]],Elevlista[],18,FALSE),\"\")","v":""},{"$nulls":31},{"$f":"COUNTIF(Närvaro_juni[[#This Row],[1]:[ ]],Kod_1)","v":0},{"$f":"COUNTIF(Närvaro_juni[[#This Row],[1]:[ ]],Kod_2)","v":0},{"$f":"COUNTIF(Närvaro_juni[[#This Row],[1]:[ ]],Kod_3)","v":0},{"$f":"COUNTIF(Närvaro_juni[[#This Row],[1]:[ ]],Kod_4)","v":0},{"$f":"SUM(Närvaro_juni[[#This Row],[L]:[O]])","v":0}]
[null,null,{"$f":"IFERROR(VLOOKUP(Närvaro_juni[[#This Row],[Elev-ID]],Elevlista[],18,FALSE),\"\")","v":""},{"$nulls":31},{"$f":"COUNTIF(Närvaro_juni[[#This Row],[1]:[ ]],Kod_1)","v":0},{"$f":"COUNTIF(Närvaro_juni[[#This Row],[1]:[ ]],Kod_2)","v":0},{"$f":"COUNTIF(Närvaro_juni[[#This Row],[1]:[ ]],Kod_3)","v":0},{"$f":"COUNTIF(Närvaro_juni[[#This Row],[1]:[ ]],Kod_4)","v":0},{"$f":"SUM(Närvaro_juni[[#This Row],[L]:[O]])","v":0}]
[null,null,{"$f":"IFERROR(VLOOKUP(Närvaro_juni[[#This Row],[Elev-ID]],Elevlista[],18,FALSE),\"\")","v":""},{"$nulls":31},{"$f":"COUNTIF(Närvaro_juni[[#This Row],[1]:[ ]],Kod_1)","v":0},{"$f":"COUNTIF(Närvaro_juni[[#This Row],[1]:[ ]],Kod_2)","v":0},{"$f":"COUNTIF(Närvaro_juni[[#This Row],[1]:[ ]],Kod_3)","v":0},{"$f":"COUNTIF(Närvaro_juni[[#This Row],[1]:[ ]],Kod_4)","v":0},{"$f":"SUM(Närvaro_juni[[#This Row],[L]:[O]])","v":0}]
[null,null,{"$f":"IFERROR(VLOOKUP(Närvaro_juni[[#This Row],[Elev-ID]],Elevlista[],18,FALSE),\"\")","v":""},{"$nulls":31},{"$f":"COUNTIF(Närvaro_juni[[#This Row],[1]:[ ]],Kod_1)","v":0},{"$f":"COUNTIF(Närvaro_juni[[#This Row],[1]:[ ]],Kod_2)","v":0},{"$f":"COUNTIF(Närvaro_juni[[#This Row],[1]:[ ]],Kod_3)","v":0},{"$f":"COUNTIF(Närvaro_juni[[#This Row],[1]:[ ]],Kod_4)","v":0},{"$f":"SUM(Närvaro_juni[[#This Row],[L]:[O]])","v":0}]
[null,null,"Sammanlagda frånvarodagar'",{"$f":"COUNTIF(Närvaro_juni[1],\"O\")+COUNTIF(Närvaro_juni[1],\"L\")","v":0},{"$f":"COUNTIF(Närvaro_juni[2],\"O\")+COUNTIF(Närvaro_juni[2],\"L\")","v":0},{"$f":"COUNTIF(Närvaro_juni[3],\"O\")+COUNTIF(Närvaro_juni[3],\"L\")","v":0},{"$f":"COUNTIF(Närvaro_juni[4],\"O\")+COUNTIF(Närvaro_juni[4],\"L\")","v":0},{"$f":"COUNTIF(Närvaro_juni[5],\"O\")+COUNTIF(Närvaro_juni[5],\"L\")","v":0},{"$f":"COUNTIF(Närvaro_juni[6],\"O\")+COUNTIF(Närvaro_juni[6],\"L\")","v":0},{"$f":"COUNTIF(Närvaro_juni[7],\"O\")+COUNTIF(Närvaro_juni[7],\"L\")","v":0},{"$f":"COUNTIF(Närvaro_juni[8],\"O\")+COUNTIF(Närvaro_juni[8],\"L\")","v":0},{"$f":"COUNTIF(Närvaro_juni[9],\"O\")+COUNTIF(Närvaro_juni[9],\"L\")","v":0},{"$f":"COUNTIF(Närvaro_juni[10],\"O\")+COUNTIF(Närvaro_juni[10],\"L\")","v":0},{"$f":"COUNTIF(Närvaro_juni[11],\"O\")+COUNTIF(Närvaro_juni[11],\"L\")","v":0},{"$f":"COUNTIF(Närvaro_juni[12],\"O\")+COUNTIF(Närvaro_juni[12],\"L\")","v":0},{"$f":"COUNTIF(Närvaro_juni[13],\"O\")+COUNTIF(Närvaro_juni[13],\"L\")","v":0},{"$f":"COUNTIF(Närvaro_juni[14],\"O\")+COUNTIF(Närvaro_juni[14],\"L\")","v":0},{"$f":"COUNTIF(Närvaro_juni[15],\"O\")+COUNTIF(Närvaro_juni[15],\"L\")","v":0},{"$f":"COUNTIF(Närvaro_juni[16],\"O\")+COUNTIF(Närvaro_juni[16],\"L\")","v":0},{"$f":"COUNTIF(Närvaro_juni[17],\"O\")+COUNTIF(Närvaro_juni[17],\"L\")","v":0},{"$f":"COUNTIF(Närvaro_juni[18],\"O\")+COUNTIF(Närvaro_juni[18],\"L\")","v":0},{"$f":"COUNTIF(Närvaro_juni[19],\"O\")+COUNTIF(Närvaro_juni[19],\"L\")","v":0},{"$f":"COUNTIF(Närvaro_juni[20],\"O\")+COUNTIF(Närvaro_juni[20],\"L\")","v":0},{"$f":"COUNTIF(Närvaro_juni[21],\"O\")+COUNTIF(Närvaro_juni[21],\"L\")","v":0},{"$f":"COUNTIF(Närvaro_juni[22],\"O\")+COUNTIF(Närvaro_juni[22],\"L\")","v":0},{"$f":"COUNTIF(Närvaro_juni[23],\"O\")+COUNTIF(Närvaro_juni[23],\"L\")","v":0},{"$f":"COUNTIF(Närvaro_juni[24],\"O\")+COUNTIF(Närvaro_juni[24],\"L\")","v":0},{"$f":"COUNTIF(Närvaro_juni[25],\"O\")+COUNTIF(Närvaro_juni[25],\"L\")","v":0},{"$f":"COUNTIF(Närvaro_juni[26],\"O\")+COUNTIF(Närvaro_juni[26],\"L\")","v":0},{"$f":"COUNTIF(Närvaro_juni[27],\"O\")+COUNTIF(Närvaro_juni[27],\"L\")","v":0},{"$f":"COUNTIF(Närvaro_juni[28],\"O\")+COUNTIF(Närvaro_juni[28],\"L\")","v":0},{"$f":"COUNTIF(Närvaro_juni[29],\"O\")+COUNTIF(Närvaro_juni[29],\"L\")","v":0},{"$f":"COUNTIF(Närvaro_juni[30],\"O\")+COUNTIF(Närvaro_juni[30],\"L\")","v":0},{"$f":"COUNTIF(Närvaro_juni[[ ]],\"O\")+COUNTIF(Närvaro_juni[[ ]],\"L\")","v":0},{"$f":"SUBTOTAL(109,Närvaro_juni[S])","v":0},{"$f":"SUBTOTAL(109,Närvaro_juni[L])","v":0},{"$f":"SUBTOTAL(109,Närvaro_juni[O])","v":0},{"$f":"SUBTOTAL(109,Närvaro_juni[N])","v":0},{"$f":"SUBTOTAL(109,Närvaro_juni[Frånvarodagar])","v":0}]

{"sheet":"Juli","index":13,"n_rows":12,"n_cols":39,"rows_kept":12,"merged":[[4,34,4,38]]}
["NÄRVARORAPPORT FÖR ELEVER",{"$nulls":36},"Skolårets början",{"$f":"Kalenderår","v":2012}]
[]
[null,null,{"$f":"Färgkod_text","v":"FÄRGKODNING "},{"$f":"Kod_1","v":"S"},{"$f":"Kod1_text","v":"Sen ankomst"},null,null,{"$f":"Kod_2","v":"L"},{"$f":"Kod2_text","v":"Lovlig frånvaro"},null,null,{"$f":"Kod_3","v":"O"},{"$f":"Kod3_text","v":"Olovlig frånvaro"},null,null,{"$f":"Kod_4","v":"N"},{"$f":"Kod4_text","v":"Närvarande"},null,null,{"$f":"Kod_5","v":"I"},{"$f":"Kod5_text","v":"Ingen skola"}]
[]
[null,{"$f":"DATE(Kalenderår+1,7,1)","v":"2013-07-01"},null,{"$f":"TEXT(WEEKDAY(DATE(Kalenderår+1,7,1),1),\"[$-41d]aaa\")","v":"må"},{"$f":"TEXT(WEEKDAY(DATE(Kalenderår+1,7,2),1),\"[$-41d]aaa\")","v":"ti"},{"$f":"TEXT(WEEKDAY(DATE(Kalenderår+1,7,3),1),\"[$-41d]aaa\")","v":"on"},{"$f":"TEXT(WEEKDAY(DATE(Kalenderår+1,7,4),1),\"[$-41d]aaa\")","v":"to"},{"$f":"TEXT(WEEKDAY(DATE(Kalenderår+1,7,5),1),\"[$-41d]aaa\")","v":"fr"},{"$f":"TEXT(WEEKDAY(DATE(Kalenderår+1,7,6),1),\"[$-41d]aaa\")","v":"lö"},{"$f":"TEXT(WEEKDAY(DATE(Kalenderår+1,7,7),1),\"[$-41d]aaa\")","v":"sö"},{"$f":"TEXT(WEEKDAY(DATE(Kalenderår+1,7,8),1),\"[$-41d]aaa\")","v":"må"},{"$f":"TEXT(WEEKDAY(DATE(Kalenderår+1,7,9),1),\"[$-41d]aaa\")","v":"ti"},{"$f":"TEXT(WEEKDAY(DATE(Kalenderår+1,7,10),1),\"[$-41d]aaa\")","v":"on"},{"$f":"TEXT(WEEKDAY(DATE(Kalenderår+1,7,11),1),\"[$-41d]aaa\")","v":"to"},{"$f":"TEXT(WEEKDAY(DATE(Kalenderår+1,7,12),1),\"[$-41d]aaa\")","v":"fr"},{"$f":"TEXT(WEEKDAY(DATE(Kalenderår+1,7,13),1),\"[$-41d]aaa\")","v":"lö"},{"$f":"TEXT(WEEKDAY(DATE(Kalenderår+1,7,14),1),\"[$-41d]aaa\")","v":"sö"},{"$f":"TEXT(WEEKDAY(DATE(Kalenderår+1,7,15),1),\"[$-41d]aaa\")","v":"må"},{"$f":"TEXT(WEEKDAY(DATE(Kalenderår+1,7,16),1),\"[$-41d]aaa\")","v":"ti"},{"$f":"TEXT(WEEKDAY(DATE(Kalenderår+1,7,17),1),\"[$-41d]aaa\")","v":"on"},{"$f":"TEXT(WEEKDAY(DATE(Kalenderår+1,7,18),1),\"[$-41d]aaa\")","v":"to"},{"$f":"TEXT(WEEKDAY(DATE(Kalenderår+1,7,19),1),\"[$-41d]aaa\")","v":"fr"},{"$f":"TEXT(WEEKDAY(DATE(Kalenderår+1,7,20),1),\"[$-41d]aaa\")","v":"lö"},{"$f":"TEXT(WEEKDAY(DATE(Kalenderår+1,7,21),1),\"[$-41d]aaa\")","v":"sö"},{"$f":"TEXT(WEEKDAY(DATE(Kalenderår+1,7,22),1),\"[$-41d]aaa\")","v":"må"},{"$f":"TEXT(WEEKDAY(DATE(Kalenderår+1,7,23),1),\"[$-41d]aaa\")","v":"ti"},{"$f":"TEXT(WEEKDAY(DATE(Kalenderår+1,7,24),1),\"[$-41d]aaa\")","v":"on"},{"$f":"TEXT(WEEKDAY(DATE(Kalenderår+1,7,25),1),\"[$-41d]aaa\")","v":"to"},{"$f":"TEXT(WEEKDAY(DATE(Kalenderår+1,7,26),1),\"[$-41d]aaa\")","v":"fr"},{"$f":"TEXT(WEEKDAY(DATE(Kalenderår+1,7,27),1),\"[$-41d]aaa\")","v":"lö"},{"$f":"TEXT(WEEKDAY(DATE(Kalenderår+1,7,28),1),\"[$-41d]aaa\")","v":"sö"},{"$f":"TEXT(WEEKDAY(DATE(Kalenderår+1,7,29),1),\"[$-41d]aaa\")","v":"må"},{"$f":"TEXT(WEEKDAY(DATE(Kalenderår+1,7,30),1),\"[$-41d]aaa\")","v":"ti"},{"$f":"TEXT(WEEKDAY(DATE(Kalenderår+1,7,31),1),\"[$-41d]aaa\")","v":"on"},"Summor"]
[null,"Elev-ID","Elevens namn","1","2","3","4","5","6","7","8","9","10","11","12","13","14","15","16","17","18","19","20","21","22","23","24","25","26","27","28","29","30","31","S","L","O","N","Frånvarodagar"]
[null,null,{"$f":"IFERROR(VLOOKUP(Närvaro_juli[[#This Row],[Elev-ID]],Elevlista[],18,FALSE),\"\")","v":""},{"$nulls":31},{"$f":"COUNTIF(Närvaro_juli[[#This Row],[1]:[31]],Kod_1)","v":0},{"$f":"COUNTIF(Närvaro_juli[[#This Row],[1]:[31]],Kod_2)","v":0},{"$f":"COUNTIF(Närvaro_juli[[#This Row],[1]:[31]],Kod_3)","v":0},{"$f":"COUNTIF(Närvaro_juli[[#This Row],[1]:[31]],Kod_4)","v":0},{"$f":"SUM(Närvaro_juli[[#This Row],[L]:[O]])","v":0}]
[null,null,{"$f":"IFERROR(VLOOKUP(Närvaro_juli[[#This Row],[Elev-ID]],Elevlista[],18,FALSE),\"\")","v":""},{"$nulls":31},{"$f":"COUNTIF(Närvaro_juli[[#This Row],[1]:[31]],Kod_1)","v":0},{"$f":"COUNTIF(Närvaro_juli[[#This Row],[1]:[31]],Kod_2)","v":0},{"$f":"COUNTIF(Närvaro_juli[[#This Row],[1]:[31]],Kod_3)","v":0},{"$f":"COUNTIF(Närvaro_juli[[#This Row],[1]:[31]],Kod_4)","v":0},{"$f":"SUM(Närvaro_juli[[#This Row],[L]:[O]])","v":0}]
[null,null,{"$f":"IFERROR(VLOOKUP(Närvaro_juli[[#This Row],[Elev-ID]],Elevlista[],18,FALSE),\"\")","v":""},{"$nulls":31},{"$f":"COUNTIF(Närvaro_juli[[#This Row],[1]:[31]],Kod_1)","v":0},{"$f":"COUNTIF(Närvaro_juli[[#This Row],[1]:[31]],Kod_2)","v":0},{"$f":"COUNTIF(Närvaro_juli[[#This Row],[1]:[31]],Kod_3)","v":0},{"$f":"COUNTIF(Närvaro_juli[[#This Row],[1]:[31]],Kod_4)","v":0},{"$f":"SUM(Närvaro_juli[[#This Row],[L]:[O]])","v":0}]
[null,null,{"$f":"IFERROR(VLOOKUP(Närvaro_juli[[#This Row],[Elev-ID]],Elevlista[],18,FALSE),\"\")","v":""},{"$nulls":31},{"$f":"COUNTIF(Närvaro_juli[[#This Row],[1]:[31]],Kod_1)","v":0},{"$f":"COUNTIF(Närvaro_juli[[#This Row],[1]:[31]],Kod_2)","v":0},{"$f":"COUNTIF(Närvaro_juli[[#This Row],[1]:[31]],Kod_3)","v":0},{"$f":"COUNTIF(Närvaro_juli[[#This Row],[1]:[31]],Kod_4)","v":0},{"$f":"SUM(Närvaro_juli[[#This Row],[L]:[O]])","v":0}]
[null,null,{"$f":"IFERROR(VLOOKUP(Närvaro_juli[[#This Row],[Elev-ID]],Elevlista[],18,FALSE),\"\")","v":""},{"$nulls":31},{"$f":"COUNTIF(Närvaro_juli[[#This Row],[1]:[31]],Kod_1)","v":0},{"$f":"COUNTIF(Närvaro_juli[[#This Row],[1]:[31]],Kod_2)","v":0},{"$f":"COUNTIF(Närvaro_juli[[#This Row],[1]:[31]],Kod_3)","v":0},{"$f":"COUNTIF(Närvaro_juli[[#This Row],[1]:[31]],Kod_4)","v":0},{"$f":"SUM(Närvaro_juli[[#This Row],[L]:[O]])","v":0}]
[null,null,"Sammanlagda frånvarodagar'",{"$f":"COUNTIF(Närvaro_juli[1],\"O\")+COUNTIF(Närvaro_juli[1],\"L\")","v":0},{"$f":"COUNTIF(Närvaro_juli[2],\"O\")+COUNTIF(Närvaro_juli[2],\"L\")","v":0},{"$f":"COUNTIF(Närvaro_juli[3],\"O\")+COUNTIF(Närvaro_juli[3],\"L\")","v":0},{"$f":"COUNTIF(Närvaro_juli[4],\"O\")+COUNTIF(Närvaro_juli[4],\"L\")","v":0},{"$f":"COUNTIF(Närvaro_juli[5],\"O\")+COUNTIF(Närvaro_juli[5],\"L\")","v":0},{"$f":"COUNTIF(Närvaro_juli[6],\"O\")+COUNTIF(Närvaro_juli[6],\"L\")","v":0},{"$f":"COUNTIF(Närvaro_juli[7],\"O\")+COUNTIF(Närvaro_juli[7],\"L\")","v":0},{"$f":"COUNTIF(Närvaro_juli[8],\"O\")+COUNTIF(Närvaro_juli[8],\"L\")","v":0},{"$f":"COUNTIF(Närvaro_juli[9],\"O\")+COUNTIF(Närvaro_juli[9],\"L\")","v":0},{"$f":"COUNTIF(Närvaro_juli[10],\"O\")+COUNTIF(Närvaro_juli[10],\"L\")","v":0},{"$f":"COUNTIF(Närvaro_juli[11],\"O\")+COUNTIF(Närvaro_juli[11],\"L\")","v":0},{"$f":"COUNTIF(Närvaro_juli[12],\"O\")+COUNTIF(Närvaro_juli[12],\"L\")","v":0},{"$f":"COUNTIF(Närvaro_juli[13],\"O\")+COUNTIF(Närvaro_juli[13],\"L\")","v":0},{"$f":"COUNTIF(Närvaro_juli[14],\"O\")+COUNTIF(Närvaro_juli[14],\"L\")","v":0},{"$f":"COUNTIF(Närvaro_juli[15],\"O\")+COUNTIF(Närvaro_juli[15],\"L\")","v":0},{"$f":"COUNTIF(Närvaro_juli[16],\"O\")+COUNTIF(Närvaro_juli[16],\"L\")","v":0},{"$f":"COUNTIF(Närvaro_juli[17],\"O\")+COUNTIF(Närvaro_juli[17],\"L\")","v":0},{"$f":"COUNTIF(Närvaro_juli[18],\"O\")+COUNTIF(Närvaro_juli[18],\"L\")","v":0},{"$f":"COUNTIF(Närvaro_juli[19],\"O\")+COUNTIF(Närvaro_juli[19],\"L\")","v":0},{"$f":"COUNTIF(Närvaro_juli[20],\"O\")+COUNTIF(Närvaro_juli[20],\"L\")","v":0},{"$f":"COUNTIF(Närvaro_juli[21],\"O\")+COUNTIF(Närvaro_juli[21],\"L\")","v":0},{"$f":"COUNTIF(Närvaro_juli[22],\"O\")+COUNTIF(Närvaro_juli[22],\"L\")","v":0},{"$f":"COUNTIF(Närvaro_juli[23],\"O\")+COUNTIF(Närvaro_juli[23],\"L\")","v":0},{"$f":"COUNTIF(Närvaro_juli[24],\"O\")+COUNTIF(Närvaro_juli[24],\"L\")","v":0},{"$f":"COUNTIF(Närvaro_juli[25],\"O\")+COUNTIF(Närvaro_juli[25],\"L\")","v":0},{"$f":"COUNTIF(Närvaro_juli[26],\"O\")+COUNTIF(Närvaro_juli[26],\"L\")","v":0},{"$f":"COUNTIF(Närvaro_juli[27],\"O\")+COUNTIF(Närvaro_juli[27],\"L\")","v":0},{"$f":"COUNTIF(Närvaro_juli[28],\"O\")+COUNTIF(Närvaro_juli[28],\"L\")","v":0},{"$f":"COUNTIF(Närvaro_juli[29],\"O\")+COUNTIF(Närvaro_juli[29],\"L\")","v":0},{"$f":"COUNTIF(Närvaro_juli[30],\"O\")+COUNTIF(Närvaro_juli[30],\"L\")","v":0},{"$f":"COUNTIF(Närvaro_juli[31],\"O\")+COUNTIF(Närvaro_juli[31],\"L\")","v":0},{"$f":"SUBTOTAL(109,Närvaro_juli[S])","v":0},{"$f":"SUBTOTAL(109,Närvaro_juli[L])","v":0},{"$f":"SUBTOTAL(109,Närvaro_juli[O])","v":0},{"$f":"SUBTOTAL(109,Närvaro_juli[N])","v":0},{"$f":"SUBTOTAL(109,Närvaro_juli[Frånvarodagar])","v":0}]

{"sheet":"Närvarorapport för elev","index":14,"n_rows":40,"n_cols":37,"rows_kept":40,"merged":[[2,3,2,14],[2,15,2,17],[2,18,2,21],[2,22,2,29],[2,30,2,31],[2,32,2,35],[3,1,3,2],[3,3,3,14],[3,15,3,17],[3,18,3,21],[3,22,3,29],[3,30,3,31],[3,32,3,35],[4,1,4,9],[4,10,4,21],[4,22,4,29],[4,30,4,36],[5,1,5,9],[5,10,5,21],[5,22,5,29],[5,30,5,36],[6,1,6,9],[6,10,6,21],[6,22,6,29],[6,30,6,36],[7,1,7,9],[7,10,7,21],[7,22,7,29],[7,30,7,36],[8,1,8,9],[8,10,8,21],[8,22,8,29],[8,30,8,36],[9,1,9,9],[9,10,9,21],[9,22,9,29],[9,30,9,36],[13,1,14,32],[13,33,13,36],[15,1,16,1],[15,33,16,33],[15,34,16,34],[15,35,16,35],[15,36,16,36],[17,1,18,1],[17,33,18,33],[17,34,18,34],[17,35,18,35],[17,36,18,36],[19,1,20,1],[19,33,20,33],[19,34,20,34],[19,35,20,35],[19,36,20,36],[21,1,22,1],[21,33,22,33],[21,34,22,34],[21,35,22,35],[21,36,22,36],[23,1,24,1],[23,33,24,33],[23,34,24,34],[23,35,24,35],[23,36,24,36],[25,1,26,1],[25,33,26,33],[25,34,26,34],[25,35,26,35],[25,36,26,36],[27,1,28,1],[27,33,28,33],[27,34,28,34],[27,35,28,35],[27,36,28,36],[29,1,30,1],[29,33,30,33],[29,34,30,34],[29,35,30,35],[29,36,30,36],[31,1,32,1],[31,33,32,33],[31,34,32,34],[31,35,32,35],[31,36,32,36],[33,1,34,1],[33,33,34,33],[33,34,34,34],[33,35,34,35],[33,36,34,36],[35,1,36,1],[35,33,36,33],[35,34,36,34],[35,35,36,35],[35,36,36,36],[37,1,38,1],[37,33,38,33],[37,34,38,34],[37,35,38,35],[37,36,38,36],[39,30,39,32]]}
[{"$f":"\"Närvarorapport för \"","v":"Närvarorapport för "},{"$nulls":7},{"$f":"D4","v":"David Alexander"}]
[]
[null,"Elev-ID",null,"Elevens namn",{"$nulls":11},"Kön",null,null,"Födelsedatum",{"$nulls":3},"Skola",{"$nulls":7},"Årskurs",null,"Lärare",{"$nulls":3},"Rum"]
[null,"S001",null,{"$f":"IFERROR(VLOOKUP(Sök_efter_elev,Elevlista[],18,FALSE),\"\")","v":"David Alexander"},{"$nulls":11},{"$f":"IFERROR(VLOOKUP(Sök_efter_elev,Elevlista[],4,FALSE),\"\")","v":"M"},null,null,{"$f":"IFERROR(VLOOKUP(Sök_efter_elev,Elevlista[],5,FALSE),\"\")","v":"1997-03-28"},{"$nulls":3},"School of Fine Art ",{"$nulls":7},7,null,"Luca Argentiero",{"$nulls":3},123]
[null,"Namn på målsman 1",{"$nulls":8},"Relation",{"$nulls":11},"Arbetstelefon",{"$nulls":7},"Hemtelefon"]
[null,{"$f":"IFERROR(VLOOKUP(Sök_efter_elev,Elevlista[],6,FALSE),\"\")","v":"Michelle"},{"$nulls":8},{"$f":"IFERROR(VLOOKUP(Sök_efter_elev,Elevlista[],7,FALSE),\"\")","v":"Alexander"},{"$nulls":11},{"$f":"IFERROR(VLOOKUP(Sök_efter_elev,Elevlista[],8,FALSE),\"\")","v":1235550134},{"$nulls":7},{"$f":"IFERROR(VLOOKUP(Sök_efter_elev,Elevlista[],9,FALSE),\"\")","v":2345550134}]
[null,"Namn på målsman 2",{"$nulls":8},"Relation",{"$nulls":11},"Arbetstelefon",{"$nulls":7},"Hemtelefon"]
[null,{"$f":"IFERROR(VLOOKUP(Sök_efter_elev,Elevlista[],10,FALSE),\"\")","v":"Michael Alexander"},{"$nulls":8},{"$f":"IFERROR(VLOOKUP(Sök_efter_elev,Elevlista[],11,FALSE),\"\")","v":"Far"},{"$nulls":11},{"$f":"IFERROR(VLOOKUP(Sök_efter_elev,Elevlista[],12,FALSE),\"\")","v":1235550134},{"$nulls":7},{"$f":"IFERROR(VLOOKUP(Sök_efter_elev,Elevlista[],13,FALSE),\"\")","v":2345550134}]
[null,"Kontaktperson vid nödsituationer",{"$nulls":8},"Relation",{"$nulls":11},"Arbetstelefon",{"$nulls":7},"Hemtelefon"]
[null,{"$f":"IFERROR(VLOOKUP(Sök_efter_elev,Elevlista[],14,FALSE),\"\")","v":"Reed Koch"},{"$nulls":8},{"$f":"IFERROR(VLOOKUP(Sök_efter_elev,Elevlista[],15,FALSE),\"\")","v":"Farfar"},{"$nulls":11},{"$f":"IFERROR(VLOOKUP(Sök_efter_elev,Elevlista[],16,FALSE),\"\")","v":7895550189},{"$nulls":7},{"$f":"IFERROR(VLOOKUP(Sök_efter_elev,Elevlista[],17,FALSE),\"\")","v":7895550134}]
[]
[null,{"$f":"Augusti!C3","v":"FÄRGKODNING "},{"$f":"Augusti!D3","v":"S"},{"$f":"Augusti!E3","v":"Sen ankomst"},null,null,{"$f":"Augusti!H3","v":"L"},{"$f":"Augusti!I3","v":"Lovlig frånvaro"},null,null,{"$f":"Augusti!L3","v":"O"},{"$f":"Augusti!M3","v":"Olovlig frånvaro"},{"$nulls":3},{"$f":"Augusti!P3","v":"N"},{"$f":"Augusti!Q3","v":"Närvarande"},null,null,{"$f":"Augusti!T3","v":"I"},{"$f":"Augusti!U3","v":"Ingen skola"}]
[]
[null,"Närvaro",{"$nulls":31},"Närvaroverktyg"]
[{"$nulls":33},"S","L","O","N"]
[null,"Augusti",1,2,3,4,5,6,7,8,9,10,11,12,13,14,15,16,17,18,19,20,21,22,23,24,25,26,27,28,29,30,31,{"$f":"COUNTIF($D17:$AH17,Kod_1)","v":2},{"$f":"COUNTIF($D17:$AH17,Kod_2)","v":1},{"$f":"COUNTIF($D17:$AH17,Kod_3)","v":0},{"$f":"COUNTIF($D17:$AH17,Kod_4)","v":19}]
[null,null,{"$f":"IFERROR(VLOOKUP(Sök_efter_elev,Närvaro_augusti[],3,FALSE),\"\")","v":"N"},{"$f":"IFERROR(VLOOKUP(Sök_efter_elev,Närvaro_augusti[],4,FALSE),\"\")","v":"N"},{"$f":"IFERROR(VLOOKUP(Sök_efter_elev,Närvaro_augusti[],5,FALSE),\"\")","v":"S"},{"$f":"IFERROR(VLOOKUP(Sök_efter_elev,Närvaro_augusti[],6,FALSE),\"\")","v":"S"},{"$f":"IFERROR(VLOOKUP(Sök_efter_elev,Närvaro_augusti[],7,FALSE),\"\")","v":"N"},{"$f":"IFERROR(VLOOKUP(Sök_efter_elev,Närvaro_augusti[],8,FALSE),\"\")","v":"I"},{"$f":"IFERROR(VLOOKUP(Sök_efter_elev,Närvaro_augusti[],9,FALSE),\"\")","v":"I"},{"$f":"IFERROR(VLOOKUP(Sök_efter_elev,Närvaro_augusti[],10,FALSE),\"\")","v":"N"},{"$f":"IFERROR(VLOOKUP(Sök_efter_elev,Närvaro_augusti[],11,FALSE),\"\")","v":"N"},{"$f":"IFERROR(VLOOKUP(Sök_efter_elev,Närvaro_augusti[],12,FALSE),\"\")","v":"L"},{"$f":"IFERROR(VLOOKUP(Sök_efter_elev,Närvaro_augusti[],13,FALSE),\"\")","v":"N"},{"$f":"IFERROR(VLOOKUP(Sök_efter_elev,Närvaro_augusti[],14,FALSE),\"\")","v":"N"},{"$f":"IFERROR(VLOOKUP(Sök_efter_elev,Närvaro_augusti[],15,FALSE),\"\")","v":"I"},{"$f":"IFERROR(VLOOKUP(Sök_efter_elev,Närvaro_augusti[],16,FALSE),\"\")","v":"I"},{"$f":"IFERROR(VLOOKUP(Sök_efter_elev,Närvaro_augusti[],17,FALSE),\"\")","v":"N"},{"$f":"IFERROR(VLOOKUP(Sök_efter_elev,Närvaro_augusti[],18,FALSE),\"\")","v":"N"},{"$f":"IFERROR(VLOOKUP(Sök_efter_elev,Närvaro_augusti[],19,FALSE),\"\")","v":"N"},{"$f":"IFERROR(VLOOKUP(Sök_efter_elev,Närvaro_augusti[],20,FALSE),\"\")","v":"N"},{"$f":"IFERROR(VLOOKUP(Sök_efter_elev,Närvaro_augusti[],21,FALSE),\"\")","v":"N"},{"$f":"IFERROR(VLOOKUP(Sök_efter_elev,Närvaro_augusti[],22,FALSE),\"\")","v":"I"},{"$f":"IFERROR(VLOOKUP(Sök_efter_elev,Närvaro_augusti[],23,FALSE),\"\")","v":"I"},{"$f":"IFERROR(VLOOKUP(Sök_efter_elev,Närvaro_augusti[],24,FALSE),\"\")","v":"N"},{"$f":"IFERROR(VLOOKUP(Sök_efter_elev,Närvaro_augusti[],25,FALSE),\"\")","v":"N"},{"$f":"IFERROR(VLOOKUP(Sök_efter_elev,Närvaro_augusti[],26,FALSE),\"\")","v":"N"},{"$f":"IFERROR(VLOOKUP(Sök_efter_elev,Närvaro_augusti[],27,FALSE),\"\")","v":"N"},{"$f":"IFERROR(VLOOKUP(Sök_efter_elev,Närvaro_augusti[],28,FALSE),\"\")","v":"N"},{"$f":"IFERROR(VLOOKUP(Sök_efter_elev,Närvaro_augusti[],29,FALSE),\"\")","v":"I"},{"$f":"IFERROR(VLOOKUP(Sök_efter_elev,Närvaro_augusti[],30,FALSE),\"\")","v":"I"},{"$f":"IFERROR(VLOOKUP(Sök_efter_elev,Närvaro_augusti[],31,FALSE),\"\")","v":"N"},{"$f":"IFERROR(VLOOKUP(Sök_efter_elev,Närvaro_augusti[],32,FALSE),\"\")","v":"N"},{"$f":"IFERROR(VLOOKUP(Sök_efter_elev,Närvaro_augusti[],33,FALSE),\"\")","v":"N"}]
[null,"September",1,2,3,4,5,6,7,8,9,10,11,12,13,14,15,16,17,18,19,20,21,22,23,24,25,26,27,28,29,30,null,{"$f":"COUNTIF($D19:$AH19,Kod_1)","v":0},{"$f":"COUNTIF($D19:$AH19,Kod_2)","v":0},{"$f":"COUNTIF($D19:$AH19,Kod_3)","v":0},{"$f":"COUNTIF($D19:$AH19,Kod_4)","v":0}]
[null,null,{"$f":"IFERROR(VLOOKUP(Sök_efter_elev,Närvaro_september[],3,FALSE),\"\")","v":""},{"$f":"IFERROR(VLOOKUP(Sök_efter_elev,Närvaro_september[],4,FALSE),\"\")","v":""},{"$f":"IFERROR(VLOOKUP(Sök_efter_elev,Närvaro_september[],5,FALSE),\"\")","v":""},{"$f":"IFERROR(VLOOKUP(Sök_efter_elev,Närvaro_september[],6,FALSE),\"\")","v":""},{"$f":"IFERROR(VLOOKUP(Sök_efter_elev,Närvaro_september[],7,FALSE),\"\")","v":""},{"$f":"IFERROR(VLOOKUP(Sök_efter_elev,Närvaro_september[],8,FALSE),\"\")","v":""},{"$f":"IFERROR(VLOOKUP(Sök_efter_elev,Närvaro_september[],9,FALSE),\"\")","v":""},{"$f":"IFERROR(VLOOKUP(Sök_efter_elev,Närvaro_september[],10,FALSE),\"\")","v":""},{"$f":"IFERROR(VLOOKUP(Sök_efter_elev,Närvaro_september[],11,FALSE),\"\")","v":""},{"$f":"IFERROR(VLOOKUP(Sök_efter_elev,Närvaro_september[],12,FALSE),\"\")","v":""},{"$f":"IFERROR(VLOOKUP(Sök_efter_elev,Närvaro_september[],13,FALSE),\"\")","v":""},{"$f":"IFERROR(VLOOKUP(Sök_efter_elev,Närvaro_september[],14,FALSE),\"\")","v":""},{"$f":"IFERROR(VLOOKUP(Sök_efter_elev,Närvaro_september[],15,FALSE),\"\")","v":""},{"$f":"IFERROR(VLOOKUP(Sök_efter_elev,Närvaro_september[],16,FALSE),\"\")","v":""},{"$f":"IFERROR(VLOOKUP(Sök_efter_elev,Närvaro_september[],17,FALSE),\"\")","v":""},{"$f":"IFERROR(VLOOKUP(Sök_efter_elev,Närvaro_september[],18,FALSE),\"\")","v":""},{"$f":"IFERROR(VLOOKUP(Sök_efter_elev,Närvaro_september[],19,FALSE),\"\")","v":""},{"$f":"IFERROR(VLOOKUP(Sök_efter_elev,Närvaro_september[],20,FALSE),\"\")","v":""},{"$f":"IFERROR(VLOOKUP(Sök_efter_elev,Närvaro_september[],21,FALSE),\"\")","v":""},{"$f":"IFERROR(VLOOKUP(Sök_efter_elev,Närvaro_september[],22,FALSE),\"\")","v":""},{"$f":"IFERROR(VLOOKUP(Sök_efter_elev,Närvaro_september[],23,FALSE),\"\")","v":""},{"$f":"IFERROR(VLOOKUP(Sök_efter_elev,Närvaro_september[],24,FALSE),\"\")","v":""},{"$f":"IFERROR(VLOOKUP(Sök_efter_elev,Närvaro_september[],25,FALSE),\"\")","v":""},{"$f":"IFERROR(VLOOKUP(Sök_efter_elev,Närvaro_september[],26,FALSE),\"\")","v":""},{"$f":"IFERROR(VLOOKUP(Sök_efter_elev,Närvaro_september[],27,FALSE),\"\")","v":""},{"$f":"IFERROR(VLOOKUP(Sök_efter_elev,Närvaro_september[],28,FALSE),\"\")","v":""},{"$f":"IFERROR(VLOOKUP(Sök_efter_elev,Närvaro_september[],29,FALSE),\"\")","v":""},{"$f":"IFERROR(VLOOKUP(Sök_efter_elev,Närvaro_september[],30,FALSE),\"\")","v":""},{"$f":"IFERROR(VLOOKUP(Sök_efter_elev,Närvaro_september[],31,FALSE),\"\")","v":""},{"$f":"IFERROR(VLOOKUP(Sök_efter_elev,Närvaro_september[],32,FALSE),\"\")","v":""}]
[null,"Oktober",1,2,3,4,5,6,7,8,9,10,11,12,13,14,15,16,17,18,19,20,21,22,23,24,25,26,27,28,29,30,31,{"$f":"COUNTIF($D21:$AH21,Kod_1)","v":0},{"$f":"COUNTIF($D21:$AH21,Kod_2)","v":0},{"$f":"COUNTIF($D21:$AH21,Kod_3)","v":0},{"$f":"COUNTIF($D21:$AH21,Kod_4)","v":0}]
[null,null,{"$f":"IFERROR(VLOOKUP(Sök_efter_elev,Närvaro_oktober[],3,FALSE),\"\")","v":""},{"$f":"IFERROR(VLOOKUP(Sök_efter_elev,Närvaro_oktober[],4,FALSE),\"\")","v":""},{"$f":"IFERROR(VLOOKUP(Sök_efter_elev,Närvaro_oktober[],5,FALSE),\"\")","v":""},{"$f":"IFERROR(VLOOKUP(Sök_efter_elev,Närvaro_oktober[],6,FALSE),\"\")","v":""},{"$f":"IFERROR(VLOOKUP(Sök_efter_elev,Närvaro_oktober[],7,FALSE),\"\")","v":""},{"$f":"IFERROR(VLOOKUP(Sök_efter_elev,Närvaro_oktober[],8,FALSE),\"\")","v":""},{"$f":"IFERROR(VLOOKUP(Sök_efter_elev,Närvaro_oktober[],9,FALSE),\"\")","v":""},{"$f":"IFERROR(VLOOKUP(Sök_efter_elev,Närvaro_oktober[],10,FALSE),\"\")","v":""},{"$f":"IFERROR(VLOOKUP(Sök_efter_elev,Närvaro_oktober[],11,FALSE),\"\")","v":""},{"$f":"IFERROR(VLOOKUP(Sök_efter_elev,Närvaro_oktober[],12,FALSE),\"\")","v":""},{"$f":"IFERROR(VLOOKUP(Sök_efter_elev,Närvaro_oktober[],13,FALSE),\"\")","v":""},{"$f":"IFERROR(VLOOKUP(Sök_efter_elev,Närvaro_oktober[],14,FALSE),\"\")","v":""},{"$f":"IFERROR(VLOOKUP(Sök_efter_elev,Närvaro_oktober[],15,FALSE),\"\")","v":""},{"$f":"IFERROR(VLOOKUP(Sök_efter_elev,Närvaro_oktober[],16,FALSE),\"\")","v":""},{"$f":"IFERROR(VLOOKUP(Sök_efter_elev,Närvaro_oktober[],17,FALSE),\"\")","v":""},{"$f":"IFERROR(VLOOKUP(Sök_efter_elev,Närvaro_oktober[],18,FALSE),\"\")","v":""},{"$f":"IFERROR(VLOOKUP(Sök_efter_elev,Närvaro_oktober[],19,FALSE),\"\")","v":""},{"$f":"IFERROR(VLOOKUP(Sök_efter_elev,Närvaro_oktober[],20,FALSE),\"\")","v":""},{"$f":"IFERROR(VLOOKUP(Sök_efter_elev,Närvaro_oktober[],21,FALSE),\"\")","v":""},{"$f":"IFERROR(VLOOKUP(Sök_efter_elev,Närvaro_oktober[],22,FALSE),\"\")","v":""},{"$f":"IFERROR(VLOOKUP(Sök_efter_elev,Närvaro_oktober[],23,FALSE),\"\")","v":""},{"$f":"IFERROR(VLOOKUP(Sök_efter_elev,Närvaro_oktober[],24,FALSE),\"\")","v":""},{"$f":"IFERROR(VLOOKUP(Sök_efter_elev,Närvaro_oktober[],25,FALSE),\"\")","v":""},{"$f":"IFERROR(VLOOKUP(Sök_efter_elev,Närvaro_oktober[],26,FALSE),\"\")","v":""},{"$f":"IFERROR(VLOOKUP(Sök_efter_elev,Närvaro_oktober[],27,FALSE),\"\")","v":""},{"$f":"IFERROR(VLOOKUP(Sök_efter_elev,Närvaro_oktober[],28,FALSE),\"\")","v":""},{"$f":"IFERROR(VLOOKUP(Sök_efter_elev,Närvaro_oktober[],29,FALSE),\"\")","v":""},{"$f":"IFERROR(VLOOKUP(Sök_efter_elev,Närvaro_oktober[],30,FALSE),\"\")","v":""},{"$f":"IFERROR(VLOOKUP(Sök_efter_elev,Närvaro_oktober[],31,FALSE),\"\")","v":""},{"$f":"IFERROR(VLOOKUP(Sök_efter_elev,Närvaro_oktober[],32,FALSE),\"\")","v":""},{"$f":"IFERROR(VLOOKUP(Sök_efter_elev,Närvaro_oktober[],33,FALSE),\"\")","v":""}]
[null,"November",1,2,3,4,5,6,7,8,9,10,11,12,13,14,15,16,17,18,19,20,21,22,23,24,25,26,27,28,29,30,null,{"$f":"COUNTIF($D23:$AH23,Kod_1)","v":0},{"$f":"COUNTIF($D23:$AH23,Kod_2)","v":0},{"$f":"COUNTIF($D23:$AH23,Kod_3)","v":0},{"$f":"COUNTIF($D23:$AH23,Kod_4)","v":0}]
[null,null,{"$f":"IFERROR(VLOOKUP(Sök_efter_elev,Närvaro_november[],3,FALSE),\"\")","v":""},{"$f":"IFERROR(VLOOKUP(Sök_efter_elev,Närvaro_november[],4,FALSE),\"\")","v":""},{"$f":"IFERROR(VLOOKUP(Sök_efter_elev,Närvaro_november[],5,FALSE),\"\")","v":""},{"$f":"IFERROR(VLOOKUP(Sök_efter_elev,Närvaro_november[],6,FALSE),\"\")","v":""},{"$f":"IFERROR(VLOOKUP(Sök_efter_elev,Närvaro_november[],7,FALSE),\"\")","v":""},{"$f":"IFERROR(VLOOKUP(Sök_efter_elev,Närvaro_november[],8,FALSE),\"\")","v":""},{"$f":"IFERROR(VLOOKUP(Sök_efter_elev,Närvaro_november[],9,FALSE),\"\")","v":""},{"$f":"IFERROR(VLOOKUP(Sök_efter_elev,Närvaro_november[],10,FALSE),\"\")","v":""},{"$f":"IFERROR(VLOOKUP(Sök_efter_elev,Närvaro_november[],11,FALSE),\"\")","v":""},{"$f":"IFERROR(VLOOKUP(Sök_efter_elev,Närvaro_november[],12,FALSE),\"\")","v":""},{"$f":"IFERROR(VLOOKUP(Sök_efter_elev,Närvaro_november[],13,FALSE),\"\")","v":""},{"$f":"IFERROR(VLOOKUP(Sök_efter_elev,Närvaro_november[],14,FALSE),\"\")","v":""},{"$f":"IFERROR(VLOOKUP(Sök_efter_elev,Närvaro_november[],15,FALSE),\"\")","v":""},{"$f":"IFERROR(VLOOKUP(Sök_efter_elev,Närvaro_november[],16,FALSE),\"\")","v":""},{"$f":"IFERROR(VLOOKUP(Sök_efter_elev,Närvaro_november[],17,FALSE),\"\")","v":""},{"$f":"IFERROR(VLOOKUP(Sök_efter_elev,Närvaro_november[],18,FALSE),\"\")","v":""},{"$f":"IFERROR(VLOOKUP(Sök_efter_elev,Närvaro_november[],19,FALSE),\"\")","v":""},{"$f":"IFERROR(VLOOKUP(Sök_efter_elev,Närvaro_november[],20,FALSE),\"\")","v":""},{"$f":"IFERROR(VLOOKUP(Sök_efter_elev,Närvaro_november[],21,FALSE),\"\")","v":""},{"$f":"IFERROR(VLOOKUP(Sök_efter_elev,Närvaro_november[],22,FALSE),\"\")","v":""},{"$f":"IFERROR(VLOOKUP(Sök_efter_elev,Närvaro_november[],23,FALSE),\"\")","v":""},{"$f":"IFERROR(VLOOKUP(Sök_efter_elev,Närvaro_november[],24,FALSE),\"\")","v":""},{"$f":"IFERROR(VLOOKUP(Sök_efter_elev,Närvaro_november[],25,FALSE),\"\")","v":""},{"$f":"IFERROR(VLOOKUP(Sök_efter_elev,Närvaro_november[],26,FALSE),\"\")","v":""},{"$f":"IFERROR(VLOOKUP(Sök_efter_elev,Närvaro_november[],27,FALSE),\"\")","v":""},{"$f":"IFERROR(VLOOKUP(Sök_efter_elev,Närvaro_november[],28,FALSE),\"\")","v":""},{"$f":"IFERROR(VLOOKUP(Sök_efter_elev,Närvaro_november[],29,FALSE),\"\")","v":""},{"$f":"IFERROR(VLOOKUP(Sök_efter_elev,Närvaro_november[],30,FALSE),\"\")","v":""},{"$f":"IFERROR(VLOOKUP(Sök_efter_elev,Närvaro_november[],31,FALSE),\"\")","v":""},{"$f":"IFERROR(VLOOKUP(Sök_efter_elev,Närvaro_november[],32,FALSE),\"\")","v":""}]
[null,"December",1,2,3,4,5,6,7,8,9,10,11,12,13,14,15,16,17,18,19,20,21,22,23,24,25,26,27,28,29,30,31,{"$f":"COUNTIF($D25:$AH25,Kod_1)","v":0},{"$f":"COUNTIF($D25:$AH25,Kod_2)","v":0},{"$f":"COUNTIF($D25:$AH25,Kod_3)","v":0},{"$f":"COUNTIF($D25:$AH25,Kod_4)","v":0}]
[null,null,{"$f":"IFERROR(VLOOKUP(Sök_efter_elev,Närvaro_december[],3,FALSE),\"\")","v":""},{"$f":"IFERROR(VLOOKUP(Sök_efter_elev,Närvaro_december[],4,FALSE),\"\")","v":""},{"$f":"IFERROR(VLOOKUP(Sök_efter_elev,Närvaro_december[],5,FALSE),\"\")","v":""},{"$f":"IFERROR(VLOOKUP(Sök_efter_elev,Närvaro_december[],6,FALSE),\"\")","v":""},{"$f":"IFERROR(VLOOKUP(Sök_efter_elev,Närvaro_december[],7,FALSE),\"\")","v":""},{"$f":"IFERROR(VLOOKUP(Sök_efter_elev,Närvaro_december[],8,FALSE),\"\")","v":""},{"$f":"IFERROR(VLOOKUP(Sök_efter_elev,Närvaro_december[],9,FALSE),\"\")","v":""},{"$f":"IFERROR(VLOOKUP(Sök_efter_elev,Närvaro_december[],10,FALSE),\"\")","v":""},{"$f":"IFERROR(VLOOKUP(Sök_efter_elev,Närvaro_december[],11,FALSE),\"\")","v":""},{"$f":"IFERROR(VLOOKUP(Sök_efter_elev,Närvaro_december[],12,FALSE),\"\")","v":""},{"$f":"IFERROR(VLOOKUP(Sök_efter_elev,Närvaro_december[],13,FALSE),\"\")","v":""},{"$f":"IFERROR(VLOOKUP(Sök_efter_elev,Närvaro_december[],14,FALSE),\"\")","v":""},{"$f":"IFERROR(VLOOKUP(Sök_efter_elev,Närvaro_december[],15,FALSE),\"\")","v":""},{"$f":"IFERROR(VLOOKUP(Sök_efter_elev,Närvaro_december[],16,FALSE),\"\")","v":""},{"$f":"IFERROR(VLOOKUP(Sök_efter_elev,Närvaro_december[],17,FALSE),\"\")","v":""},{"$f":"IFERROR(VLOOKUP(Sök_efter_elev,Närvaro_december[],18,FALSE),\"\")","v":""},{"$f":"IFERROR(VLOOKUP(Sök_efter_elev,Närvaro_december[],19,FALSE),\"\")","v":""},{"$f":"IFERROR(VLOOKUP(Sök_efter_elev,Närvaro_december[],20,FALSE),\"\")","v":""},{"$f":"IFERROR(VLOOKUP(Sök_efter_elev,Närvaro_december[],21,FALSE),\"\")","v":""},{"$f":"IFERROR(VLOOKUP(Sök_efter_elev,Närvaro_december[],22,FALSE),\"\")","v":""},{"$f":"IFERROR(VLOOKUP(Sök_efter_elev,Närvaro_december[],23,FALSE),\"\")","v":""},{"$f":"IFERROR(VLOOKUP(Sök_efter_elev,Närvaro_december[],24,FALSE),\"\")","v":""},{"$f":"IFERROR(VLOOKUP(Sök_efter_elev,Närvaro_december[],25,FALSE),\"\")","v":""},{"$f":"IFERROR(VLOOKUP(Sök_efter_elev,Närvaro_december[],26,FALSE),\"\")","v":""},{"$f":"IFERROR(VLOOKUP(Sök_efter_elev,Närvaro_december[],27,FALSE),\"\")","v":""},{"$f":"IFERROR(VLOOKUP(Sök_efter_elev,Närvaro_december[],28,FALSE),\"\")","v":""},{"$f":"IFERROR(VLOOKUP(Sök_efter_elev,Närvaro_december[],29,FALSE),\"\")","v":""},{"$f":"IFERROR(VLOOKUP(Sök_efter_elev,Närvaro_december[],30,FALSE),\"\")","v":""},{"$f":"IFERROR(VLOOKUP(Sök_efter_elev,Närvaro_december[],31,FALSE),\"\")","v":""},{"$f":"IFERROR(VLOOKUP(Sök_efter_elev,Närvaro_december[],32,FALSE),\"\")","v":""},{"$f":"IFERROR(VLOOKUP(Sök_efter_elev,Närvaro_december[],33,FALSE),\"\")","v":""}]
[null,"Januari",1,2,3,4,5,6,7,8,9,10,11,12,13,14,15,16,17,18,19,20,21,22,23,24,25,26,27,28,29,30,31,{"$f":"COUNTIF($D27:$AH27,Kod_1)","v":0},{"$f":"COUNTIF($D27:$AH27,Kod_2)","v":0},{"$f":"COUNTIF($D27:$AH27,Kod_3)","v":0},{"$f":"COUNTIF($D27:$AH27,Kod_4)","v":0}]
[null,null,{"$f":"IFERROR(VLOOKUP(Sök_efter_elev,Närvaro_januari[],3,FALSE),\"\")","v":""},{"$f":"IFERROR(VLOOKUP(Sök_efter_elev,Närvaro_januari[],4,FALSE),\"\")","v":""},{"$f":"IFERROR(VLOOKUP(Sök_efter_elev,Närvaro_januari[],5,FALSE),\"\")","v":""},{"$f":"IFERROR(VLOOKUP(Sök_efter_elev,Närvaro_januari[],6,FALSE),\"\")","v":""},{"$f":"IFERROR(VLOOKUP(Sök_efter_elev,Närvaro_januari[],7,FALSE),\"\")","v":""},{"$f":"IFERROR(VLOOKUP(Sök_efter_elev,Närvaro_januari[],8,FALSE),\"\")","v":""},{"$f":"IFERROR(VLOOKUP(Sök_efter_elev,Närvaro_januari[],9,FALSE),\"\")","v":""},{"$f":"IFERROR(VLOOKUP(Sök_efter_elev,Närvaro_januari[],10,FALSE),\"\")","v":""},{"$f":"IFERROR(VLOOKUP(Sök_efter_elev,Närvaro_januari[],11,FALSE),\"\")","v":""},{"$f":"IFERROR(VLOOKUP(Sök_efter_elev,Närvaro_januari[],12,FALSE),\"\")","v":""},{"$f":"IFERROR(VLOOKUP(Sök_efter_elev,Närvaro_januari[],13,FALSE),\"\")","v":""},{"$f":"IFERROR(VLOOKUP(Sök_efter_elev,Närvaro_januari[],14,FALSE),\"\")","v":""},{"$f":"IFERROR(VLOOKUP(Sök_efter_elev,Närvaro_januari[],15,FALSE),\"\")","v":""},{"$f":"IFERROR(VLOOKUP(Sök_efter_elev,Närvaro_januari[],16,FALSE),\"\")","v":""},{"$f":"IFERROR(VLOOKUP(Sök_efter_elev,Närvaro_januari[],17,FALSE),\"\")","v":""},{"$f":"IFERROR(VLOOKUP(Sök_efter_elev,Närvaro_januari[],18,FALSE),\"\")","v":""},{"$f":"IFERROR(VLOOKUP(Sök_efter_elev,Närvaro_januari[],19,FALSE),\"\")","v":""},{"$f":"IFERROR(VLOOKUP(Sök_efter_elev,Närvaro_januari[],20,FALSE),\"\")","v":""},{"$f":"IFERROR(VLOOKUP(Sök_efter_elev,Närvaro_januari[],21,FALSE),\"\")","v":""},{"$f":"IFERROR(VLOOKUP(Sök_efter_elev,Närvaro_januari[],22,FALSE),\"\")","v":""},{"$f":"IFERROR(VLOOKUP(Sök_efter_elev,Närvaro_januari[],23,FALSE),\"\")","v":""},{"$f":"IFERROR(VLOOKUP(Sök_efter_elev,Närvaro_januari[],24,FALSE),\"\")","v":""},{"$f":"IFERROR(VLOOKUP(Sök_efter_elev,Närvaro_januari[],25,FALSE),\"\")","v":""},{"$f":"IFERROR(VLOOKUP(Sök_efter_elev,Närvaro_januari[],26,FALSE),\"\")","v":""},{"$f":"IFERROR(VLOOKUP(Sök_efter_elev,Närvaro_januari[],27,FALSE),\"\")","v":""},{"$f":"IFERROR(VLOOKUP(Sök_efter_elev,Närvaro_januari[],28,FALSE),\"\")","v":""},{"$f":"IFERROR(VLOOKUP(Sök_efter_elev,Närvaro_januari[],29,FALSE),\"\")","v":""},{"$f":"IFERROR(VLOOKUP(Sök_efter_elev,Närvaro_januari[],30,FALSE),\"\")","v":""},{"$f":"IFERROR(VLOOKUP(Sök_efter_elev,Närvaro_januari[],31,FALSE),\"\")","v":""},{"$f":"IFERROR(VLOOKUP(Sök_efter_elev,Närvaro_januari[],32,FALSE),\"\")","v":""},{"$f":"IFERROR(VLOOKUP(Sök_efter_elev,Närvaro_januari[],33,FALSE),\"\")","v":""}]
[null,"Februari",1,2,3,4,5,6,7,8,9,10,11,12,13,14,15,16,17,18,19,20,21,22,23,24,25,26,27,28,29,null,null,{"$f":"COUNTIF($D29:$AH29,Kod_1)","v":0},{"$f":"COUNTIF($D29:$AH29,Kod_2)","v":0},{"$f":"COUNTIF($D29:$AH29,Kod_3)","v":0},{"$f":"COUNTIF($D29:$AH29,Kod_4)","v":0}]
[null,null,{"$f":"IFERROR(VLOOKUP(Sök_efter_elev,Närvaro_februari[],3,FALSE),\"\")","v":""},{"$f":"IFERROR(VLOOKUP(Sök_efter_elev,Närvaro_februari[],4,FALSE),\"\")","v":""},{"$f":"IFERROR(VLOOKUP(Sök_efter_elev,Närvaro_februari[],5,FALSE),\"\")","v":""},{"$f":"IFERROR(VLOOKUP(Sök_efter_elev,Närvaro_februari[],6,FALSE),\"\")","v":""},{"$f":"IFERROR(VLOOKUP(Sök_efter_elev,Närvaro_februari[],7,FALSE),\"\")","v":""},{"$f":"IFERROR(VLOOKUP(Sök_efter_elev,Närvaro_februari[],8,FALSE),\"\")","v":""},{"$f":"IFERROR(VLOOKUP(Sök_efter_elev,Närvaro_februari[],9,FALSE),\"\")","v":""},{"$f":"IFERROR(VLOOKUP(Sök_efter_elev,Närvaro_februari[],10,FALSE),\"\")","v":""},{"$f":"IFERROR(VLOOKUP(Sök_efter_elev,Närvaro_februari[],11,FALSE),\"\")","v":""},{"$f":"IFERROR(VLOOKUP(Sök_efter_elev,Närvaro_februari[],12,FALSE),\"\")","v":""},{"$f":"IFERROR(VLOOKUP(Sök_efter_elev,Närvaro_februari[],13,FALSE),\"\")","v":""},{"$f":"IFERROR(VLOOKUP(Sök_efter_elev,Närvaro_februari[],14,FALSE),\"\")","v":""},{"$f":"IFERROR(VLOOKUP(Sök_efter_elev,Närvaro_februari[],15,FALSE),\"\")","v":""},{"$f":"IFERROR(VLOOKUP(Sök_efter_elev,Närvaro_februari[],16,FALSE),\"\")","v":""},{"$f":"IFERROR(VLOOKUP(Sök_efter_elev,Närvaro_februari[],17,FALSE),\"\")","v":""},{"$f":"IFERROR(VLOOKUP(Sök_efter_elev,Närvaro_februari[],18,FALSE),\"\")","v":""},{"$f":"IFERROR(VLOOKUP(Sök_efter_elev,Närvaro_februari[],19,FALSE),\"\")","v":""},{"$f":"IFERROR(VLOOKUP(Sök_efter_elev,Närvaro_februari[],20,FALSE),\"\")","v":""},{"$f":"IFERROR(VLOOKUP(Sök_efter_elev,Närvaro_februari[],21,FALSE),\"\")","v":""},{"$f":"IFERROR(VLOOKUP(Sök_efter_elev,Närvaro_februari[],22,FALSE),\"\")","v":""},{"$f":"IFERROR(VLOOKUP(Sök_efter_elev,Närvaro_februari[],23,FALSE),\"\")","v":""},{"$f":"IFERROR(VLOOKUP(Sök_efter_elev,Närvaro_februari[],24,FALSE),\"\")","v":""},{"$f":"IFERROR(VLOOKUP(Sök_efter_elev,Närvaro_februari[],25,FALSE),\"\")","v":""},{"$f":"IFERROR(VLOOKUP(Sök_efter_elev,Närvaro_februari[],26,FALSE),\"\")","v":""},{"$f":"IFERROR(VLOOKUP(Sök_efter_elev,Närvaro_februari[],27,FALSE),\"\")","v":""},{"$f":"IFERROR(VLOOKUP(Sök_efter_elev,Närvaro_februari[],28,FALSE),\"\")","v":""},{"$f":"IFERROR(VLOOKUP(Sök_efter_elev,Närvaro_februari[],29,FALSE),\"\")","v":""},{"$f":"IFERROR(VLOOKUP(Sök_efter_elev,Närvaro_februari[],30,FALSE),\"\")","v":""},{"$f":"IFERROR(VLOOKUP(Sök_efter_elev,Närvaro_februari[],31,FALSE),\"\")","v":""}]
[null,"Mars",1,2,3,4,5,6,7,8,9,10,11,12,13,14,15,16,17,18,19,20,21,22,23,24,25,26,27,28,29,30,31,{"$f":"COUNTIF($D31:$AH31,Kod_1)","v":0},{"$f":"COUNTIF($D31:$AH31,Kod_2)","v":0},{"$f":"COUNTIF($D31:$AH31,Kod_3)","v":0},{"$f":"COUNTIF($D31:$AH31,Kod_4)","v":0}]
[null,null,{"$f":"IFERROR(VLOOKUP(Sök_efter_elev,Närvaro_mars[],3,FALSE),\"\")","v":""},{"$f":"IFERROR(VLOOKUP(Sök_efter_elev,Närvaro_mars[],4,FALSE),\"\")","v":""},{"$f":"IFERROR(VLOOKUP(Sök_efter_elev,Närvaro_mars[],5,FALSE),\"\")","v":""},{"$f":"IFERROR(VLOOKUP(Sök_efter_elev,Närvaro_mars[],6,FALSE),\"\")","v":""},{"$f":"IFERROR(VLOOKUP(Sök_efter_elev,Närvaro_mars[],7,FALSE),\"\")","v":""},{"$f":"IFERROR(VLOOKUP(Sök_efter_elev,Närvaro_mars[],8,FALSE),\"\")","v":""},{"$f":"IFERROR(VLOOKUP(Sök_efter_elev,Närvaro_mars[],9,FALSE),\"\")","v":""},{"$f":"IFERROR(VLOOKUP(Sök_efter_elev,Närvaro_mars[],10,FALSE),\"\")","v":""},{"$f":"IFERROR(VLOOKUP(Sök_efter_elev,Närvaro_mars[],11,FALSE),\"\")","v":""},{"$f":"IFERROR(VLOOKUP(Sök_efter_elev,Närvaro_mars[],12,FALSE),\"\")","v":""},{"$f":"IFERROR(VLOOKUP(Sök_efter_elev,Närvaro_mars[],13,FALSE),\"\")","v":""},{"$f":"IFERROR(VLOOKUP(Sök_efter_elev,Närvaro_mars[],14,FALSE),\"\")","v":""},{"$f":"IFERROR(VLOOKUP(Sök_efter_elev,Närvaro_mars[],15,FALSE),\"\")","v":""},{"$f":"IFERROR(VLOOKUP(Sök_efter_elev,Närvaro_mars[],16,FALSE),\"\")","v":""},{"$f":"IFERROR(VLOOKUP(Sök_efter_elev,Närvaro_mars[],17,FALSE),\"\")","v":""},{"$f":"IFERROR(VLOOKUP(Sök_efter_elev,Närvaro_mars[],18,FALSE),\"\")","v":""},{"$f":"IFERROR(VLOOKUP(Sök_efter_elev,Närvaro_mars[],19,FALSE),\"\")","v":""},{"$f":"IFERROR(VLOOKUP(Sök_efter_elev,Närvaro_mars[],20,FALSE),\"\")","v":""},{"$f":"IFERROR(VLOOKUP(Sök_efter_elev,Närvaro_mars[],21,FALSE),\"\")","v":""},{"$f":"IFERROR(VLOOKUP(Sök_efter_elev,Närvaro_mars[],22,FALSE),\"\")","v":""},{"$f":"IFERROR(VLOOKUP(Sök_efter_elev,Närvaro_mars[],23,FALSE),\"\")","v":""},{"$f":"IFERROR(VLOOKUP(Sök_efter_elev,Närvaro_mars[],24,FALSE),\"\")","v":""},{"$f":"IFERROR(VLOOKUP(Sök_efter_elev,Närvaro_mars[],25,FALSE),\"\")","v":""},{"$f":"IFERROR(VLOOKUP(Sök_efter_elev,Närvaro_mars[],26,FALSE),\"\")","v":""},{"$f":"IFERROR(VLOOKUP(Sök_efter_elev,Närvaro_mars[],27,FALSE),\"\")","v":""},{"$f":"IFERROR(VLOOKUP(Sök_efter_elev,Närvaro_mars[],28,FALSE),\"\")","v":""},{"$f":"IFERROR(VLOOKUP(Sök_efter_elev,Närvaro_mars[],29,FALSE),\"\")","v":""},{"$f":"IFERROR(VLOOKUP(Sök_efter_elev,Närvaro_mars[],30,FALSE),\"\")","v":""},{"$f":"IFERROR(VLOOKUP(Sök_efter_elev,Närvaro_mars[],31,FALSE),\"\")","v":""},{"$f":"IFERROR(VLOOKUP(Sök_efter_elev,Närvaro_mars[],32,FALSE),\"\")","v":""},{"$f":"IFERROR(VLOOKUP(Sök_efter_elev,Närvaro_mars[],33,FALSE),\"\")","v":""}]
[null,"April",1,2,3,4,5,6,7,8,9,10,11,12,13,14,15,16,17,18,19,20,21,22,23,24,25,26,27,28,29,30,null,{"$f":"COUNTIF($D33:$AH33,Kod_1)","v":0},{"$f":"COUNTIF($D33:$AH33,Kod_2)","v":0},{"$f":"COUNTIF($D33:$AH33,Kod_3)","v":0},{"$f":"COUNTIF($D33:$AH33,Kod_4)","v":0}]
[null,null,{"$f":"IFERROR(VLOOKUP(Sök_efter_elev,Närvaro_april[],3,FALSE),\"\")","v":""},{"$f":"IFERROR(VLOOKUP(Sök_efter_elev,Närvaro_april[],4,FALSE),\"\")","v":""},{"$f":"IFERROR(VLOOKUP(Sök_efter_elev,Närvaro_april[],5,FALSE),\"\")","v":""},{"$f":"IFERROR(VLOOKUP(Sök_efter_elev,Närvaro_april[],6,FALSE),\"\")","v":""},{"$f":"IFERROR(VLOOKUP(Sök_efter_elev,Närvaro_april[],7,FALSE),\"\")","v":""},{"$f":"IFERROR(VLOOKUP(Sök_efter_elev,Närvaro_april[],8,FALSE),\"\")","v":""},{"$f":"IFERROR(VLOOKUP(Sök_efter_elev,Närvaro_april[],9,FALSE),\"\")","v":""},{"$f":"IFERROR(VLOOKUP(Sök_efter_elev,Närvaro_april[],10,FALSE),\"\")","v":""},{"$f":"IFERROR(VLOOKUP(Sök_efter_elev,Närvaro_april[],11,FALSE),\"\")","v":""},{"$f":"IFERROR(VLOOKUP(Sök_efter_elev,Närvaro_april[],12,FALSE),\"\")","v":""},{"$f":"IFERROR(VLOOKUP(Sök_efter_elev,Närvaro_april[],13,FALSE),\"\")","v":""},{"$f":"IFERROR(VLOOKUP(Sök_efter_elev,Närvaro_april[],14,FALSE),\"\")","v":""},{"$f":"IFERROR(VLOOKUP(Sök_efter_elev,Närvaro_april[],15,FALSE),\"\")","v":""},{"$f":"IFERROR(VLOOKUP(Sök_efter_elev,Närvaro_april[],16,FALSE),\"\")","v":""},{"$f":"IFERROR(VLOOKUP(Sök_efter_elev,Närvaro_april[],17,FALSE),\"\")","v":""},{"$f":"IFERROR(VLOOKUP(Sök_efter_elev,Närvaro_april[],18,FALSE),\"\")","v":""},{"$f":"IFERROR(VLOOKUP(Sök_efter_elev,Närvaro_april[],19,FALSE),\"\")","v":""},{"$f":"IFERROR(VLOOKUP(Sök_efter_elev,Närvaro_april[],20,FALSE),\"\")","v":""},{"$f":"IFERROR(VLOOKUP(Sök_efter_elev,Närvaro_april[],21,FALSE),\"\")","v":""},{"$f":"IFERROR(VLOOKUP(Sök_efter_elev,Närvaro_april[],22,FALSE),\"\")","v":""},{"$f":"IFERROR(VLOOKUP(Sök_efter_elev,Närvaro_april[],23,FALSE),\"\")","v":""},{"$f":"IFERROR(VLOOKUP(Sök_efter_elev,Närvaro_april[],24,FALSE),\"\")","v":""},{"$f":"IFERROR(VLOOKUP(Sök_efter_elev,Närvaro_april[],25,FALSE),\"\")","v":""},{"$f":"IFERROR(VLOOKUP(Sök_efter_elev,Närvaro_april[],26,FALSE),\"\")","v":""},{"$f":"IFERROR(VLOOKUP(Sök_efter_elev,Närvaro_april[],27,FALSE),\"\")","v":""},{"$f":"IFERROR(VLOOKUP(Sök_efter_elev,Närvaro_april[],28,FALSE),\"\")","v":""},{"$f":"IFERROR(VLOOKUP(Sök_efter_elev,Närvaro_april[],29,FALSE),\"\")","v":""},{"$f":"IFERROR(VLOOKUP(Sök_efter_elev,Närvaro_april[],30,FALSE),\"\")","v":""},{"$f":"IFERROR(VLOOKUP(Sök_efter_elev,Närvaro_april[],31,FALSE),\"\")","v":""},{"$f":"IFERROR(VLOOKUP(Sök_efter_elev,Närvaro_april[],32,FALSE),\"\")","v":""}]
[null,"maj",1,2,3,4,5,6,7,8,9,10,11,12,13,14,15,16,17,18,19,20,21,22,23,24,25,26,27,28,29,30,31,{"$f":"COUNTIF($D35:$AH35,Kod_1)","v":0},{"$f":"COUNTIF($D35:$AH35,Kod_2)","v":0},{"$f":"COUNTIF($D35:$AH35,Kod_3)","v":0},{"$f":"COUNTIF($D35:$AH35,Kod_4)","v":0}]
[null,null,{"$f":"IFERROR(VLOOKUP(Sök_efter_elev,Närvaro_maj[],3,FALSE),\"\")","v":""},{"$f":"IFERROR(VLOOKUP(Sök_efter_elev,Närvaro_maj[],4,FALSE),\"\")","v":""},{"$f":"IFERROR(VLOOKUP(Sök_efter_elev,Närvaro_maj[],5,FALSE),\"\")","v":""},{"$f":"IFERROR(VLOOKUP(Sök_efter_elev,Närvaro_maj[],6,FALSE),\"\")","v":""},{"$f":"IFERROR(VLOOKUP(Sök_efter_elev,Närvaro_maj[],7,FALSE),\"\")","v":""},{"$f":"IFERROR(VLOOKUP(Sök_efter_elev,Närvaro_maj[],8,FALSE),\"\")","v":""},{"$f":"IFERROR(VLOOKUP(Sök_efter_elev,Närvaro_maj[],9,FALSE),\"\")","v":""},{"$f":"IFERROR(VLOOKUP(Sök_efter_elev,Närvaro_maj[],10,FALSE),\"\")","v":""},{"$f":"IFERROR(VLOOKUP(Sök_efter_elev,Närvaro_maj[],11,FALSE),\"\")","v":""},{"$f":"IFERROR(VLOOKUP(Sök_efter_elev,Närvaro_maj[],12,FALSE),\"\")","v":""},{"$f":"IFERROR(VLOOKUP(Sök_efter_elev,Närvaro_maj[],13,FALSE),\"\")","v":""},{"$f":"IFERROR(VLOOKUP(Sök_efter_elev,Närvaro_maj[],14,FALSE),\"\")","v":""},{"$f":"IFERROR(VLOOKUP(Sök_efter_elev,Närvaro_maj[],15,FALSE),\"\")","v":""},{"$f":"IFERROR(VLOOKUP(Sök_efter_elev,Närvaro_maj[],16,FALSE),\"\")","v":""},{"$f":"IFERROR(VLOOKUP(Sök_efter_elev,Närvaro_maj[],17,FALSE),\"\")","v":""},{"$f":"IFERROR(VLOOKUP(Sök_efter_elev,Närvaro_maj[],18,FALSE),\"\")","v":""},{"$f":"IFERROR(VLOOKUP(Sök_efter_elev,Närvaro_maj[],19,FALSE),\"\")","v":""},{"$f":"IFERROR(VLOOKUP(Sök_efter_elev,Närvaro_maj[],20,FALSE),\"\")","v":""},{"$f":"IFERROR(VLOOKUP(Sök_efter_elev,Närvaro_maj[],21,FALSE),\"\")","v":""},{"$f":"IFERROR(VLOOKUP(Sök_efter_elev,Närvaro_maj[],22,FALSE),\"\")","v":""},{"$f":"IFERROR(VLOOKUP(Sök_efter_elev,Närvaro_maj[],23,FALSE),\"\")","v":""},{"$f":"IFERROR(VLOOKUP(Sök_efter_elev,Närvaro_maj[],24,FALSE),\"\")","v":""},{"$f":"IFERROR(VLOOKUP(Sök_efter_elev,Närvaro_maj[],25,FALSE),\"\")","v":""},{"$f":"IFERROR(VLOOKUP(Sök_efter_elev,Närvaro_maj[],26,FALSE),\"\")","v":""},{"$f":"IFERROR(VLOOKUP(Sök_efter_elev,Närvaro_maj[],27,FALSE),\"\")","v":""},{"$f":"IFERROR(VLOOKUP(Sök_efter_elev,Närvaro_maj[],28,FALSE),\"\")","v":""},{"$f":"IFERROR(VLOOKUP(Sök_efter_elev,Närvaro_maj[],29,FALSE),\"\")","v":""},{"$f":"IFERROR(VLOOKUP(Sök_efter_elev,Närvaro_maj[],30,FALSE),\"\")","v":""},{"$f":"IFERROR(VLOOKUP(Sök_efter_elev,Närvaro_maj[],31,FALSE),\"\")","v":""},{"$f":"IFERROR(VLOOKUP(Sök_efter_elev,Närvaro_maj[],32,FALSE),\"\")","v":""},{"$f":"IFERROR(VLOOKUP(Sök_efter_elev,Närvaro_maj[],33,FALSE),\"\")","v":""}]
[null,"Juni",1,2,3,4,5,6,7,8,9,10,11,12,13,14,15,16,17,18,19,20,21,22,23,24,25,26,27,28,29,30,null,{"$f":"COUNTIF($D37:$AH37,Kod_1)","v":0},{"$f":"COUNTIF($D37:$AH37,Kod_2)","v":0},{"$f":"COUNTIF($D37:$AH37,Kod_3)","v":0},{"$f":"COUNTIF($D37:$AH37,Kod_4)","v":0}]
[null,null,{"$f":"IFERROR(VLOOKUP(Sök_efter_elev,Närvaro_juni[],3,FALSE),\"\")","v":""},{"$f":"IFERROR(VLOOKUP(Sök_efter_elev,Närvaro_juni[],4,FALSE),\"\")","v":""},{"$f":"IFERROR(VLOOKUP(Sök_efter_elev,Närvaro_juni[],5,FALSE),\"\")","v":""},{"$f":"IFERROR(VLOOKUP(Sök_efter_elev,Närvaro_juni[],6,FALSE),\"\")","v":""},{"$f":"IFERROR(VLOOKUP(Sök_efter_elev,Närvaro_juni[],7,FALSE),\"\")","v":""},{"$f":"IFERROR(VLOOKUP(Sök_efter_elev,Närvaro_juni[],8,FALSE),\"\")","v":""},{"$f":"IFERROR(VLOOKUP(Sök_efter_elev,Närvaro_juni[],9,FALSE),\"\")","v":""},{"$f":"IFERROR(VLOOKUP(Sök_efter_elev,Närvaro_juni[],10,FALSE),\"\")","v":""},{"$f":"IFERROR(VLOOKUP(Sök_efter_elev,Närvaro_juni[],11,FALSE),\"\")","v":""},{"$f":"IFERROR(VLOOKUP(Sök_efter_elev,Närvaro_juni[],12,FALSE),\"\")","v":""},{"$f":"IFERROR(VLOOKUP(Sök_efter_elev,Närvaro_juni[],13,FALSE),\"\")","v":""},{"$f":"IFERROR(VLOOKUP(Sök_efter_elev,Närvaro_juni[],14,FALSE),\"\")","v":""},{"$f":"IFERROR(VLOOKUP(Sök_efter_elev,Närvaro_juni[],15,FALSE),\"\")","v":""},{"$f":"IFERROR(VLOOKUP(Sök_efter_elev,Närvaro_juni[],16,FALSE),\"\")","v":""},{"$f":"IFERROR(VLOOKUP(Sök_efter_elev,Närvaro_juni[],17,FALSE),\"\")","v":""},{"$f":"IFERROR(VLOOKUP(Sök_efter_elev,Närvaro_juni[],18,FALSE),\"\")","v":""},{"$f":"IFERROR(VLOOKUP(Sök_efter_elev,Närvaro_juni[],19,FALSE),\"\")","v":""},{"$f":"IFERROR(VLOOKUP(Sök_efter_elev,Närvaro_juni[],20,FALSE),\"\")","v":""},{"$f":"IFERROR(VLOOKUP(Sök_efter_elev,Närvaro_juni[],21,FALSE),\"\")","v":""},{"$f":"IFERROR(VLOOKUP(Sök_efter_elev,Närvaro_juni[],22,FALSE),\"\")","v":""},{"$f":"IFERROR(VLOOKUP(Sök_efter_elev,Närvaro_juni[],23,FALSE),\"\")","v":""},{"$f":"IFERROR(VLOOKUP(Sök_efter_elev,Närvaro_juni[],24,FALSE),\"\")","v":""},{"$f":"IFERROR(VLOOKUP(Sök_efter_elev,Närvaro_juni[],25,FALSE),\"\")","v":""},{"$f":"IFERROR(VLOOKUP(Sök_efter_elev,Närvaro_juni[],26,FALSE),\"\")","v":""},{"$f":"IFERROR(VLOOKUP(Sök_efter_elev,Närvaro_juni[],27,FALSE),\"\")","v":""},{"$f":"IFERROR(VLOOKUP(Sök_efter_elev,Närvaro_juni[],28,FALSE),\"\")","v":""},{"$f":"IFERROR(VLOOKUP(Sök_efter_elev,Närvaro_juni[],29,FALSE),\"\")","v":""},{"$f":"IFERROR(VLOOKUP(Sök_efter_elev,Närvaro_juni[],30,FALSE),\"\")","v":""},{"$f":"IFERROR(VLOOKUP(Sök_efter_elev,Närvaro_juni[],31,FALSE),\"\")","v":""},{"$f":"IFERROR(VLOOKUP(Sök_efter_elev,Närvaro_juni[],32,FALSE),\"\")","v":""}]
[null,"Juli",1,2,3,4,5,6,7,8,9,10,11,12,13,14,15,16,17,18,19,20,21,22,23,24,25,26,27,28,29,30,31,{"$f":"COUNTIF($D39:$AH39,Kod_1)","v":0},{"$f":"COUNTIF($D39:$AH39,Kod_2)","v":0},{"$f":"COUNTIF($D39:$AH39,Kod_3)","v":0},{"$f":"COUNTIF($D39:$AH39,Kod_4)","v":0}]
[null,null,{"$f":"IFERROR(VLOOKUP(Sök_efter_elev,Närvaro_juli[],3,FALSE),\"\")","v":""},{"$f":"IFERROR(VLOOKUP(Sök_efter_elev,Närvaro_juli[],4,FALSE),\"\")","v":""},{"$f":"IFERROR(VLOOKUP(Sök_efter_elev,Närvaro_juli[],5,FALSE),\"\")","v":""},{"$f":"IFERROR(VLOOKUP(Sök_efter_elev,Närvaro_juli[],6,FALSE),\"\")","v":""},{"$f":"IFERROR(VLOOKUP(Sök_efter_elev,Närvaro_juli[],7,FALSE),\"\")","v":""},{"$f":"IFERROR(VLOOKUP(Sök_efter_elev,Närvaro_juli[],8,FALSE),\"\")","v":""},{"$f":"IFERROR(VLOOKUP(Sök_efter_elev,Närvaro_juli[],9,FALSE),\"\")","v":""},{"$f":"IFERROR(VLOOKUP(Sök_efter_elev,Närvaro_juli[],10,FALSE),\"\")","v":""},{"$f":"IFERROR(VLOOKUP(Sök_efter_elev,Närvaro_juli[],11,FALSE),\"\")","v":""},{"$f":"IFERROR(VLOOKUP(Sök_efter_elev,Närvaro_juli[],12,FALSE),\"\")","v":""},{"$f":"IFERROR(VLOOKUP(Sök_efter_elev,Närvaro_juli[],13,FALSE),\"\")","v":""},{"$f":"IFERROR(VLOOKUP(Sök_efter_elev,Närvaro_juli[],14,FALSE),\"\")","v":""},{"$f":"IFERROR(VLOOKUP(Sök_efter_elev,Närvaro_juli[],15,FALSE),\"\")","v":""},{"$f":"IFERROR(VLOOKUP(Sök_efter_elev,Närvaro_juli[],16,FALSE),\"\")","v":""},{"$f":"IFERROR(VLOOKUP(Sök_efter_elev,Närvaro_juli[],17,FALSE),\"\")","v":""},{"$f":"IFERROR(VLOOKUP(Sök_efter_elev,Närvaro_juli[],18,FALSE),\"\")","v":""},{"$f":"IFERROR(VLOOKUP(Sök_efter_elev,Närvaro_juli[],19,FALSE),\"\")","v":""},{"$f":"IFERROR(VLOOKUP(Sök_efter_elev,Närvaro_juli[],20,FALSE),\"\")","v":""},{"$f":"IFERROR(VLOOKUP(Sök_efter_elev,Närvaro_juli[],21,FALSE),\"\")","v":""},{"$f":"IFERROR(VLOOKUP(Sök_efter_elev,Närvaro_juli[],22,FALSE),\"\")","v":""},{"$f":"IFERROR(VLOOKUP(Sök_efter_elev,Närvaro_juli[],23,FALSE),\"\")","v":""},{"$f":"IFERROR(VLOOKUP(Sök_efter_elev,Närvaro_juli[],24,FALSE),\"\")","v":""},{"$f":"IFERROR(VLOOKUP(Sök_efter_elev,Närvaro_juli[],25,FALSE),\"\")","v":""},{"$f":"IFERROR(VLOOKUP(Sök_efter_elev,Närvaro_juli[],26,FALSE),\"\")","v":""},{"$f":"IFERROR(VLOOKUP(Sök_efter_elev,Närvaro_juli[],27,FALSE),\"\")","v":""},{"$f":"IFERROR(VLOOKUP(Sök_efter_elev,Närvaro_juli[],28,FALSE),\"\")","v":""},{"$f":"IFERROR(VLOOKUP(Sök_efter_elev,Närvaro_juli[],29,FALSE),\"\")","v":""},{"$f":"IFERROR(VLOOKUP(Sök_efter_elev,Närvaro_juli[],30,FALSE),\"\")","v":""},{"$f":"IFERROR(VLOOKUP(Sök_efter_elev,Närvaro_juli[],31,FALSE),\"\")","v":""},{"$f":"IFERROR(VLOOKUP(Sök_efter_elev,Närvaro_juli[],32,FALSE),\"\")","v":""},{"$f":"IFERROR(VLOOKUP(Sök_efter_elev,Närvaro_juli[],33,FALSE),\"\")","v":""}]
[{"$nulls":30},"Summor",null,null,{"$f":"SUM(AH16:AH39)","v":2},{"$f":"SUM(AI16:AI39)","v":1},{"$f":"SUM(AJ16:AJ39)","v":0},{"$f":"SUM(AK16:AK39)","v":19}]